Inv Transaction,Supplier Name,Headserv Name,Stratdir Name,Account Description,Redact Name,Paid Date,Sum of Inv Amount
460279,HC ONE OF A KIND - WINDSOR COURT,Adult Services,"Community, Adult & Adults Early Intervention",Residential Home Long Stay Fees,,09/07/14,"7,196.91 "
460280,GREATER MANCHESTER WEST MENTAL HEALTH FOUNDATION TRUST,Public Health,Public Health,Residential Home Long Stay Fees,,07/07/14,"18,846.00 "
460280,MRS P RUGGEE,Adult Services,"Community, Adult & Adults Early Intervention",Residential Home Long Stay Fees,Business Payment,07/07/14,"4,446.78 "
460280,ST GEORGE'S NURSING HOME (OLDHAM) LTD,Adult Services,"Community, Adult & Adults Early Intervention",Residential Home Long Stay Fees,,07/07/14,"2,907.16 "
460281,POLEBANK HALL RESIDENTIAL CARE HOME LTD,Adult Services,"Community, Adult & Adults Early Intervention",Residential Home Long Stay Fees,,09/07/14,"5,532.57 "
460282,ACORN RECOVERY PROJECTS,Public Health,Public Health,Residential Home Long Stay Fees,,28/07/14,"7,637.13 "
460282,ADS,Public Health,Public Health,Residential Home Long Stay Fees,,28/07/14,"4,617.00 "
460282,AINSWORTH NURSING HOME,Adult Services,"Community, Adult & Adults Early Intervention",Residential Home Long Stay Fees,,28/07/14,"1,275.12 "
460282,AMARA CARE LTD,Adult Services,"Community, Adult & Adults Early Intervention",Residential Home Long Stay Fees,,28/07/14,"6,487.86 "
460282,APPLE COURT,Adult Services,"Community, Adult & Adults Early Intervention",Residential Home Long Stay Fees,,28/07/14,"2,139.00 "
460282,AUDEN HOUSE RESIDENTIAL HOME,Adult Services,"Community, Adult & Adults Early Intervention",Residential Home Long Stay Fees,,28/07/14,"6,454.29 "
460282,AUTISM CARE UK,Adult Services,"Community, Adult & Adults Early Intervention",Residential Home Long Stay Fees,,28/07/14,"8,485.71 "
460282,BALMORAL HOMES,Adult Services,"Community, Adult & Adults Early Intervention",Cost Centre/Attribute Errors,,28/07/14,"6,971.43 "
460282,BALMORAL HOMES,Adult Services,"Community, Adult & Adults Early Intervention",Residential Home Long Stay Fees,,28/07/14,"8,864.52 "
460282,BAMFORD GRANGE N/H,Adult Services,"Community, Adult & Adults Early Intervention",Residential Home Long Stay Fees,,28/07/14,"2,837.43 "
460282,BASSETT HOUSE CARE HOME,Adult Services,"Community, Adult & Adults Early Intervention",Residential Home Long Stay Fees,,28/07/14,"6,605.73 "
460282,BEECHFIELD LODGE,Adult Services,"Community, Adult & Adults Early Intervention",Residential Home Long Stay Fees,,28/07/14,"1,036.51 "
460282,BELMONT PARKHILL LTD,Adult Services,"Community, Adult & Adults Early Intervention",Residential Home Long Stay Fees,,28/07/14,"37,252.27 "
460282,BIRCHWOOD,Adult Services,"Community, Adult & Adults Early Intervention",Residential Home Long Stay Fees,,28/07/14,"2,607.19 "
460282,BLACKCLIFFE LTD,Adult Services,"Community, Adult & Adults Early Intervention",Residential Home Long Stay Fees,,28/07/14,"73,190.99 "
460282,BOURNE HOUSE RESIDENTIAL HOME,Adult Services,"Community, Adult & Adults Early Intervention",Residential Home Long Stay Fees,,28/07/14,"23,516.04 "
460282,BOWERFIELD COURT,Adult Services,"Community, Adult & Adults Early Intervention",Residential Home Long Stay Fees,,28/07/14,"13,655.57 "
460282,BOWLACRE HOME,Adult Services,"Community, Adult & Adults Early Intervention",Residential Home Long Stay Fees,,28/07/14,"14,687.38 "
460282,BROOKVALE,Adult Services,"Community, Adult & Adults Early Intervention",Residential Home Long Stay Fees,,28/07/14,"6,818.84 "
460282,BROUGHTON HOUSE HOME FOR  EX-SERVICE PERSONNEL,Adult Services,"Community, Adult & Adults Early Intervention",Residential Home Long Stay Fees,,28/07/14,909.41 
460282,BRYN HAVEN,Adult Services,"Community, Adult & Adults Early Intervention",Residential Home Long Stay Fees,Business Payment,28/07/14,973.62 
460282,CAMBIAN LEARNING DISABILITIES MIDLANDS LTD,Adult Services,"Community, Adult & Adults Early Intervention",Residential Home Long Stay Fees,,28/07/14,"19,580.97 "
460282,CARE UK HOMECARE,Adult Services,"Community, Adult & Adults Early Intervention",Cost Centre/Attribute Errors,,28/07/14,491.08 
460282,CARE UK HOMECARE,Adult Services,"Community, Adult & Adults Early Intervention",Residential Home Long Stay Fees,,28/07/14,"66,394.06 "
460282,CARE UK LEARNING DISABILITIES SERVS LTD,Adult Services,"Community, Adult & Adults Early Intervention",Residential Home Long Stay Fees,,28/07/14,"10,809.26 "
460282,CHADDERTON TOTAL CAREUNIT LTD,Adult Services,"Community, Adult & Adults Early Intervention",Residential Home Long Stay Fees,,28/07/14,"2,650.72 "
460282,CHARNLEY HOUSE LIMITED,Adult Services,"Community, Adult & Adults Early Intervention",Residential Home Long Stay Fees,,28/07/14,"19,498.25 "
460282,CLARKSON HOUSE,Adult Services,"Community, Adult & Adults Early Intervention",Residential Home Long Stay Fees,,28/07/14,"18,454.39 "
460282,CLEARWATER CARE,Adult Services,"Community, Adult & Adults Early Intervention",Residential Home Long Stay Fees,,28/07/14,"3,529.13 "
460282,CLIFFEMOUNT COMMUNITY CARE,Adult Services,"Community, Adult & Adults Early Intervention",Residential Home Long Stay Fees,,28/07/14,"24,284.80 "
460282,COMPASS CARE LIMITED,Adult Services,"Community, Adult & Adults Early Intervention",Residential Home Long Stay Fees,,28/07/14,"4,462.18 "
460282,DANSHELL HEALTHCARE LTD,Adult Services,"Community, Adult & Adults Early Intervention",Cost Centre/Attribute Errors,,28/07/14,"8,680.00 "
460282,DOM POLSKI CARE HOME,Adult Services,"Community, Adult & Adults Early Intervention",Residential Home Long Stay Fees,,28/07/14,"1,876.16 "
460282,DOMAIN CARE NORTH WEST LTD,Adult Services,"Community, Adult & Adults Early Intervention",Residential Home Long Stay Fees,,28/07/14,"4,185.00 "
460282,DRYCLOUGH MANOR CARE HOME,Adult Services,"Community, Adult & Adults Early Intervention",Residential Home Long Stay Fees,,28/07/14,"1,689.50 "
460282,EAGLE HOUSE CARE HOME,Adult Services,"Community, Adult & Adults Early Intervention",Residential Home Long Stay Fees,,28/07/14,"3,034.59 "
460282,EDGE HILL RESIDENTIAL HOME,Adult Services,"Community, Adult & Adults Early Intervention",Residential Home Long Stay Fees,,28/07/14,"4,013.71 "
460282,ELDER HOMES GROUP,Adult Services,"Community, Adult & Adults Early Intervention",Cost Centre/Attribute Errors,,28/07/14,491.08 
460282,ELDER HOMES GROUP,Adult Services,"Community, Adult & Adults Early Intervention",Residential Home Long Stay Fees,,28/07/14,"40,808.38 "
460282,ERNELESTHORP NURSING HOME,Adult Services,"Community, Adult & Adults Early Intervention",Residential Home Long Stay Fees,,28/07/14,"1,783.43 "
460282,FAIRFIELD VIEW CARE LTD,Adult Services,"Community, Adult & Adults Early Intervention",Residential Home Long Stay Fees,,28/07/14,"38,473.35 "
460282,FERN BANK,Adult Services,"Community, Adult & Adults Early Intervention",Cost Centre/Attribute Errors,,28/07/14,"10,201.43 "
460282,FERN BANK,Adult Services,"Community, Adult & Adults Early Intervention",Residential Home Long Stay Fees,,28/07/14,"19,402.81 "
460282,FIELDHOUSE CARE HOME,Adult Services,"Community, Adult & Adults Early Intervention",Residential Home Long Stay Fees,,28/07/14,"1,171.00 "
460282,FIRBANK HOUSE NURSING & RESIDENTIAL CARE HOME,Adult Services,"Community, Adult & Adults Early Intervention",Residential Home Long Stay Fees,,28/07/14,"10,657.39 "
460282,FOUR SEASONS (DFK) LTD T/AS ASHURST PARK CARE HOME,Adult Services,"Community, Adult & Adults Early Intervention",Residential Home Long Stay Fees,,28/07/14,"1,118.26 "
460282,FOUR SEASONS HEALTH CARE,Adult Services,"Community, Adult & Adults Early Intervention",Residential Home Long Stay Fees,,28/07/14,"20,781.09 "
460282,GRANGEFIELD,Adult Services,"Community, Adult & Adults Early Intervention",Residential Home Long Stay Fees,,28/07/14,995.68 
460282,HATTON GRANGE,Adult Services,"Community, Adult & Adults Early Intervention",Residential Home Long Stay Fees,,28/07/14,"66,746.90 "
460282,HC ONE OF A KIND - GUIDE LANE,Adult Services,"Community, Adult & Adults Early Intervention",Residential Home Long Stay Fees,,28/07/14,"32,246.35 "
460282,HC ONE OF A KIND - KINGS PARK,Adult Services,"Community, Adult & Adults Early Intervention",Cost Centre/Attribute Errors,,28/07/14,"1,267.31 "
460282,HC ONE OF A KIND - KINGS PARK,Adult Services,"Community, Adult & Adults Early Intervention",Residential Home Long Stay Fees,,28/07/14,"36,251.48 "
460282,HILLTOP HALL,Adult Services,"Community, Adult & Adults Early Intervention",Residential Home Long Stay Fees,,28/07/14,"2,966.71 "
460282,HOLME MANOR RESIDENTIAL CARE HOME,Adult Services,"Community, Adult & Adults Early Intervention",Residential Home Long Stay Fees,,28/07/14,"1,346.51 "
460282,HOMELEIGH,Adult Services,"Community, Adult & Adults Early Intervention",Residential Home Long Stay Fees,,28/07/14,"1,100.00 "
460282,LAUREL BANK RESIDENTIAL CARE HOME LTD,Adult Services,"Community, Adult & Adults Early Intervention",Residential Home Long Stay Fees,,28/07/14,"14,648.00 "
460282,LEONARD CHESHIRE DISABILITY,Adult Services,"Community, Adult & Adults Early Intervention",Residential Home Long Stay Fees,,28/07/14,"2,820.78 "
460282,LINWOOD PARK,Public Health,Public Health,Residential Home Long Stay Fees,,28/07/14,"4,321.43 "
460282,LOUTH CARE LTD,Adult Services,"Community, Adult & Adults Early Intervention",Residential Home Long Stay Fees,,28/07/14,"1,789.14 "
460282,LYNWOOD,Adult Services,"Community, Adult & Adults Early Intervention",Residential Home Long Stay Fees,,28/07/14,"1,913.14 "
460282,MARINERS COURT CARE HOME,Adult Services,"Community, Adult & Adults Early Intervention",Residential Home Long Stay Fees,,28/07/14,"3,821.98 "
460282,MARPLE DALE HALL LTD,Adult Services,"Community, Adult & Adults Early Intervention",Residential Home Long Stay Fees,,28/07/14,"4,092.30 "
460282,MERIDIAN HEALTHCARE LTD,Adult Services,"Community, Adult & Adults Early Intervention",Cost Centre/Attribute Errors,,28/07/14,"7,491.92 "
460282,MERIDIAN HEALTHCARE LTD,Adult Services,"Community, Adult & Adults Early Intervention",Residential Home Long Stay Fees,,28/07/14,"859,513.70 "
460282,MOSS COTTAGE NURSING HOME,Adult Services,"Community, Adult & Adults Early Intervention",Cost Centre/Attribute Errors,,28/07/14,"2,217.79 "
460282,MOSS COTTAGE NURSING HOME,Adult Services,"Community, Adult & Adults Early Intervention",Residential Home Long Stay Fees,,28/07/14,"39,168.85 "
460282,MRS P RUGGEE,Adult Services,"Community, Adult & Adults Early Intervention",Residential Home Long Stay Fees,Business Payment,28/07/14,"8,579.26 "
460282,OAKWOOD CARE CENTRE,Adult Services,"Community, Adult & Adults Early Intervention",Residential Home Long Stay Fees,,28/07/14,"13,780.16 "
460282,PARK VILLA (OWNED BY CARE UK),Adult Services,"Community, Adult & Adults Early Intervention",Residential Home Long Stay Fees,,28/07/14,"14,283.41 "
460282,PENDLEBURY CARE HOMES LTD,Adult Services,"Community, Adult & Adults Early Intervention",Residential Home Long Stay Fees,,28/07/14,"1,848.09 "
460282,PENNINE CARE CENTRE,Adult Services,"Community, Adult & Adults Early Intervention",Residential Home Long Stay Fees,,28/07/14,"3,151.11 "
460282,PHOENIX FUTURES,Public Health,Public Health,Residential Home Long Stay Fees,,28/07/14,"6,486.00 "
460282,POLEBANK HALL RESIDENTIAL CARE HOME LTD,Adult Services,"Community, Adult & Adults Early Intervention",Residential Home Long Stay Fees,,28/07/14,"5,536.33 "
460282,PROGRESS ADULT SERVICES LIMITED,Adult Services,"Community, Adult & Adults Early Intervention",Residential Home Long Stay Fees,,28/07/14,"13,797.21 "
460282,SIGN,Adult Services,"Community, Adult & Adults Early Intervention",Residential Home Long Stay Fees,,28/07/14,"5,041.13 "
460282,SPINAL UNIT ACTION GROUP,Adult Services,"Community, Adult & Adults Early Intervention",Residential Home Long Stay Fees,,28/07/14,"2,054.15 "
460282,ST GEORGE'S NURSING HOME (OLDHAM) LTD,Adult Services,"Community, Adult & Adults Early Intervention",Residential Home Long Stay Fees,,28/07/14,"26,449.76 "
460282,ST LAWRENCES LODGE,Adult Services,"Community, Adult & Adults Early Intervention",Residential Home Long Stay Fees,,28/07/14,"12,698.32 "
460282,ST MARY'S CONTINUING CARE LTD,Adult Services,"Community, Adult & Adults Early Intervention",Residential Home Long Stay Fees,,28/07/14,"5,314.29 "
460282,STALEY HOUSE EPH,Adult Services,"Community, Adult & Adults Early Intervention",Residential Home Long Stay Fees,,28/07/14,"18,964.72 "
460282,SUNNY BANK PRS LTD,Adult Services,"Community, Adult & Adults Early Intervention",Residential Home Long Stay Fees,,28/07/14,"2,636.11 "
460282,THE ALEXANDRA,Adult Services,"Community, Adult & Adults Early Intervention",Residential Home Long Stay Fees,,28/07/14,"1,944.14 "
460282,THE DAVID LEWIS CENTRE,Adult Services,"Community, Adult & Adults Early Intervention",Residential Home Long Stay Fees,,28/07/14,"4,866.47 "
460282,THE DELL RESIDENTIAL HOME,Adult Services,"Community, Adult & Adults Early Intervention",Residential Home Long Stay Fees,,28/07/14,"1,679.05 "
460282,THE HESLEY GROUP LTD,Adult Services,"Community, Adult & Adults Early Intervention",Residential Home Long Stay Fees,,28/07/14,"7,812.00 "
460282,THE JOSEPH COX CHARITY,Adult Services,"Community, Adult & Adults Early Intervention",Residential Home Long Stay Fees,,28/07/14,"3,592.24 "
460282,THE ROYAL ELMS REST HOMES,Adult Services,"Community, Adult & Adults Early Intervention",Residential Home Long Stay Fees,,28/07/14,"1,841.58 "
460282,THE VICARAGE RESIDENTIAL CARE HOME,Adult Services,"Community, Adult & Adults Early Intervention",Residential Home Long Stay Fees,,28/07/14,"27,998.75 "
460282,THORNCLIFFE GRANGE NURSING HOME,Adult Services,"Community, Adult & Adults Early Intervention",Cost Centre/Attribute Errors,,28/07/14,"1,235.63 "
460282,THORNCLIFFE GRANGE NURSING HOME,Adult Services,"Community, Adult & Adults Early Intervention",Residential Home Long Stay Fees,,28/07/14,"29,949.70 "
460282,TURNING POINT,Adult Services,"Community, Adult & Adults Early Intervention",Residential Home Long Stay Fees,,28/07/14,"5,040.15 "
460282,TURNING POINT,Other Services,Director of Finance,Cost Centre/Attribute Errors,,28/07/14,"2,862.57 "
460282,TURNING POINT,Public Health,Public Health,Residential Home Long Stay Fees,,28/07/14,"3,220.00 "
460282,UNITED RESPONSE,Adult Services,"Community, Adult & Adults Early Intervention",Residential Home Long Stay Fees,,28/07/14,"6,172.54 "
460282,VICTORIA NURSING HOME,Adult Services,"Community, Adult & Adults Early Intervention",Residential Home Long Stay Fees,,28/07/14,"8,768.57 "
460282,WESTMINSTER HEALTH CARE LTD,Adult Services,"Community, Adult & Adults Early Intervention",Residential Home Long Stay Fees,,28/07/14,"2,039.36 "
460282,WINDMILL CARE HOME,Adult Services,"Community, Adult & Adults Early Intervention",Residential Home Long Stay Fees,,28/07/14,"2,139.33 "
460282,WOODLANDS RESIDENTIAL CARE HOME,Adult Services,"Community, Adult & Adults Early Intervention",Residential Home Long Stay Fees,,28/07/14,"16,872.14 "
470574,ACE SAFETY ACADEMY,Technical,Places,Training Course Costs,,01/07/14,"1,560.00 "
470574,ACORN LIGHTING SERVICES LTD,Technical,Places,Sub-contractor Services,,01/07/14,"1,321.25 "
470574,AGGREGATE INDUSTRIES UK LIMITED,Technical,Places,General Materials,,01/07/14,"2,212.68 "
470574,AMBERON LTD,Technical,Places,Additional Hire,,01/07/14,754.29 
470574,ARCO LIMITED,Civil Engineers,"Economic Growth, Investment and Sustainability",Debits Goods Received,,01/07/14,677.53 
470574,ARCO LIMITED,Sustainable Growth,Places,General Materials,,01/07/14,71.19 
470574,BLOK N MESH UK LTD,Technical,Places,General Materials,,01/07/14,"4,242.00 "
470574,BROXAP LIMITED,Technical,Places,General Materials,,01/07/14,"2,335.00 "
470574,CONSOLIDATED POWER TOOLS,Technical,Places,General Materials,,01/07/14,"1,393.04 "
470574,EAGLE CIVIL ENGINEERING LTD,Technical,Places,Sub-contractor Services,,01/07/14,"31,992.54 "
470574,KENNY BROTHERS,Technical,Places,Sub-contractor Services,,01/07/14,"5,136.46 "
470574,KONSTRUCTA HIRE LIMITED,Technical,Places,Additional Hire,,01/07/14,735.14 
470574,MALLATITE LTD,Civil Engineers,"Economic Growth, Investment and Sustainability",Debits Goods Received,,01/07/14,"5,234.80 "
470574,MALLATITE LTD,Technical,Places,Stores Purchases,,01/07/14,200.00 
470574,MARSHALLS MONO LTD,Technical,Places,General Materials,,01/07/14,"1,627.32 "
470574,NEWEY & EYRE LTD,Civil Engineers,"Economic Growth, Investment and Sustainability",Debits Goods Received,,01/07/14,830.00 
470574,P F CUSACK LTD,Civil Engineers,"Economic Growth, Investment and Sustainability",Debits Goods Received,,01/07/14,582.09 
470574,P F CUSACK LTD,Technical,Places,General Materials,,01/07/14,95.82 
470574,SIGNPOST SOLUTIONS LIMITED,Technical,Places,General Materials,,01/07/14,760.00 
470574,STOCKPORT MBC,Engineers Client,"Economic Growth, Investment and Sustainability",General Materials,,01/07/14,181.71 
470574,STOCKPORT MBC,Technical,Places,General Materials,,01/07/14,320.50 
470574,SUPPLY UK HIRE SHOPS LTD,Technical,Places,General Materials,,01/07/14,850.00 
470574,TARMAC CENTRAL LIMITED,Civil Engineers,"Economic Growth, Investment and Sustainability",Debits Goods Received,,01/07/14,"3,713.73 "
470574,TARMAC CENTRAL LIMITED,Technical,Places,General Materials,,01/07/14,433.42 
470574,VIATEC UK,Technical,Places,General Materials,,01/07/14,"1,276.00 "
470574,W DAVENPORT,Multiple Heads of Service,Multiple Strategic Directorates,Tax Retained Sub Contractors,Business Payment,01/07/14,-148.40 
470574,W DAVENPORT,Technical,Places,Sub-contractor Services,Business Payment,01/07/14,742.00 
470574,WOLSELEY UK LTD,Technical,Places,General Materials,,01/07/14,741.81 
470575,ACORN LIGHTING SERVICES LTD,Technical,Places,Sub-contractor Services,,07/07/14,"5,600.00 "
470575,AGGREGATE INDUSTRIES UK LIMITED,Technical,Places,General Materials,,07/07/14,"1,549.51 "
470575,ARCO LIMITED,Civil Engineers,"Economic Growth, Investment and Sustainability",Debits Goods Received,,07/07/14,"1,024.95 "
470575,ARCO LIMITED,Sustainable Growth,Places,General Materials,,07/07/14,49.59 
470575,ARCO LIMITED,Technical,Places,General Materials,,07/07/14,85.43 
470575,EAGLE CIVIL ENGINEERING LTD,Technical,Places,Sub-contractor Services,,07/07/14,"10,648.54 "
470575,KENNY BROTHERS,Technical,Places,Sub-contractor Services,,07/07/14,"14,159.13 "
470575,TARMAC CENTRAL LIMITED,Civil Engineers,"Economic Growth, Investment and Sustainability",Debits Goods Received,,07/07/14,"1,965.02 "
470576,ACE SAFETY ACADEMY,Technical,Places,Training Course Costs,,14/07/14,"2,100.00 "
470576,AGGREGATE INDUSTRIES UK LIMITED,Technical,Places,Sub-contractor Services,,14/07/14,"4,768.38 "
470576,CBS (NORTH WEST) LTD,Technical,Places,Sub-contractor Services,,14/07/14,"1,760.31 "
470576,EAGLE CIVIL ENGINEERING LTD,Technical,Places,Sub-contractor Services,,14/07/14,"8,397.82 "
470576,KEYLINE BUILDERS MERCHANTS LTD,Civil Engineers,"Economic Growth, Investment and Sustainability",Debits Goods Received,,14/07/14,973.33 
470576,KNOWLES BROTHERS WASTE MANAGEMENT LIMITED,Technical,Places,Sub-contractor Services,,14/07/14,"1,690.00 "
470576,L&R ROADLINES LTD,Technical,Places,Sub-contractor Services,,14/07/14,"2,209.13 "
470576,NEW CHARTER BUILD CO LTD,Technical,Places,Sub-contractor Services,,14/07/14,"4,252.24 "
470576,PG FABRICATIONS,Multiple Heads of Service,Multiple Strategic Directorates,Tax Retained Sub Contractors,,14/07/14,-191.10 
470576,PG FABRICATIONS,Technical,Places,Sub-contractor Services,,14/07/14,"3,305.00 "
470576,TARMAC CENTRAL LIMITED,Civil Engineers,"Economic Growth, Investment and Sustainability",Debits Goods Received,,14/07/14,"1,645.12 "
470577,ACE SAFETY ACADEMY,Technical,Places,Training Course Costs,,24/07/14,800.00 
470577,ACORN LIGHTING SERVICES LTD,Technical,Places,Sub-contractor Services,,24/07/14,"7,680.00 "
470577,AL-VAC UK LIMITED,Technical,Places,General Materials,,24/07/14,594.74 
470577,AMBERON LTD,Technical,Places,Additional Hire,,24/07/14,"2,170.72 "
470577,BPI RECYCLED PRODUCTS,Technical,Places,General Materials,,24/07/14,"1,741.38 "
470577,CASTINGS SERVICES NW LTD,Civil Engineers,"Economic Growth, Investment and Sustainability",Debits Goods Received,,24/07/14,925.00 
470577,CBS (NORTH WEST) LTD,Technical,Places,Sub-contractor Services,,24/07/14,"1,244.80 "
470577,EAGLE CIVIL ENGINEERING LTD,Technical,Places,Sub-contractor Services,,24/07/14,"28,206.54 "
470577,FIRST AID FOR ALL LTD,Technical,Places,General Materials,,24/07/14,0.00 
470577,FIRST AID FOR ALL LTD,Technical,Places,Training Course Costs,,24/07/14,631.40 
470577,INSTARMAC GROUP PLC,Civil Engineers,"Economic Growth, Investment and Sustainability",Debits Goods Received,,24/07/14,839.20 
470577,JOHN LLOYD HEYWOOD LTD,Technical,Places,Sub-contractor Services,,24/07/14,"9,689.50 "
470577,KENNY BROTHERS,Technical,Places,Sub-contractor Services,,24/07/14,"3,074.50 "
470577,KONSTRUCTA HIRE LIMITED,Technical,Places,Additional Hire,,24/07/14,784.00 
470577,P CASEY (ENVIRO) LTD,Technical,Places,Sub-contractor Services,,24/07/14,"17,271.96 "
470577,SECURETASK SECURITY LTD,Technical,Places,Sub-contractor Services,,24/07/14,"1,135.80 "
470577,VIRIDOR,Technical,Places,Sub-contractor Services,,24/07/14,"5,322.24 "
470577,W DAVENPORT,Multiple Heads of Service,Multiple Strategic Directorates,Tax Retained Sub Contractors,Business Payment,24/07/14,-148.40 
470577,W DAVENPORT,Technical,Places,Sub-contractor Services,Business Payment,24/07/14,742.00 
470578,ABLE SAFETY SOLUTIONS LTD,Technical,Places,General Materials,,28/07/14,572.60 
470578,ACORN LIGHTING SERVICES LTD,Technical,Places,Sub-contractor Services,,28/07/14,"8,800.00 "
470578,AGGREGATE INDUSTRIES UK LIMITED,Technical,Places,General Materials,,28/07/14,"1,040.32 "
470578,ARCO LIMITED,Civil Engineers,"Economic Growth, Investment and Sustainability",Debits Goods Received,,28/07/14,"1,778.30 "
470578,ARCO LIMITED,Neighbourhoods & Communities,"Community, Adult & Adults Early Intervention",Cost Centre/Attribute Errors,,28/07/14,46.08 
470578,ARCO LIMITED,Technical,Places,General Materials,,28/07/14,44.93 
470578,B & J HULME,Technical,Places,General Materials,Business Payment,28/07/14,863.90 
470578,B & W MACHINERY LIMITED,Technical,Places,Sub-contractor Services,,28/07/14,520.00 
470578,BENCHMARK BUILDING SUPPLIES LTD,Civil Engineers,"Economic Growth, Investment and Sustainability",Debits Goods Received,,28/07/14,"1,803.18 "
470578,BENCHMARK BUILDING SUPPLIES LTD,Technical,Places,General Materials,,28/07/14,249.74 
470578,CASTINGS SERVICES NW LTD,Technical,Places,General Materials,,28/07/14,502.00 
470578,EAGLE CIVIL ENGINEERING LTD,Technical,Places,Sub-contractor Services,,28/07/14,"3,481.45 "
470578,J HOPKINS CONTRACTORS  LTD,Civil Engineers,"Economic Growth, Investment and Sustainability",Debits Goods Received,,28/07/14,118.17 
470578,J HOPKINS CONTRACTORS  LTD,Technical,Places,General Materials,,28/07/14,714.00 
470578,JEWSON LTD,Technical,Places,General Materials,,28/07/14,752.52 
470578,KEYLINE BUILDERS MERCHANTS LTD,Technical,Places,General Materials,,28/07/14,528.37 
470578,MARSHALLS MONO LTD,Technical,Places,General Materials,,28/07/14,"3,406.04 "
470578,P CASEY (ENVIRO) LTD,Technical,Places,Sub-contractor Services,,28/07/14,"10,820.96 "
470578,P P O'CONNOR,Multiple Heads of Service,Multiple Strategic Directorates,Tax Retained Sub Contractors,Business Payment,28/07/14,-678.67 
470578,P P O'CONNOR,Technical,Places,Sub-contractor Services,Business Payment,28/07/14,"3,393.33 "
470578,PREMIER WASTE (UK) LTD,Technical,Places,Sub-contractor Services,,28/07/14,"1,591.61 "
470578,REACTEC LIMITED,Technical,Places,General Materials,,28/07/14,800.00 
470578,REDDIPAK LIMITED,Neighbourhoods & Communities,"Community, Adult & Adults Early Intervention",Cost Centre/Attribute Errors,,28/07/14,"3,301.20 "
470578,SMITH BROS CAER CONAN WHOLESALE LTD,Civil Engineers,"Economic Growth, Investment and Sustainability",Debits Goods Received,,28/07/14,982.30 
470578,SMITH BROS CAER CONAN WHOLESALE LTD,Technical,Places,Discounts Taken,,28/07/14,-24.55 
470578,STAINTON METAL CO LTD,Civil Engineers,"Economic Growth, Investment and Sustainability",Debits Goods Received,,28/07/14,684.00 
470578,STOCKPORT MBC,Technical,Places,General Materials,,28/07/14,"1,800.00 "
470578,TARMAC CENTRAL LIMITED,Civil Engineers,"Economic Growth, Investment and Sustainability",Debits Goods Received,,28/07/14,"4,820.11 "
470578,W DAVENPORT,Multiple Heads of Service,Multiple Strategic Directorates,Tax Retained Sub Contractors,Business Payment,28/07/14,-148.40 
470578,W DAVENPORT,Technical,Places,Sub-contractor Services,Business Payment,28/07/14,742.00 
470578,WOLSELEY UK LTD,Technical,Places,General Materials,,28/07/14,"1,534.26 "
480306,MANCHESTER & DISTRICT H. A.,Neighbourhoods & Communities,"Community, Adult & Adults Early Intervention",Supporting People Subsidy Contract,,09/07/14,"3,482.95 "
480306,NEW CHARTER HOUSING TRUST GROUP,Neighbourhoods & Communities,"Community, Adult & Adults Early Intervention",Supporting People Gross Contract,,09/07/14,"27,196.02 "
480306,NEW CHARTER HOUSING TRUST GROUP,Neighbourhoods & Communities,"Community, Adult & Adults Early Intervention",Supporting People Subsidy Contract,,09/07/14,"3,537.83 "
480307,MANCHESTER & DISTRICT H. A.,Neighbourhoods & Communities,"Community, Adult & Adults Early Intervention",Supporting People Subsidy Contract,,28/07/14,"3,482.95 "
480307,NEW CHARTER HOUSING TRUST GROUP,Neighbourhoods & Communities,"Community, Adult & Adults Early Intervention",Supporting People Gross Contract,,28/07/14,"27,196.02 "
480307,NEW CHARTER HOUSING TRUST GROUP,Neighbourhoods & Communities,"Community, Adult & Adults Early Intervention",Supporting People Subsidy Contract,,28/07/14,"1,962.83 "
3250464,CHESHIRE TURF MACHINERY,Technical,Places,General Materials,,03/07/14,650.50 
3250464,CHESHIRE TURF MACHINERY,Transport,"Economic Growth, Investment and Sustainability",Debits Goods Received,,03/07/14,62.34 
3250464,COOLAIR LOGAN LTD,Technical,Places,General Materials,,03/07/14,"3,750.00 "
3250464,DENNIS EAGLE LTD,Technical,Places,General Materials,,03/07/14,878.56 
3250464,DENNIS EAGLE LTD,Transport,"Economic Growth, Investment and Sustainability",Debits Goods Received,,03/07/14,16.32 
3250464,F & G COMMERCIALS (OLDHAM) LIMITED,Technical,Places,General Materials,,03/07/14,"1,091.78 "
3250464,HI-Q TYRESERVICES,Technical,Places,Tyre Costs,,03/07/14,"2,736.14 "
3250464,JOHNSTON SWEEPERS LTD,Technical,Places,General Materials,,03/07/14,"1,434.78 "
3250464,TAMESIDE ACCIDENT REPAIR CENTRE LTD,Technical,Places,Insurance Claim Excess,,03/07/14,500.00 
3250465,ARNOLD PLANT HIRE LTD,Technical,Places,Additional Hire,,10/07/14,"1,925.00 "
3250465,ATS EUROMASTER LTD,Technical,Places,General Materials,,10/07/14,400.36 
3250465,ATS EUROMASTER LTD,Technical,Places,Tyre Costs,,10/07/14,"18,392.48 "
3250465,BRENNTAG UK LIMITED,Technical,Places,General Equipment Purchase,,10/07/14,288.00 
3250465,BRENNTAG UK LIMITED,Transport,"Economic Growth, Investment and Sustainability",Fuel / Ad Blu,,10/07/14,700.56 
3250465,BURNT TREE GROUP LIMITED,Technical,Places,Additional Hire,,10/07/14,"2,708.30 "
3250465,CP DAVISON & SONS,Technical,Places,Additional Hire,,10/07/14,"1,120.00 "
3250465,F G ROWLAND LTD,Technical,Places,Core Hire,,10/07/14,845.00 
3250465,F. R. SHARROCK LIMITED,Technical,Places,General Materials,,10/07/14,87.08 
3250465,F. R. SHARROCK LIMITED,Transport,"Economic Growth, Investment and Sustainability",Debits Goods Received,,10/07/14,602.27 
3250465,G B OILS TA CARLTON FUELS,Transport,"Economic Growth, Investment and Sustainability",Diesel Fuel,,10/07/14,"45,089.10 "
3250465,HI-Q TYRESERVICES,Technical,Places,General Materials,,10/07/14,99.44 
3250465,HI-Q TYRESERVICES,Technical,Places,Tyre Costs,,10/07/14,"2,695.99 "
3250465,I H S HOSEMASTER,Technical,Places,General Equipment Purchase,,10/07/14,"1,200.00 "
3250465,I H S HOSEMASTER,Technical,Places,General Materials,,10/07/14,399.53 
3250465,JOHNSTON SWEEPERS LTD,Technical,Places,General Materials,,10/07/14,327.21 
3250465,JOHNSTON SWEEPERS LTD,Transport,"Economic Growth, Investment and Sustainability",Debits Goods Received,,10/07/14,416.24 
3250465,M T KAILL(PLANT HIRE)LTD,Technical,Places,Additional Hire,,10/07/14,672.00 
3250465,M T KAILL(PLANT HIRE)LTD,Technical,Places,Workshop Recharges including Misuse & Damage Costs,,10/07/14,134.20 
3250465,MANCHESTER VAN HIRE LTD,Technical,Places,Additional Hire,,10/07/14,620.00 
3250465,MANCHESTER VAN HIRE LTD,Technical,Places,Core Hire,,10/07/14,776.16 
3250465,MORRIS LUBRICANTS,Transport,"Economic Growth, Investment and Sustainability",Debits Goods Received,,10/07/14,639.61 
3250465,QPS PLASTICS,Transport,"Economic Growth, Investment and Sustainability",Debits Goods Received,,10/07/14,972.00 
3250465,SHB HIRE LTD,Technical,Places,Additional Hire,,10/07/14,"1,155.00 "
3250465,SHB HIRE LTD,Technical,Places,Core Hire,,10/07/14,"13,694.25 "
3250465,SOMERS TOTALKARE LTD,Technical,Places,General Equipment Purchase,,10/07/14,780.00 
3250465,STOCKPORT TRUCK CENTRE LTD,Technical,Places,General Materials,,10/07/14,684.10 
3250465,THE SUNLIGHT SERVICE GROUP LTD,Technical,Places,Cleaning Materials,,10/07/14,499.36 
3250465,THE SUNLIGHT SERVICE GROUP LTD,Technical,Places,Protective Clothing,,10/07/14,502.00 
3250465,THOMAS HARDIE,Technical,Places,General Materials,Business Payment,10/07/14,267.39 
3250465,THOMAS HARDIE,Transport,"Economic Growth, Investment and Sustainability",Debits Goods Received,Business Payment,10/07/14,432.18 
3250465,WILMSLOW PLANT HIRE,Technical,Places,Additional Hire,,10/07/14,552.35 
3250466,BURNT TREE GROUP LIMITED,Technical,Places,Core Hire,,17/07/14,"1,197.00 "
3250466,FAUN ZOELLER (UK) LTD,Technical,Places,General Materials,,17/07/14,567.24 
3250466,JOHNSTON SWEEPERS LTD,Technical,Places,General Equipment Repair & Maintenance,,17/07/14,193.00 
3250466,JOHNSTON SWEEPERS LTD,Technical,Places,General Materials,,17/07/14,931.93 
3250466,JOHNSTON SWEEPERS LTD,Technical,Places,Tyre Costs,,17/07/14,48.46 
3250466,TERBERG MATEC UK LTD,Technical,Places,General Materials,,17/07/14,965.09 
5062192,GENERAL UTILITIES NORTHWEST LTD,Technical,Places,Engineers Works,,17/07/14,600.00 
5067228,GENERAL UTILITIES NORTHWEST LTD,Technical,Places,Engineers Works,,17/07/14,620.00 
5142480,M.C. & M.A. STEWART HAULAGE LTD,Operations,Places,General Materials,,02/07/14,"2,054.60 "
5142483,M.C. & M.A. STEWART HAULAGE LTD,Operations,Places,General Materials,,24/07/14,"3,440.00 "
5144229,D FISHER,Children's Services,Childrens Services,Professional Child Services,Business Payment,01/07/14,500.00 
5152242,KAPLAN FINANCIAL,Resource Management,Director of Finance,Training Course Costs,,01/07/14,501.67 
5152654,KAPLAN FINANCIAL,Resource Management,Director of Finance,Training Course Costs,,01/07/14,501.66 
5153194,ELECTRICITY NORTH WEST LTD,Technical,Places,Footway Crossing Expenditure Engineers Recharge,,07/07/14,609.99 
5153586,WEST SUSSEX COUNTY COUNCIL,Public Health,Public Health,Professional Services,,24/07/14,616.37 
5154015,NEO360 LTD,Public Health,Public Health,Computer Software,,02/07/14,"12,736.00 "
5154451,OXFORD UNIVERSITY HOSPITALS NHS TRUST,Public Health,Public Health,Professional Services,,09/07/14,957.59 
5155262,THE FURNISHING SERVICE LTD,Neighbourhoods & Communities,"Community, Adult & Adults Early Intervention",Fixtures & Fittings Purchase,,24/07/14,832.09 
5155309,THE UNIVERSITY OF MANCHESTER,People & Performance,Director of Governance,Training Course Costs,,28/07/14,"1,330.00 "
5155820,AR ENTERTAINMENTS,Neighbourhoods & Communities,"Community, Adult & Adults Early Intervention",Professional Entertainment Services,,03/07/14,795.00 
5155981,MIDLAND SOFTWARE LTD,People & Performance,Director of Governance,Professional Services,,14/07/14,"1,133.00 "
5156103,MIDLAND SOFTWARE LTD,People & Performance,Director of Governance,Licences,,14/07/14,"1,371.00 "
5156384,EQUIFAX LTD,Children's Services,Childrens Services,Miscellaneous Expenses,,01/07/14,796.90 
5157967,PENNINE CARE NHS TRUST,Children's Services,Childrens Services,Professional Child Services,,24/07/14,"3,481.00 "
5158076,ROYAL MAIL GROUP PLC,Exchequer,Director of Finance,Postages,,03/07/14,"9,691.04 "
5158169,TRAFFORD MBC,Children's Services,Childrens Services,Professional Services,,16/07/14,"13,795.00 "
5158476,EVERGLADES NURSERIES LTD,District Assemblies,"Community,Environmental,Adult and Health Services",Landscaping Works,,24/07/14,"9,316.36 "
5158572,GREATER MANCHESTER COMBINED AUTHORITY,Technical,Places,Passenger Transport Levy,,10/07/14,"1,614,500.00 "
5158636,ROYAL MAIL GROUP PLC,Exchequer,Director of Finance,Postages,,17/07/14,"19,526.45 "
5158663,THE PENNINE ACUTE HOSPITALS NHS TRUST,Public Health,Public Health,Professional Services,,30/07/14,"1,558.00 "
5158717,GREATER MANCHESTER WASTE DISPOSAL AUTH.,Environmental Services,Places,GMC Waste Disposal Levy,,17/07/14,"1,478,750.00 "
5159080,NACRO,Education Services,Childrens Services,Professional Services,,30/07/14,"1,200.00 "
5159249,TMP UK LTD,Education Services,Childrens Services,Statutory Advertising,,16/07/14,"1,609.00 "
5159560,ROYAL MAIL GROUP PLC,Exchequer,Director of Finance,Postages,,03/07/14,"23,249.66 "
5160192,PROFILE SECURITY SERVICES LIMITED,Education Services,Childrens Services,APT&C Basic Pay,,07/07/14,683.20 
5160212,VODAFONE,Children's Services,Childrens Services,Telephone Landline Costs,,21/07/14,599.45 
5160588,THE FURNISHING SERVICE LTD,Neighbourhoods & Communities,"Community, Adult & Adults Early Intervention",Fixtures & Fittings Purchase,,24/07/14,"1,032.79 "
5160596,ST JOHN AMBULANCE,People & Performance,Director of Governance,Training Course Costs,,24/07/14,720.00 
5160989,ROAD SURFACE TREATMENTS ASSOCIATION,Technical,Places,Engineers Works,,17/07/14,540.00 
5161435,TAMESIDE HOSPITAL NHS FOUNDATION TRUST,Public Health,Public Health,Professional Services,,24/07/14,"4,333.43 "
5161489,ADDICTION DEPENDENCY SOLUTIONS (ADS),Public Health,Public Health,Professional Services,,01/07/14,"5,019.19 "
5161615,PHS GROUP PLC,Multiple Heads of Service,Multiple Strategic Directorates,Debits,,01/07/14,"1,888.33 "
5161830,NACRO,Children's Services,Childrens Services,Professional Services,,30/07/14,"2,250.00 "
5161831,NACRO,Children's Services,Childrens Services,Professional Services,,30/07/14,"6,750.00 "
5161877,THE FURNISHING SERVICE LTD,Neighbourhoods & Communities,"Community, Adult & Adults Early Intervention",Fixtures & Fittings Purchase,,21/07/14,799.93 
5162043,THE GUINNESS PARTNERSHIP LTD,Adult Services,"Community, Adult & Adults Early Intervention",Non-Authority Accommodation Rental,,01/07/14,"3,903.20 "
5162172,RANDSTAD EDUCATION LIMITED,Education Services,Childrens Services,APT&C Basic Pay,,24/07/14,796.00 
5162293,BERTRAM LIBRARY SERVICES,Neighbourhoods & Communities,"Community, Adult & Adults Early Intervention",Purchase Books,,01/07/14,"10,814.39 "
5162483,AZZURRI COMMUNICATIONS LTD,Tameside Investment Partnership,Places,Computer Hardware Maintenance Costs,,02/07/14,"2,476.86 "
5162554,CARPET COMPANY,Children's Services,Childrens Services,Fixtures & Fittings Purchase,,30/07/14,540.00 
5162579,,Children's Services,Childrens Services,Foster Carer Agency Fees,Redacted Supplier,01/07/14,"4,200.00 "
5162599,NCER CIC,Children's Administration,Childrens Services,Examination Fees,,09/07/14,"3,755.40 "
5162639,KEYSOFT SOLUTIONS LTD,Technical,Places,Engineers Works,,09/07/14,"5,925.75 "
5162653,CARE IN MIND LTD,Adult Services,"Community, Adult & Adults Early Intervention",Residential Home Short Stay Fees,,01/07/14,"11,054.60 "
5162699,BLUE ORCHID MANAGEMENT CONSULTANTS LIMITED,Sustainable Growth,Places,Training Course Costs,,16/07/14,"3,675.00 "
5162705,MANCHESTER CITY COUNCIL,Neighbourhoods & Communities,"Community, Adult & Adults Early Intervention",Purchase Books,,10/07/14,"1,650.00 "
5162727,BLUE ORCHID MANAGEMENT CONSULTANTS LIMITED,Sustainable Growth,Places,Training Course Costs,,02/07/14,"13,220.00 "
5162820,CREATIVE SUPPORT LTD,Adult Services,"Community, Adult & Adults Early Intervention",Age Concern Fees,,09/07/14,"28,726.66 "
5163111,TRANSPORT FOR GREATER MANCHESTER,Education Services,Childrens Services,Transport Of Pupils,,03/07/14,"2,297.28 "
5163125,,Children's Services,Childrens Services,Foster Carer Agency Fees,Redacted Supplier,02/07/14,"3,454.33 "
5163130,XEROX (UK) LIMITED,"Media, Marketing & Communications",Director of Governance,Printing And Stationery,,01/07/14,"8,185.60 "
5163178,TEACHING PERSONNEL LTD,Education Services,Childrens Services,Voluntary Organisations Fees,,03/07/14,822.00 
5163183,ST HELENS COUNCIL,Children's Services,Childrens Services,Contributions,,03/07/14,"3,078.97 "
5163207,COOLSPIRIT LTD,Digital Tameside,Places,It Equipment,,01/07/14,"3,999.95 "
5163258,LEGGETT PSYCHOLOGY LTD,Education Services,Childrens Services,Professional Services,,01/07/14,"1,800.00 "
5163262,,Children's Services,Childrens Services,Childrens Homes Outside Local Authority Fees,Redacted Supplier,01/07/14,"19,975.16 "
5163268,GETRONICS UNIFIED COMMUNICATIONS UK LIMITED,Multiple Heads of Service,Multiple Strategic Directorates,Communications Equipment,,03/07/14,"16,643.00 "
5163271,SUPPLIES TEAM LIMITED,Multiple Heads of Service,Multiple Strategic Directorates,Debits,,03/07/14,645.30 
5163287,OSMIS EDUCATION LIMITED,Digital Tameside,Places,Professional Services,,03/07/14,"7,015.00 "
5163317,ADVENTURE BASED LEARNING,Neighbourhoods & Communities,"Community, Adult & Adults Early Intervention",Professional Entertainment Services,,01/07/14,"1,031.71 "
5163326,HANDICARE LIMITED,Housing,"Economic Growth, Investment and Sustainability",Improvement Grants - Final Mandatory,,03/07/14,"2,183.00 "
5163331,"GROUNDWORK M/CR,SALFORD,STOCKPORT,TAMESIDE&TRAFFOD",Education Services,Childrens Services,Materials,,01/07/14,"6,546.81 "
5163333,,Children's Services,Childrens Services,Childrens Homes Outside Local Authority Fees,Redacted Supplier,01/07/14,"7,429.71 "
5163339,BHA FOR EQUALITY,Public Health,Public Health,Professional Services,,07/07/14,"3,000.00 "
5163344,STOCKPORT MBC,Other Services,Director of Finance,Project Costs,,01/07/14,"14,750.00 "
5163347,MACK 4 LIMITED,Housing,"Economic Growth, Investment and Sustainability",Improvement Grants - Final Mandatory,,01/07/14,"4,080.00 "
5163353,ADCS LTD,Children's Services,Childrens Services,Conference/Seminar Expenses For Staff,,30/07/14,255.00 
5163353,ADCS LTD,Strategy & Early Intervention,Childrens Services,Conference/Seminar Expenses For Staff,,30/07/14,255.00 
5163365,MACK 4 LIMITED,Housing,"Economic Growth, Investment and Sustainability",Improvement Grants - Final Mandatory,,01/07/14,"3,664.00 "
5163412,EQUIFAX LTD,Audit & Risk Management,Director of Finance,Professional Services,,01/07/14,"3,031.56 "
5163455,THE FURNISHING SERVICE LTD,Neighbourhoods & Communities,"Community, Adult & Adults Early Intervention",Fixtures & Fittings Purchase,,01/07/14,632.81 
5163509,THE FURNISHING SERVICE LTD,Neighbourhoods & Communities,"Community, Adult & Adults Early Intervention",Fixtures & Fittings Purchase,,03/07/14,"1,171.55 "
5163514,ASHTON SIXTH FORM COLLEGE,Education Services,Childrens Services,Professional Services,,09/07/14,"6,230.64 "
5163546,THE FURNISHING SERVICE LTD,Neighbourhoods & Communities,"Community, Adult & Adults Early Intervention",Fixtures & Fittings Purchase,,03/07/14,779.54 
5163548,AUDITWARE SYSTEMS LIMTED,Audit & Risk Management,Director of Finance,Computer Software Maintenance Costs,,03/07/14,"1,540.00 "
5163562,AGGREGATE INDUSTRIES UK LIMITED,Technical,Places,HRA Repairs Engineers Recharge,,09/07/14,"14,193.67 "
5163569,MIDLAND SOFTWARE LTD,People & Performance,Director of Governance,Professional Services,,14/07/14,879.04 
5163571,EON ENERGY,Technical,Places,Electricity,,10/07/14,"2,798.25 "
5163574,HEALTH MANAGEMENT (UK) LTD,People & Performance,Director of Governance,Professional Consultancy Services,,16/07/14,"12,092.40 "
5163581,RANDSTAD EDUCATION LIMITED,Education Services,Childrens Services,APT&C Basic Pay,,14/07/14,995.00 
5163668,NORTHENDEN TRAVEL LTD,Children's Services,Childrens Services,Staff Travel Costs,,24/07/14,667.95 
5163674,ANVIL MASTERS,Neighbourhoods & Communities,"Community, Adult & Adults Early Intervention",General Materials,,07/07/14,795.65 
5163678,ELECTRICITY NORTH WEST LTD,Technical,Places,Sub-contractor Services,,03/07/14,609.99 
5163682,ASONE DESIGN LIMITED,Sustainable Growth,Places,Professional Services,,09/07/14,"1,500.00 "
5163683,ELECTRICITY NORTH WEST LTD,Technical,Places,Street Lighting,,07/07/14,739.98 
5163685,STOCKPORT NHS FOUNDATION TRUST,Public Health,Public Health,Professional Services,,02/07/14,"327,582.00 "
5163720,UNITED UTILITIES WATER PLC,Education Services,Childrens Services,Metered Water Costs,,02/07/14,"2,027.15 "
5163758,CARILLION SERVICES LIMITED,Education Services,Childrens Services,Refreshments,,01/07/14,574.70 
5163762,ULVERSCROFT LARGE PRINT  BOOKS LTD,Neighbourhoods & Communities,"Community, Adult & Adults Early Intervention",Purchase Books,,01/07/14,984.36 
5163797,,Children's Services,Childrens Services,Childrens Homes Outside Local Authority Fees,Redacted Supplier,03/07/14,"10,692.86 "
5163853,,Children's Services,Childrens Services,Foster Carer Agency Fees,Redacted Supplier,01/07/14,800.00 
5163871,THE FAMILY UNIT LTD,Adult Services,"Community, Adult & Adults Early Intervention",Homecare Fees,,01/07/14,"3,416.00 "
5163872,THE FAMILY UNIT LTD,Adult Services,"Community, Adult & Adults Early Intervention",Homecare Fees,,07/07/14,"3,600.00 "
5163883,J HOPKINS CONTRACTORS  LTD,Engineers Client,"Economic Growth, Investment and Sustainability",Road Marking Works,,10/07/14,"9,886.24 "
5163884,J HOPKINS CONTRACTORS  LTD,Engineers Client,"Economic Growth, Investment and Sustainability",Road Marking Works,,10/07/14,"178,631.43 "
5163884,J HOPKINS CONTRACTORS  LTD,Technical,Places,Anti-skid Surface Repairs,,10/07/14,"67,213.00 "
5163900,MERIDIAN (BRIGHTON LIMITED),Tameside Investment Partnership,Places,Building & Contents Insurance,,02/07/14,"2,723.23 "
5163937,BT PLC,Asset Mgmt & Investment Partnership Mgmt,Places,Telephone Landline Costs,,02/07/14,"2,040.18 "
5163938,BT PLC,Asset Mgmt & Investment Partnership Mgmt,Places,Telephone Landline Costs,,16/07/14,"1,963.23 "
5163939,BT PLC,Asset Mgmt & Investment Partnership Mgmt,Places,Telephone Landline Costs,,02/07/14,"1,963.23 "
5163953,BT PLC,Asset Mgmt & Investment Partnership Mgmt,Places,Telephone Landline Costs,,02/07/14,"1,621.88 "
5163956,BT PLC,Asset Mgmt & Investment Partnership Mgmt,Places,Telephone Landline Costs,,02/07/14,"1,118.00 "
5163962,GVA GRIMLEY LTD,Asset Mgmt & Investment Partnership Mgmt,Places,Business Rates,,02/07/14,"34,984.00 "
5163973,INSPIREDSPACES TAMESIDE LTD,Asset Management and Investment Partnership Management,"Economic Growth, Investment and Sustainability",Adaptations To Buildings,,02/07/14,"7,919.83 "
5163973,INSPIREDSPACES TAMESIDE LTD,Asset Management and Investment Partnership Management,"Economic Growth, Investment and Sustainability",Telecom,,02/07/14,"13,863.12 "
5163973,INSPIREDSPACES TAMESIDE LTD,Asset Mgmt & Investment Partnership Mgmt,Places,Professional Services,,02/07/14,"80,900.00 "
5163973,INSPIREDSPACES TAMESIDE LTD,Tameside Investment Partnership,Places,Hire Of Rooms,,02/07/14,"-20,319.70 "
5163973,INSPIREDSPACES TAMESIDE LTD,Tameside Investment Partnership,Places,Miscellaneous Expenses,,02/07/14,"459,283.75 "
5163981,INSPIREDSPACES TAMESIDE LTD,Asset Management and Investment Partnership Management,"Economic Growth, Investment and Sustainability",Telecom,,02/07/14,"8,803.48 "
5163981,INSPIREDSPACES TAMESIDE LTD,Cultural and Customer Services,"Community,Environmental,Adult and Health Services",New Accommodation Works,,02/07/14,"9,685.81 "
5163981,INSPIREDSPACES TAMESIDE LTD,Tameside Investment Partnership,Places,Agency Staff,,02/07/14,"11,713.50 "
5163981,INSPIREDSPACES TAMESIDE LTD,(blank),(blank),Demolition Works,,02/07/14,"142,755.16 "
5163985,TAMESIDE HOSPITAL NHS FOUNDATION TRUST,People & Performance,Director of Governance,Professional Consultancy Services,,14/07/14,"3,612.00 "
5164004,NPOWER LIMITED,Tameside Investment Partnership,Places,Electricity,,02/07/14,"2,468.74 "
5164012,SOUTHERN ELECTRIC GAS,Tameside Investment Partnership,Places,Electricity,,01/07/14,540.83 
5164019,NPOWER LIMITED,Tameside Investment Partnership,Places,Electricity,,02/07/14,"6,993.48 "
5164025,UNITED UTILITIES WATER PLC,Tameside Investment Partnership,Places,Metered Water Costs,,02/07/14,"1,152.51 "
5164026,NPOWER LIMITED,Tameside Investment Partnership,Places,Electricity,,02/07/14,"1,625.57 "
5164028,NPOWER LIMITED,Tameside Investment Partnership,Places,Electricity,,02/07/14,"1,426.21 "
5164029,ELECTRICITY NORTH WEST LTD,Technical,Places,Reactive Works Engineers Recharge,,07/07/14,609.99 
5164034,NPOWER LIMITED,Tameside Investment Partnership,Places,Electricity,,02/07/14,"1,034.12 "
5164036,NPOWER LIMITED,Tameside Investment Partnership,Places,Electricity,,02/07/14,"2,023.80 "
5164038,NPOWER LIMITED,Tameside Investment Partnership,Places,Electricity,,02/07/14,589.20 
5164040,NPOWER LIMITED,Tameside Investment Partnership,Places,Electricity,,02/07/14,"1,567.64 "
5164041,NPOWER LIMITED,Tameside Investment Partnership,Places,Electricity,,02/07/14,613.50 
5164042,NPOWER LIMITED,Tameside Investment Partnership,Places,Electricity,,02/07/14,880.61 
5164044,NPOWER LIMITED,Tameside Investment Partnership,Places,Electricity,,02/07/14,715.99 
5164045,CIVICA UK LTD,Exchequer,Director of Finance,Subscriptions,,03/07/14,"10,933.43 "
5164046,NPOWER LIMITED,Tameside Investment Partnership,Places,Electricity,,02/07/14,738.57 
5164047,NPOWER LIMITED,Tameside Investment Partnership,Places,Electricity,,02/07/14,"1,014.25 "
5164048,UNITED UTILITIES WATER PLC,Tameside Investment Partnership,Places,Metered Water Costs,,02/07/14,586.85 
5164049,NPOWER LIMITED,Tameside Investment Partnership,Places,Electricity,,02/07/14,979.14 
5164057,NPOWER LIMITED,Tameside Investment Partnership,Places,Electricity,,02/07/14,"2,488.54 "
5164058,NPOWER LIMITED,Tameside Investment Partnership,Places,Electricity,,02/07/14,"21,443.45 "
5164060,NPOWER LIMITED,Education Services,Childrens Services,Electricity,,02/07/14,"1,489.43 "
5164061,UNITED UTILITIES WATER PLC,Tameside Investment Partnership,Places,Metered Water Costs,,02/07/14,"1,539.80 "
5164063,NPOWER LIMITED,Tameside Investment Partnership,Places,Electricity,,02/07/14,"1,857.77 "
5164065,NPOWER LIMITED,Tameside Investment Partnership,Places,Electricity,,02/07/14,842.49 
5164101,GREENSCAPE,Operations,Places,General Materials,,09/07/14,"1,805.00 "
5164105,PG FABRICATIONS,Operations,Places,General Materials,,09/07/14,990.00 
5164113,ELECTRICITY NORTH WEST LTD,Technical,Places,Street Lighting,,03/07/14,609.99 
5164119,ELECTRICITY NORTH WEST LTD,Technical,Places,Sub-contractor Services,,09/07/14,609.99 
5164128,POSITIVE STEPS OLDHAM,Strategy & Early Intervention,Childrens Services,Professional Services,,16/07/14,"36,986.30 "
5164157,P HODGSON MARLORE LTD,Sustainable Growth,Places,Planning Fee Income,,21/07/14,575.00 
5164168,TAMESIDE ARTS LTD,Adult Services,"Community, Adult & Adults Early Intervention",Professional Services,,01/07/14,"1,040.40 "
5164172,ELECTRICITY NORTH WEST LTD,Technical,Places,Sub-contractor Services,,07/07/14,609.99 
5164174,,Children's Services,Childrens Services,Childrens Homes Outside Local Authority Fees,Redacted Supplier,10/07/14,"8,142.90 "
5164183,CALLROUND LIMITED,Education Services,Childrens Services,Professional Services,,10/07/14,"1,800.00 "
5164201,CITY LIFT SERVICES (NW) LTD,Adult Services,"Community, Adult & Adults Early Intervention",General Equipment Repair & Maintenance,,21/07/14,"2,630.00 "
5164210,,Children's Services,Childrens Services,Foster Carer Agency Fees,Redacted Supplier,01/07/14,"2,384.97 "
5164222,THE FURNISHING SERVICE LTD,Neighbourhoods & Communities,"Community, Adult & Adults Early Intervention",Fixtures & Fittings Purchase,,03/07/14,584.20 
5164238,NORTH WEST EMPLOYERS,People & Performance,Director of Governance,Training Course Costs,,10/07/14,"4,050.00 "
5164249,CONCEPT CARPETS,Adult Services,"Community, Adult & Adults Early Intervention",Fixtures & Fittings Purchase,,07/07/14,"1,700.00 "
5164262,THE FURNISHING SERVICE LTD,Neighbourhoods & Communities,"Community, Adult & Adults Early Intervention",Fixtures & Fittings Purchase,,03/07/14,"1,159.07 "
5164267,WOODBROOK STONE SALES LTD,Operations,Places,General Materials,,03/07/14,"1,757.73 "
5164272,MRL HEALTHCARE LIMITED,Adult Services,"Community, Adult & Adults Early Intervention",Homecare Fees,,01/07/14,"13,759.73 "
5164274,COMMUNITY LED INITIATIVES CIC,Public Health,Public Health,Professional Services,,07/07/14,"12,500.00 "
5164279,NORTHENDEN TRAVEL LTD,Children's Services,Childrens Services,Staff Travel Costs,,09/07/14,634.44 
5164292,M6 THEATRE COMPANY LIMITED,Neighbourhoods & Communities,"Community, Adult & Adults Early Intervention",Professional Entertainment Services,,10/07/14,540.00 
5164296,REMPLOY LIMITED,Adult Services,"Community, Adult & Adults Early Intervention",Agency Staff,,10/07/14,580.52 
5164348,AGE UK TAMESIDE,Adults Early Intervention,"Community, Adult & Adults Early Intervention",Age Concern Fees,,10/07/14,"13,980.00 "
5164350,AGE UK TAMESIDE,Adults Early Intervention,"Community, Adult & Adults Early Intervention",Professional Services,,10/07/14,"20,790.00 "
5164358,MOSSLEY TOWN TEAM,You Choose,Director of Governance,Grants to Organisations,Business Payment,30/07/14,"1,500.00 "
5164379,WILDE CONSULTING ENGINEERS,Engineers Client,"Economic Growth, Investment and Sustainability",Engineers -External,,16/07/14,"7,944.07 "
5164380,TAMESIDE COLLEGE,Education Services,Childrens Services,Professional Services,,01/07/14,"298,862.81 "
5164382,AGE UK TAMESIDE,Adult Services,"Community, Adult & Adults Early Intervention",Age Concern Fees,,09/07/14,"34,419.66 "
5164383,NETWORK CONNECT LTD,Digital Tameside,Places,It Equipment,,30/07/14,"3,681.84 "
5164384,WILDE CONSULTING ENGINEERS,Engineers Client,"Economic Growth, Investment and Sustainability",Engineers -External,,16/07/14,"12,797.40 "
5164384,WILDE CONSULTING ENGINEERS,Engineers Client,"Economic Growth, Investment and Sustainability",Street Lighting Works,,16/07/14,255.48 
5164387,AGE UK TAMESIDE,Adults Early Intervention,"Community, Adult & Adults Early Intervention",Professional Services,,30/07/14,"24,250.02 "
5164388,AGE UK TAMESIDE,Public Health,Public Health,Professional Services,,01/07/14,"13,000.00 "
5164398,J P KELSEY PLUMBING & HEATING LTD,Housing,"Economic Growth, Investment and Sustainability",Improvement Grants - Final Mandatory,,03/07/14,"4,115.00 "
5164409,THORNEYCROFT SOLICITORS,Multiple Heads of Service,Multiple Strategic Directorates,Claims Settled,,17/07/14,"10,000.00 "
5164412,SANCTUARY HOUSING  ASSOCIATION,Tameside Investment Partnership,Places,Non-Authority Accommodation Rental,,02/07/14,"2,902.07 "
5164415,CREATIVE SUPPORT LTD,Adult Services,"Community, Adult & Adults Early Intervention",Independent Sector Care Fees,,09/07/14,"67,669.36 "
5164418,OCR,Sustainable Growth,Places,Examination Fees,,10/07/14,643.20 
5164428,CGIS WEST POINT LTD,Other Services,Director of Finance,Non-Authority Accommodation Rental,,01/07/14,"8,130.08 "
5164435,HOUSING AND CARE 21,Adult Services,"Community, Adult & Adults Early Intervention",Homecare Fees,,09/07/14,"12,764.47 "
5164436,HOUSING AND CARE 21,Adult Services,"Community, Adult & Adults Early Intervention",Homecare Fees,,09/07/14,"15,293.43 "
5164438,HOUSING AND CARE 21,Adult Services,"Community, Adult & Adults Early Intervention",Homecare Fees,,09/07/14,"15,240.17 "
5164439,HOUSING AND CARE 21,Adult Services,"Community, Adult & Adults Early Intervention",Homecare Fees,,09/07/14,"16,328.58 "
5164440,HOUSING AND CARE 21,Adult Services,"Community, Adult & Adults Early Intervention",Homecare Fees,,09/07/14,"15,974.01 "
5164441,HOUSING AND CARE 21,Adult Services,"Community, Adult & Adults Early Intervention",Homecare Fees,,09/07/14,"15,021.45 "
5164448,,Children's Services,Childrens Services,Homecare Fees,Redacted Supplier,03/07/14,925.00 
5164451,PG FABRICATIONS,Housing,"Economic Growth, Investment and Sustainability",Engineers -External,,02/07/14,"1,656.00 "
5164474,,Children's Services,Childrens Services,Childrens Homes Outside Local Authority Fees,Redacted Supplier,14/07/14,"17,050.00 "
5164481,,Children's Services,Childrens Services,Childrens Homes Outside Local Authority Fees,Redacted Supplier,14/07/14,"13,451.83 "
5164497,MANCHESTER COMMUNITY TRANSPORT LIMITED,Education Services,Childrens Services,Hired Transport,,01/07/14,"11,360.00 "
5164528,STAMFORD CARS UK LTD,Education Services,Childrens Services,Transport Of Pupils,,01/07/14,952.00 
5164532,GREENSCAPE,Neighbourhoods & Communities,"Community, Adult & Adults Early Intervention",General Materials,,07/07/14,"2,812.80 "
5164554,JULIE CARTER,Adult Services,"Community, Adult & Adults Early Intervention",Professional Interpreter Services,Business Payment,01/07/14,"1,163.00 "
5164557,SANCTUARY HOUSING  ASSOCIATION,Tameside Investment Partnership,Places,Gas,,03/07/14,"38,653.96 "
5164558,,Children's Services,Childrens Services,Foster Carer Agency Fees,Redacted Supplier,01/07/14,"2,543.40 "
5164559,,Children's Services,Childrens Services,Foster Carer Agency Fees,Redacted Supplier,01/07/14,"4,380.30 "
5164560,,Children's Services,Childrens Services,Foster Carer Agency Fees,Redacted Supplier,01/07/14,"4,380.30 "
5164563,FORBES SOLICITORS,Multiple Heads of Service,Multiple Strategic Directorates,Allocation Of Income,,16/07/14,"-15,596.38 "
5164563,FORBES SOLICITORS,Multiple Heads of Service,Multiple Strategic Directorates,Payment On Account,,16/07/14,"16,215.48 "
5164569,,Children's Services,Childrens Services,Foster Carer Agency Fees,Redacted Supplier,01/07/14,"2,825.00 "
5164574,CBS (NORTH WEST) LTD,Operations,Places,General Materials,,24/07/14,769.10 
5164575,PAYPARTNERS LTD (MONTHLY),Adult Services,"Community, Adult & Adults Early Intervention",Sub-contractor Services,,01/07/14,"5,474.00 "
5164581,GREENSCAPE,Operations,Places,General Materials,,03/07/14,720.00 
5164583,TOPMARK CLAIMS MANAGEMENT LTD,Other Services,Director of Finance,Miscellaneous Insurance,,14/07/14,"15,500.00 "
5164587,GREENSCAPE,Operations,Places,Agency Staff,,03/07/14,"1,167.41 "
5164594,STALYBRIDGE OLD BAND,Neighbourhoods & Communities,"Community, Adult & Adults Early Intervention",Professional Entertainment Services,,03/07/14,600.00 
5164595,MOSSLEY BRASS BAND,Neighbourhoods & Communities,"Community, Adult & Adults Early Intervention",Professional Entertainment Services,,03/07/14,750.00 
5164596,ASHTON UNDER LYNE BRASS BAND,Neighbourhoods & Communities,"Community, Adult & Adults Early Intervention",Professional Entertainment Services,,03/07/14,750.00 
5164598,ROTHWELL TEMPERANCE BAND,Neighbourhoods & Communities,"Community, Adult & Adults Early Intervention",Professional Entertainment Services,,03/07/14,"1,000.00 "
5164600,FODEN'S BAND,Neighbourhoods & Communities,"Community, Adult & Adults Early Intervention",Professional Entertainment Services,,03/07/14,"2,500.00 "
5164604,M NELSON & SON,Operations,Places,Engineers Works,,09/07/14,900.00 
5164605,DOMAIN CARE NORTH WEST LTD,Adult Services,"Community, Adult & Adults Early Intervention",Homecare Fees,,01/07/14,831.48 
5164607,DOMAIN CARE NORTH WEST LTD,Adult Services,"Community, Adult & Adults Early Intervention",Homecare Fees,,07/07/14,"1,344.00 "
5164609,KIELEY BROS LTD,Engineers Client,"Economic Growth, Investment and Sustainability",Road Marking Works,,17/07/14,"43,618.58 "
5164609,KIELEY BROS LTD,(blank),(blank),Road Marking Works,,17/07/14,"275,380.38 "
5164619,THE PENNINE ACUTE HOSPITALS NHS TRUST,Public Health,Public Health,Professional Services,,30/07/14,"2,265.00 "
5164622,THE GUINNESS PARTNERSHIP LTD,Adult Services,"Community, Adult & Adults Early Intervention",Non-Authority Accommodation Rental,,02/07/14,"1,172.45 "
5164623,THE GUINNESS PARTNERSHIP LTD,Adult Services,"Community, Adult & Adults Early Intervention",Non-Authority Accommodation Rental,,02/07/14,"3,903.20 "
5164642,DOMAIN CARE NORTH WEST LTD,Adult Services,"Community, Adult & Adults Early Intervention",Homecare Fees,,31/07/14,"3,960.00 "
5164649,PAYPARTNERS LTD (MONTHLY),Adult Services,"Community, Adult & Adults Early Intervention",Sub-contractor Services,,01/07/14,"1,001.00 "
5164662,PULSE,Adult Services,"Community, Adult & Adults Early Intervention",Homecare Fees,,10/07/14,"1,830.24 "
5164663,OLDHAM COLLEGE,Education Services,Childrens Services,Professional Services,,01/07/14,"6,743.00 "
5164665,CLOVERLEAF ADVOCACY 2000 LTD,Adults Early Intervention,"Community, Adult & Adults Early Intervention",Professional Services,,02/07/14,"12,408.30 "
5164673,RANDSTAD EDUCATION LIMITED,Education Services,Childrens Services,APT&C Basic Pay,,01/07/14,995.00 
5164675,RANDSTAD EDUCATION LIMITED,Education Services,Childrens Services,APT&C Basic Pay,,01/07/14,550.00 
5164676,RANDSTAD EDUCATION LIMITED,Education Services,Childrens Services,APT&C Basic Pay,,01/07/14,575.00 
5164678,RANDSTAD EDUCATION LIMITED,Education Services,Childrens Services,APT&C Basic Pay,,01/07/14,995.00 
5164680,RANDSTAD EDUCATION LIMITED,Education Services,Childrens Services,APT&C Basic Pay,,01/07/14,995.00 
5164682,RANDSTAD EDUCATION LIMITED,Education Services,Childrens Services,APT&C Basic Pay,,01/07/14,995.00 
5164685,RANDSTAD EDUCATION LIMITED,Education Services,Childrens Services,APT&C Basic Pay,,01/07/14,995.00 
5164688,RANDSTAD EDUCATION LIMITED,Education Services,Childrens Services,APT&C Basic Pay,,01/07/14,995.00 
5164691,DOMAIN CARE NORTH WEST LTD,Adult Services,"Community, Adult & Adults Early Intervention",Homecare Fees,,01/07/14,"4,480.00 "
5164693,,Children's Services,Childrens Services,Foster Carer Agency Fees,Redacted Supplier,01/07/14,"4,487.40 "
5164701,STEP AHEAD RESOURCE SERVICES,SCYP ,Childrens Services,Living Without Formal Support,,01/07/14,850.00 
5164706,STEP AHEAD RESOURCE SERVICES,SCYP ,Childrens Services,Living Without Formal Support,,01/07/14,750.00 
5164709,STEP AHEAD RESOURCE SERVICES,SCYP ,Childrens Services,Living Without Formal Support,,01/07/14,750.00 
5164711,STEP AHEAD RESOURCE SERVICES,SCYP ,Childrens Services,Living Without Formal Support,,01/07/14,850.00 
5164714,VISION FOR EDUCATION LIMITED,Education Services,Childrens Services,APT&C Basic Pay,,03/07/14,575.00 
5164731,,Children's Services,Childrens Services,Foster Carer Agency Fees,Redacted Supplier,10/07/14,800.00 
5164750,PHOENIX SOFTWARE LTD,Digital Tameside,Places,Computer Software,,01/07/14,"34,656.00 "
5164770,CBS (NORTH WEST) LTD,Operations,Places,General Materials,,09/07/14,588.67 
5164776,CBS (NORTH WEST) LTD,Environmental Services,"Economic Growth, Investment and Sustainability",Engineers -External,,01/07/14,"2,076.00 "
5164777,LIMONTA SMITH JV LTD,Cultural and Customer Services,"Community,Environmental,Adult and Health Services",New Accommodation Works,,01/07/14,"5,888.48 "
5164794,,Adult Services,"Community, Adult & Adults Early Intervention",Day Care Fees,Redacted Supplier,01/07/14,791.51 
5164803,TYNETEC,Adult Services,"Community, Adult & Adults Early Intervention",Purchase General Office Equipment,,10/07/14,"8,595.30 "
5164805,GLASDON UK LTD,Operations,Places,General Materials,,10/07/14,849.92 
5164819,NPOWER LIMITED,Tameside Investment Partnership,Places,Electricity,,02/07/14,548.84 
5164824,ATTACHMENT WORKS LTD,Children's Services,Childrens Services,Professional Child Services,,01/07/14,510.00 
5164840,SMITH JONES SOLICITORS LTD,Multiple Heads of Service,Multiple Strategic Directorates,Claims Settled,,07/07/14,"6,000.00 "
5164841,DWP,Multiple Heads of Service,Multiple Strategic Directorates,Claims Settled,,07/07/14,627.00 
5164857,OLDHAM COUNCIL,Neighbourhoods & Communities,"Community, Adult & Adults Early Intervention",Contingency Provisions,,01/07/14,"3,000.00 "
5164861,,Children's Services,Childrens Services,Foster Carer Agency Fees,Redacted Supplier,01/07/14,"3,071.43 "
5164866,TAMESIDE COLLEGE,Education Services,Childrens Services,Professional Services,,07/07/14,"46,000.00 "
5164872,RYECROFT HALL COMMUNITY ASSOCIATION,Operations,Places,Professional Entertainment Services,,01/07/14,"1,930.00 "
5164880,UNITED UTILITIES WATER PLC,Adult Services,"Community, Adult & Adults Early Intervention",Water Rates,,02/07/14,571.84 
5164883,SCOTTISH POWER,Tameside Investment Partnership,Places,Electricity,,02/07/14,"1,325.30 "
5164885,UNITED UTILITIES WATER PLC,Tameside Investment Partnership,Places,Metered Water Costs,,02/07/14,777.75 
5164894,COMFORT CALL LIMITED,Adult Services,"Community, Adult & Adults Early Intervention",Homecare Fees,,01/07/14,"27,603.70 "
5164900,ROYAL MAIL GROUP PLC,Borough Solicitor,Director of Governance,Postages,,07/07/14,967.30 
5164901,DR CAROLINE WHITE,Public Health,Public Health,Training Course Costs,Business Payment,02/07/14,"2,040.00 "
5164907,COMFORT CALL LIMITED,Adult Services,"Community, Adult & Adults Early Intervention",Homecare Fees,,01/07/14,"28,375.11 "
5164910,READING ROOM MANCHESTER LTD,Neighbourhoods & Communities,"Community, Adult & Adults Early Intervention",Contingency Provisions,,01/07/14,982.50 
5164914,CHRISTINE  FURZER,Adult Services,"Community, Adult & Adults Early Intervention",Professional Consultancy Services,Business Payment,02/07/14,705.00 
5164915,INSPIREDSPACES TAMESIDE LTD,Asset Management and Investment Partnership Management,"Economic Growth, Investment and Sustainability",Refurbish Accommodation Works,,16/07/14,"209,024.33 "
5164915,INSPIREDSPACES TAMESIDE LTD,Engineers Client,"Economic Growth, Investment and Sustainability",Adaptations - Jobs <#500,,16/07/14,"2,000.00 "
5164915,INSPIREDSPACES TAMESIDE LTD,Tameside Investment Partnership,Places,Professional Services,,16/07/14,"22,367.19 "
5164917,CHRISTINE  FURZER,Adult Services,"Community, Adult & Adults Early Intervention",Professional Consultancy Services,Business Payment,02/07/14,"1,099.50 "
5164919,RANDSTAD EDUCATION LIMITED,Education Services,Childrens Services,APT&C Basic Pay,,01/07/14,995.00 
5164920,RANDSTAD EDUCATION LIMITED,Education Services,Childrens Services,APT&C Basic Pay,,01/07/14,575.00 
5164921,RANDSTAD EDUCATION LIMITED,Education Services,Childrens Services,APT&C Basic Pay,,01/07/14,575.00 
5164924,RANDSTAD EDUCATION LIMITED,Education Services,Childrens Services,APT&C Basic Pay,,01/07/14,550.00 
5164925,RANDSTAD EDUCATION LIMITED,Education Services,Childrens Services,APT&C Basic Pay,,01/07/14,995.00 
5164926,RANDSTAD EDUCATION LIMITED,Education Services,Childrens Services,APT&C Basic Pay,,01/07/14,995.00 
5164927,RANDSTAD EDUCATION LIMITED,Education Services,Childrens Services,APT&C Basic Pay,,01/07/14,995.00 
5164933,NORTHWEST TELECOM,Strategy & Early Intervention,Childrens Services,Telephone Equipment Repairs & Maintenance,,03/07/14,600.00 
5164934,,Children's Services,Childrens Services,Foster Carer Agency Fees,Redacted Supplier,02/07/14,"2,848.50 "
5164935,,Children's Services,Childrens Services,Foster Carer Agency Fees,Redacted Supplier,02/07/14,"2,705.94 "
5164940,VISION FOR EDUCATION LIMITED,Education Services,Childrens Services,APT&C Basic Pay,,10/07/14,575.00 
5164941,TIPTOES CHILD THERAPY SERVICES (LTD),Children's Services,Childrens Services,Professional Services,,01/07/14,"2,270.00 "
5164943,POSITIVE STEPS OLDHAM,Education Services,Childrens Services,Professional Services,,01/07/14,760.00 
5164944,POSITIVE STEPS OLDHAM,Education Services,Childrens Services,Professional Services,,01/07/14,"1,056.00 "
5164945,POSITIVE STEPS OLDHAM,Education Services,Childrens Services,Professional Services,,01/07/14,"2,112.00 "
5164954,INTRAQUEST COMMUNITY CIC,Children's Services,Childrens Services,Professional Services,,01/07/14,630.00 
5164971,SSI SCHAEFER LTD,Environmental Services,Places,Waste Disposal Fees,,16/07/14,"115,542.00 "
5164977,SCC CONSULTANCY LIMITED,Education Services,Childrens Services,Professional Services,,01/07/14,783.00 
5164978,SCC CONSULTANCY LIMITED,Education Services,Childrens Services,Professional Services,,01/07/14,773.00 
5164979,SCC CONSULTANCY LIMITED,Education Services,Childrens Services,Professional Services,,01/07/14,773.00 
5164984,TEACHING PERSONNEL LTD,Education Services,Childrens Services,APT&C Basic Pay,,01/07/14,"1,992.00 "
5164996,CBS (NORTH WEST) LTD,Operations,Places,Tree Planting Programme,,14/07/14,547.30 
5165002,TAMESIDE CITIZENS ADVICE BUREAU,Exchequer,Director of Finance,Professional Services,,03/07/14,"3,500.00 "
5165005,COURTYARD CONTINUING CARE LTD T/A COURTYARD CARE PLUS,Children's Services,Childrens Services,Homecare Fees,,14/07/14,"1,485.00 "
5165006,RADIO CABS (ASHTON)LTD,Technical,Places,Hired Transport,,01/07/14,732.80 
5165024,MICHAEL ADLARD,Children's Services,Childrens Services,Hired Transport,Business Payment,01/07/14,701.00 
5165025,RADIO CABS (ASHTON)LTD,Technical,Places,Hired Transport,,01/07/14,669.90 
5165026,RADIO CABS (ASHTON)LTD,Children's Services,Childrens Services,Hired Transport,,01/07/14,"1,881.60 "
5165028,BLACK & WHITE PROMOTIONAL PRINT SERVICES,"Media, Marketing & Communications",Director of Governance,Printing And Stationery,,03/07/14,"1,170.00 "
5165043,BLACK & WHITE PROMOTIONAL PRINT SERVICES,"Media, Marketing & Communications",Director of Governance,Printing And Stationery,,03/07/14,"1,625.00 "
5165052,TOW MASTER LTD,Neighbourhoods & Communities,"Community, Adult & Adults Early Intervention",Vehicle Repairs & Maintenance,,17/07/14,894.80 
5165060,INTEC FOR BUSINESS LTD,Audit & Risk Management,Director of Finance,Project Expenditure Home Office,,07/07/14,"1,500.00 "
5165063,MANCHESTER CITY COUNCIL,Other Services,Director of Finance,Project Costs,,03/07/14,"2,200.00 "
5165064,,Children's Services,Childrens Services,Childrens Homes Outside Local Authority Fees,Redacted Supplier,10/07/14,"13,980.00 "
5165067,STOCKPORT CP  SOCIETY,Children's Services,Childrens Services,Homecare Fees,,01/07/14,513.00 
5165079,CLIFTON CHILDREN'S SOCIETY (CSS ADOPTION),Children's Services,Childrens Services,Adoption Agency Fees,,07/07/14,"18,000.00 "
5165086,CORONA ENERGY RETAIL 4 LIMITED,Tameside Investment Partnership,Places,Gas,,02/07/14,651.49 
5165092,CORONA ENERGY RETAIL 4 LIMITED,Tameside Investment Partnership,Places,Gas,,02/07/14,"1,247.65 "
5165105, ,Adult Services,"Community, Adult & Adults Early Intervention",Day Care Fees,Redacted Supplier,02/07/14,672.96 
5165110,ADAPTACARE LTD,Housing,"Economic Growth, Investment and Sustainability",Improvement Grants - Final Mandatory,,14/07/14,"3,880.00 "
5165124,RANDSTAD EDUCATION LIMITED,Education Services,Childrens Services,APT&C Basic Pay,,02/07/14,995.00 
5165125,RANDSTAD EDUCATION LIMITED,Education Services,Childrens Services,APT&C Basic Pay,,02/07/14,995.00 
5165137,ORANGE PCS,"Media, Marketing & Communications",Director of Governance,Mobile Telephones,,01/07/14,"3,156.64 "
5165139,ORANGE PCS,"Media, Marketing & Communications",Director of Governance,Mobile Telephones,,01/07/14,859.02 
5165140,ORANGE PCS,"Media, Marketing & Communications",Director of Governance,Mobile Telephones,,01/07/14,"6,482.80 "
5165144,AGE UK TRAINING - HYDE,Education Services,Childrens Services,Professional Services,,09/07/14,"2,000.00 "
5165150,WORKS 4U SUPPORT SERVICES LIMITED,Education Services,Childrens Services,Professional Services,,02/07/14,945.00 
5165154,WORKS 4U SUPPORT SERVICES LIMITED,Education Services,Childrens Services,Professional Services,,02/07/14,"1,575.00 "
5165156,CREATIVE SUPPORT LTD,Adult Services,"Community, Adult & Adults Early Intervention",Homecare Fees,,09/07/14,"84,992.92 "
5165158,MALCOLM HOLT,Adult Services,"Community, Adult & Adults Early Intervention",Fixtures & Fittings Purchase,Business Payment,02/07/14,520.00 
5165159,MALCOLM HOLT,Adult Services,"Community, Adult & Adults Early Intervention",Building Repairs,Business Payment,02/07/14,890.00 
5165177,CREATIVE SUPPORT LTD,Adult Services,"Community, Adult & Adults Early Intervention",Homecare Fees,,09/07/14,"124,890.83 "
5165181,WORKS 4U SUPPORT SERVICES LIMITED,Education Services,Childrens Services,Professional Services,,02/07/14,"1,080.00 "
5165188,WORKS 4U SUPPORT SERVICES LIMITED,Education Services,Childrens Services,Professional Services,,02/07/14,"1,440.00 "
5165190,WORKS 4U SUPPORT SERVICES LIMITED,Education Services,Childrens Services,Professional Services,,02/07/14,900.00 
5165193,CREATIVE SUPPORT LTD,Adult Services,"Community, Adult & Adults Early Intervention",Homecare Fees,,09/07/14,"79,445.25 "
5165196, ,Children's Services,Childrens Services,Childrens Homes Outside Local Authority Fees,Redacted Supplier,10/07/14,"3,460.50 "
5165197,WORKS 4U SUPPORT SERVICES LIMITED,Education Services,Childrens Services,Professional Services,,02/07/14,900.00 
5165202,,Children's Services,Childrens Services,Foster Carer Agency Fees,Redacted Supplier,10/07/14,"3,575.85 "
5165204,NEW CHARTER HOUSING TRUST GROUP,Neighbourhoods & Communities,"Community, Adult & Adults Early Intervention",Professional Services,,02/07/14,"4,166.66 "
5165208,ROYAL MAIL GROUP PLC,Borough Solicitor,Director of Governance,Postages,,07/07/14,"5,617.25 "
5165210,ROYAL MAIL GROUP PLC,Borough Solicitor,Director of Governance,Postages,,07/07/14,"1,233.79 "
5165211,SELECT SANDWICH & COFFEE CO. LTD,Other Services,Director of Finance,Refreshments,,02/07/14,535.50 
5165215,MCI DIVENTI LTD,Digital Tameside,Places,It Equipment,,30/07/14,950.00 
5165218,THE FURNISHING SERVICE LTD,Neighbourhoods & Communities,"Community, Adult & Adults Early Intervention",Fixtures & Fittings Purchase,,10/07/14,"1,131.43 "
5165221,GRANT THORNTON UK LLP,Other Services,Director of Finance,Audit Commission Fees,,30/07/14,"34,638.25 "
5165233,SEDGEMOOR DISTRICT COUNCIL,Other Services,Director of Finance,Professional Consultancy Services,,14/07/14,"7,683.56 "
5165236,INSPIREDSPACES TAMESIDE (PROJECTCO2) LTD,Asset Mgmt & Investment Partnership Mgmt,Places,Free School Meal Costs,,07/07/14,"16,718.00 "
5165236,INSPIREDSPACES TAMESIDE (PROJECTCO2) LTD,Asset Mgmt & Investment Partnership Mgmt,Places,Refreshments,,07/07/14,"1,911.96 "
5165236,INSPIREDSPACES TAMESIDE (PROJECTCO2) LTD,Asset Mgmt & Investment Partnership Mgmt,Places,Unitary Charge Payments,,07/07/14,"780,665.20 "
5165236,INSPIREDSPACES TAMESIDE (PROJECTCO2) LTD,Asset Mgmt & Investment Partnership Mgmt,Places,Utilities,,07/07/14,"48,173.29 "
5165238,INSPIREDSPACES TAMESIDE(PROJECTCO1) LTD,Asset Mgmt & Investment Partnership Mgmt,Places,Free School Meal Costs,,07/07/14,"7,964.00 "
5165238,INSPIREDSPACES TAMESIDE(PROJECTCO1) LTD,Asset Mgmt & Investment Partnership Mgmt,Places,Unitary Charge Payments,,07/07/14,"472,509.08 "
5165238,INSPIREDSPACES TAMESIDE(PROJECTCO1) LTD,Asset Mgmt & Investment Partnership Mgmt,Places,Utilities,,07/07/14,"30,618.05 "
5165239,INSPIREDSPACES TAMESIDE LTD,Asset Mgmt & Investment Partnership Mgmt,Places,Free School Meal Costs,,07/07/14,"2,002.00 "
5165239,INSPIREDSPACES TAMESIDE LTD,Asset Mgmt & Investment Partnership Mgmt,Places,Non-Authority Accommodation Rental,,07/07/14,"72,440.42 "
5165239,INSPIREDSPACES TAMESIDE LTD,Asset Mgmt & Investment Partnership Mgmt,Places,Refreshments,,07/07/14,"1,249.26 "
5165240,,Sustainable Growth,Places,Planning Fee Income,Redacted Supplier,16/07/14,"1,155.00 "
5165241,DENTON TOWN  FOOTBALL CLUB,Neighbourhoods & Communities,"Community, Adult & Adults Early Intervention",Grants to Organisations,,02/07/14,"3,000.00 "
5165242,INSPIREDSPACES TAMESIDE LTD,Asset Mgmt & Investment Partnership Mgmt,Places,Free School Meal Costs,,07/07/14,"2,400.00 "
5165242,INSPIREDSPACES TAMESIDE LTD,Asset Mgmt & Investment Partnership Mgmt,Places,Non-Authority Accommodation Rental,,07/07/14,"54,001.37 "
5165242,INSPIREDSPACES TAMESIDE LTD,Asset Mgmt & Investment Partnership Mgmt,Places,Refreshments,,07/07/14,"1,517.16 "
5165242,INSPIREDSPACES TAMESIDE LTD,Asset Mgmt & Investment Partnership Mgmt,Places,Utilities,,07/07/14,"18,469.50 "
5165243,INSPIREDSPACES TAMESIDE LTD,Tameside Investment Partnership,"Economic Growth, Investment and Sustainability",Plant,,10/07/14,"22,052.44 "
5165243,INSPIREDSPACES TAMESIDE LTD,Tameside Investment Partnership,Places,Hire Of Rooms,,10/07/14,"-16,363.40 "
5165243,INSPIREDSPACES TAMESIDE LTD,Tameside Investment Partnership,Places,Miscellaneous Expenses,,10/07/14,"72,912.87 "
5165245,INSPIREDSPACES TAMESIDE LTD,Asset Management and Investment Partnership Management,"Economic Growth, Investment and Sustainability",Refurbish Accommodation Works,,24/07/14,"40,479.11 "
5165245,INSPIREDSPACES TAMESIDE LTD,Asset Mgmt & Investment Partnership Mgmt,Places,Professional Services,,24/07/14,"80,900.00 "
5165245,INSPIREDSPACES TAMESIDE LTD,Asset Mgmt & Investment Partnership Mgmt,Places,Refreshments,,24/07/14,"64,522.08 "
5165245,INSPIREDSPACES TAMESIDE LTD,Engineers Client,"Economic Growth, Investment and Sustainability",Adaptations - Jobs <#500,,24/07/14,"2,000.00 "
5165246,INSPIREDSPACES TAMESIDE LTD,Asset Management and Investment Partnership Management,"Economic Growth, Investment and Sustainability",Plant,,07/07/14,"64,696.82 "
5165246,INSPIREDSPACES TAMESIDE LTD,Tameside Investment Partnership,"Economic Growth, Investment and Sustainability",Plant,,07/07/14,"80,977.04 "
5165246,INSPIREDSPACES TAMESIDE LTD,Tameside Investment Partnership,Places,Building Repairs,,07/07/14,"57,450.09 "
5165248,HOWARD COOK,Education Services,Childrens Services,APT&C Basic Pay,Business Payment,02/07/14,680.00 
5165249,TRANSITIONAL PLUS CARE CIC LTD,SCYP ,Childrens Services,Living With Formal Support,,07/07/14,"3,764.29 "
5165253,TRANSITIONAL PLUS CARE CIC LTD,SCYP ,Childrens Services,Living With Formal Support,,02/07/14,"3,764.29 "
5165261,REGENDA LIMITED,Adult Services,"Community, Adult & Adults Early Intervention",Non-Authority Accommodation Rental,,14/07/14,"18,953.36 "
5165276,WILLIAMS WOODWARD LTD,Resource Management,Director of Finance,Professional Consultancy Services,,09/07/14,"3,735.00 "
5165279,PERSON CENTRED CARE SERVICES LIMITED,Adult Services,"Community, Adult & Adults Early Intervention",Homecare Fees,,14/07/14,"1,767.09 "
5165284,HOWARD COOK,Education Services,Childrens Services,APT&C Basic Pay,Business Payment,02/07/14,680.00 
5165285,HOWARD COOK,Education Services,Childrens Services,APT&C Basic Pay,Business Payment,02/07/14,680.00 
5165289,ROYAL MAIL GROUP PLC,Exchequer,Director of Finance,Postages,,02/07/14,"2,543.38 "
5165291,ROYAL MAIL GROUP PLC,Exchequer,Director of Finance,Postages,,07/07/14,"3,531.27 "
5165291,ROYAL MAIL GROUP PLC,People & Performance,Director of Governance,Postages,,07/07/14,194.01 
5165314,CORONA ENERGY RETAIL 4 LIMITED,Tameside Investment Partnership,Places,Gas,,07/07/14,620.45 
5165319,CORONA ENERGY RETAIL 4 LIMITED,Tameside Investment Partnership,Places,Gas,,07/07/14,"1,855.95 "
5165323,THE FURNISHING SERVICE LTD,Neighbourhoods & Communities,"Community, Adult & Adults Early Intervention",Fixtures & Fittings Purchase,,30/07/14,559.18 
5165327,CORONA ENERGY RETAIL 4 LIMITED,Tameside Investment Partnership,Places,Gas,,07/07/14,"2,432.99 "
5165330,,Children's Services,Childrens Services,Childrens Homes Outside Local Authority Fees,Redacted Supplier,07/07/14,"3,273.20 "
5165339,,Children's Services,Childrens Services,Childrens Homes Outside Local Authority Fees,Redacted Supplier,07/07/14,"12,857.10 "
5165341,,Children's Services,Childrens Services,Childrens Homes Outside Local Authority Fees,Redacted Supplier,07/07/14,"8,567.10 "
5165347,VODAFONE,Resource Management,Director of Finance,Telephone Landline Costs,,07/07/14,768.08 
5165368,THYSSENKRUPP ENCASA LTD,Housing,"Economic Growth, Investment and Sustainability",Improvement Grants - Final Mandatory,,02/07/14,"4,449.00 "
5165373,TAMESIDE SPORTS TRUST,Neighbourhoods & Communities,"Community, Adult & Adults Early Intervention",Grants to Organisations,,02/07/14,"2,500.00 "
5165378,LAVAT CONSULTING LIMITED,Other Services,Director of Finance,Professional Services,,03/07/14,"3,840.90 "
5165380,TRAVELERS INSURANCE COMPANY LTD,Multiple Heads of Service,Multiple Strategic Directorates,Reimbursement Paid To Insurers,,07/07/14,"14,423.50 "
5165436,,Children's Services,Childrens Services,Foster Carer Agency Fees,Redacted Supplier,07/07/14,"3,106.82 "
5165437,,Children's Services,Childrens Services,Foster Carer Agency Fees,Redacted Supplier,07/07/14,"3,270.50 "
5165439,,Children's Services,Childrens Services,Foster Carer Agency Fees,Redacted Supplier,28/07/14,"3,270.50 "
5165440,,Children's Services,Childrens Services,Foster Carer Agency Fees,Redacted Supplier,28/07/14,"3,106.82 "
5165450,JACKSON & TAYLOR LTD,Housing,"Economic Growth, Investment and Sustainability",Improvement Grants - Final Mandatory,,02/07/14,"4,150.00 "
5165453,CBS (NORTH WEST) LTD,Operations,Places,General Materials,,09/07/14,628.00 
5165454,ICE CREATES LTD,Other Services,Director of Finance,Project Costs,,17/07/14,"30,000.00 "
5165456,MOSSLEY TOWN COUNCIL,Other Services,Director of Finance,Mossley Parish Council Precept,,07/07/14,"13,250.00 "
5165457,DEBIGNO LTD t/a PATHWAY ANALYTICS,Other Services,Director of Finance,Professional Services,,07/07/14,"1,960.50 "
5165463,TEACHING PERSONNEL LTD,Education Services,Childrens Services,Voluntary Organisations Fees,,07/07/14,744.00 
5165468,CORONA ENERGY RETAIL 4 LIMITED,Tameside Investment Partnership,Places,Gas,,07/07/14,561.53 
5165471,CORONA ENERGY RETAIL 4 LIMITED,Tameside Investment Partnership,Places,Gas,,07/07/14,612.59 
5165472,CORONA ENERGY RETAIL 4 LIMITED,Tameside Investment Partnership,Places,Gas,,07/07/14,672.29 
5165474,CORONA ENERGY RETAIL 4 LIMITED,Tameside Investment Partnership,Places,Gas,,07/07/14,"1,031.36 "
5165482,CORONA ENERGY RETAIL 4 LIMITED,Tameside Investment Partnership,Places,Gas,,07/07/14,"1,174.60 "
5165485,CORONA ENERGY RETAIL 4 LIMITED,Tameside Investment Partnership,Places,Gas,,07/07/14,"1,005.45 "
5165491,CORONA ENERGY RETAIL 4 LIMITED,Tameside Investment Partnership,Places,Gas,,07/07/14,990.67 
5165496,WIGAN MBC,Other Services,Director of Finance,Project Costs,,03/07/14,"15,150.00 "
5165505,BT PLC,Multiple Heads of Service,Multiple Strategic Directorates,Telephone Landline Costs,,07/07/14,"37,896.70 "
5165506,THE GUINNESS PARTNERSHIP LTD,Adult Services,"Community, Adult & Adults Early Intervention",Non-Authority Accommodation Rental,,03/07/14,"3,903.20 "
5165507,THE GUINNESS PARTNERSHIP LTD,Adult Services,"Community, Adult & Adults Early Intervention",Non-Authority Accommodation Rental,,03/07/14,"1,172.45 "
5165508,SANTANDER UK PLC,Exchequer,Director of Finance,National Giro,,03/07/14,"6,086.56 "
5165509,SANTANDER UK PLC,Exchequer,Director of Finance,National Giro,,03/07/14,"6,169.28 "
5165512,SANTANDER UK PLC,Exchequer,Director of Finance,National Giro,,03/07/14,"3,141.46 "
5165513, ,Adult Services,"Community, Adult & Adults Early Intervention",Contribution to Maintenance Fee Income,Redacted Supplier,03/07/14,820.47 
5165514,SANTANDER UK PLC,Exchequer,Director of Finance,National Giro,,03/07/14,"2,608.07 "
5165519,G4S CASH SOLUTIONS (UK) LIMITED,Borough Solicitor,Director of Governance,Security Services,,03/07/14,54.32 
5165519,G4S CASH SOLUTIONS (UK) LIMITED,Neighbourhoods & Communities,"Community, Adult & Adults Early Intervention",Security Services,,03/07/14,488.84 
5165525,MRL HEALTHCARE LIMITED,Adult Services,"Community, Adult & Adults Early Intervention",Homecare Fees,,07/07/14,"12,917.96 "
5165528,ELECTRICITY NORTH WEST LTD,Technical,Places,Contractor Expenditure,,24/07/14,609.99 
5165529,THE AWARD SCHEME LTD,Neighbourhoods & Communities,"Community, Adult & Adults Early Intervention",Miscellaneous Expenses,,10/07/14,"1,799.99 "
5165530,MEDICO NURSING AND HOMECARE,Adult Services,"Community, Adult & Adults Early Intervention",Homecare Fees,,03/07/14,"10,150.99 "
5165533,COTSWOLD OUTDOOR LTD,Operations,Places,Protective Clothing,,07/07/14,772.71 
5165534,COTSWOLD OUTDOOR LTD,Operations,Places,Protective Clothing,,07/07/14,"1,990.63 "
5165539,PAYPOINT COLLECTIONS LTD,Neighbourhoods & Communities,"Community, Adult & Adults Early Intervention",Emergency Grant Payments,,03/07/14,"1,072.00 "
5165540,PG FABRICATIONS,Operations,Places,General Materials,,10/07/14,567.00 
5165542,PAYPOINT COLLECTIONS LTD,Neighbourhoods & Communities,"Community, Adult & Adults Early Intervention",Emergency Grant Payments,,03/07/14,955.00 
5165543,MR JAMES TURLEY T/A R TURLEY PLUMBERS,Housing,"Economic Growth, Investment and Sustainability",Improvement Grants - Final Mandatory,Business Payment,03/07/14,"3,020.00 "
5165547,,Children's Services,Childrens Services,Foster Carer Agency Fees,Redacted Supplier,10/07/14,"3,194.66 "
5165553,,Children's Services,Childrens Services,Foster Carer Agency Fees,Redacted Supplier,03/07/14,799.00 
5165555,THE FURNISHING SERVICE LTD,Neighbourhoods & Communities,"Community, Adult & Adults Early Intervention",Fixtures & Fittings Purchase,,21/07/14,685.89 
5165556,ELECTRICITY NORTH WEST LTD,Technical,Places,Street Lighting,,24/07/14,"1,315.00 "
5165558,JULIE BURNELL,Education Services,Childrens Services,Professional Services,Business Payment,03/07/14,"1,600.00 "
5165559,JULIE BURNELL,Education Services,Childrens Services,Professional Services,Business Payment,03/07/14,"1,600.00 "
5165563,,Children's Services,Childrens Services,Foster Carer Agency Fees,Redacted Supplier,09/07/14,"3,520.71 "
5165569,COMFORT CALL LIMITED,Adult Services,"Community, Adult & Adults Early Intervention",Homecare Fees,,03/07/14,"30,413.36 "
5165570,HANDICARE LIMITED,Housing,"Economic Growth, Investment and Sustainability",Improvement Grants - Final Mandatory,,03/07/14,"4,340.00 "
5165574,AGE UK TAMESIDE,Adults Early Intervention,"Community, Adult & Adults Early Intervention",Age Concern Fees,,10/07/14,"10,505.01 "
5165580,THE FURNISHING SERVICE LTD,Neighbourhoods & Communities,"Community, Adult & Adults Early Intervention",Fixtures & Fittings Purchase,,24/07/14,"1,190.21 "
5165581,ABLE CARE AND SUPPORT SERVICES LTD,Adult Services,"Community, Adult & Adults Early Intervention",Homecare Fees,,03/07/14,"1,720.66 "
5165582,ABLE CARE AND SUPPORT SERVICES LTD,Adult Services,"Community, Adult & Adults Early Intervention",Homecare Fees,,03/07/14,"1,225.77 "
5165586,STEP AHEAD RESOURCE SERVICES,SCYP ,Childrens Services,Living Without Formal Support,,07/07/14,850.00 
5165588,STEP AHEAD RESOURCE SERVICES,SCYP ,Childrens Services,Living Without Formal Support,,07/07/14,750.00 
5165589,ELECTORAL REFORM SERVICES,Borough Solicitor,Director of Governance,Printing And Stationery,,07/07/14,"118,337.75 "
5165591,COMMUNITY AND VOLUNTARY ACTION TAMESIDE,Strategy & Early Intervention,Childrens Services,Professional Services,,03/07/14,"150,000.00 "
5165593,THE FURNISHING SERVICE LTD,Neighbourhoods & Communities,"Community, Adult & Adults Early Intervention",Fixtures & Fittings Purchase,,03/07/14,"1,119.43 "
5165594,CORONA ENERGY RETAIL 4 LIMITED,Education Services,Childrens Services,Gas,,07/07/14,855.67 
5165596,CORONA ENERGY RETAIL 4 LIMITED,Tameside Investment Partnership,Places,Gas,,07/07/14,"1,397.26 "
5165597,CORONA ENERGY RETAIL 4 LIMITED,Tameside Investment Partnership,Places,Gas,,07/07/14,735.88 
5165598,CORONA ENERGY RETAIL 4 LIMITED,Tameside Investment Partnership,Places,Gas,,07/07/14,543.22 
5165607,CORONA ENERGY RETAIL 4 LIMITED,Tameside Investment Partnership,Places,Gas,,07/07/14,"3,435.61 "
5165611,,Children's Services,Childrens Services,Foster Carer Agency Fees,Redacted Supplier,07/07/14,"3,217.49 "
5165613,GETRONICS UNIFIED COMMUNICATIONS UK LIMITED,Digital Tameside,Places,It Equipment,,30/07/14,"10,150.00 "
5165618,GETRONICS UNIFIED COMMUNICATIONS UK LIMITED,Multiple Heads of Service,Multiple Strategic Directorates,Communications Equipment,,31/07/14,"1,955.80 "
5165620,ROYAL MAIL GROUP LTD (PARCELFORCE WORLDWIDE),Exchequer,Director of Finance,Postages,,24/07/14,"1,680.64 "
5165622,FRESH START INDEPENDENCE PROJECT LTD,SCYP ,Childrens Services,Living With Formal Support,,03/07/14,"1,149.96 "
5165623,JOHN PACKER LIMITED,Education Services,Childrens Services,Educational Equipment,,10/07/14,558.00 
5165652,NEW BRIDGE HORIZONS,Adult Services,"Community, Adult & Adults Early Intervention",Homecare Fees,,07/07/14,"2,228.75 "
5165653,AUTOMATIC ALARMS LTD,Children's Services,Childrens Services,Building Maintenance,,03/07/14,"2,954.72 "
5165656,CARE UK HOMECARE,Adult Services,"Community, Adult & Adults Early Intervention",Homecare Fees,,03/07/14,"31,302.22 "
5165657,CARE UK HOMECARE,Adult Services,"Community, Adult & Adults Early Intervention",Homecare Fees,,03/07/14,"28,902.69 "
5165658,MERIDIAN HEALTHCARE LTD,Adult Services,"Community, Adult & Adults Early Intervention",Day Centre Fees,,07/07/14,"25,842.00 "
5165659,CARE UK HOMECARE,Adult Services,"Community, Adult & Adults Early Intervention",Homecare Fees,,03/07/14,"29,791.93 "
5165661,CARE UK HOMECARE,Adult Services,"Community, Adult & Adults Early Intervention",Homecare Fees,,09/07/14,"29,695.81 "
5165662,DAVID DAVENPORT & CO,Neighbourhoods & Communities,"Community, Adult & Adults Early Intervention",Grants to Organisations,,17/07/14,688.36 
5165663,CARE UK HOMECARE,Adult Services,"Community, Adult & Adults Early Intervention",Homecare Fees,,14/07/14,"113,208.33 "
5165665,PROGRESS CARE HOUSING ASSOCIATION LIMITED,Adult Services,"Community, Adult & Adults Early Intervention",Non-Authority Accommodation Rental,,14/07/14,"5,316.08 "
5165666,MOSSCARE HOUSING LTD,Adult Services,"Community, Adult & Adults Early Intervention",Non-Authority Accommodation Rental,,14/07/14,"28,480.93 "
5165667,GREAT PLACES HOUSING GROUP,Adult Services,"Community, Adult & Adults Early Intervention",Non-Authority Accommodation Rental,,14/07/14,"1,056.92 "
5165674,STOCKPORT NHS FOUNDATION TRUST,Adult Services,"Community, Adult & Adults Early Intervention",Agency Staff,,09/07/14,"2,977.08 "
5165677,STOCKPORT NHS FOUNDATION TRUST,Education Services,Childrens Services,Professional Services,,07/07/14,"3,333.00 "
5165686,CAPITA BUSINESS SERVICES LIMITED,Education Services,Childrens Services,Training Course Costs,,17/07/14,"1,300.00 "
5165689,THE FURNISHING SERVICE LTD,Neighbourhoods & Communities,"Community, Adult & Adults Early Intervention",Fixtures & Fittings Purchase,,10/07/14,571.56 
5165690,,Children's Services,Childrens Services,Foster Carer Agency Fees,Redacted Supplier,03/07/14,799.00 
5165691,INTEC FOR BUSINESS LTD,Audit & Risk Management,Director of Finance,Professional Consultancy Services,,07/07/14,"7,500.00 "
5165692,THE FURNISHING SERVICE LTD,Neighbourhoods & Communities,"Community, Adult & Adults Early Intervention",Fixtures & Fittings Purchase,,17/07/14,911.90 
5165692,THE FURNISHING SERVICE LTD,Resource Management,Director of Finance,Fixtures & Fittings Purchase,,17/07/14,60.19 
5165693,PHONAK UK LIMITED,Education Services,Childrens Services,Educational Equipment,,10/07/14,"1,260.00 "
5165696,TURNING POINT SERVICES LTD,Adult Services,"Community, Adult & Adults Early Intervention",Independent Sector Care Fees,,10/07/14,"46,566.67 "
5165699,,Children's Services,Childrens Services,Foster Carer Agency Fees,Redacted Supplier,07/07/14,"4,487.10 "
5165701,PROFILE SECURITY SERVICES LIMITED,Operations,Places,General Materials,,09/07/14,"6,593.40 "
5165703,MRL HEALTHCARE LIMITED,Adult Services,"Community, Adult & Adults Early Intervention",Homecare Fees,,14/07/14,"13,150.13 "
5165714,GREAT PLACES HOUSING GROUP,Adult Services,"Community, Adult & Adults Early Intervention",Non-Authority Accommodation Rental,,14/07/14,"1,056.92 "
5165716,GREAT PLACES HOUSING GROUP,Adult Services,"Community, Adult & Adults Early Intervention",Non-Authority Accommodation Rental,,14/07/14,"1,035.20 "
5165719,OFF THE RECORD,Public Health,Public Health,Professional Services,,10/07/14,"26,696.25 "
5165726,CAPITA BUSINESS SERVICES LIMITED,Education Services,Childrens Services,Training Course Costs,,07/07/14,558.40 
5165733,ABLE CARE AND SUPPORT SERVICES LTD,Adult Services,"Community, Adult & Adults Early Intervention",Homecare Fees,,07/07/14,"1,720.66 "
5165747,ROCHDALE MBC,Technical,Places,Professional Services,,16/07/14,"2,000.00 "
5165763,DEBIGNO LTD t/a PATHWAY ANALYTICS,Other Services,Director of Finance,Subscriptions,,10/07/14,500.00 
5165770,PROFILE SECURITY SERVICES LIMITED,Neighbourhoods & Communities,"Community, Adult & Adults Early Intervention",Security Equipment,,14/07/14,"10,685.95 "
5165788,VODAFONE,Asset Mgmt & Investment Partnership Mgmt,Places,Telephone Landline Costs,,24/07/14,801.36 
5165819,INTACT PROJECTS LIMITED,Children's Services,Childrens Services,Living With Formal Support,,07/07/14,949.00 
5165820,TAMESIDE ARTS LTD,Adult Services,"Community, Adult & Adults Early Intervention",Professional Services,,07/07/14,"1,040.40 "
5165824,JACK MILLS,Democratic Processes,Director of Finance,Contributions,Business Payment,07/07/14,500.00 
5165825,RADIO CABS (ASHTON)LTD,Education Services,Childrens Services,Transport Of Pupils,,07/07/14,"2,415.00 "
5165827,RADIO CABS (ASHTON)LTD,Education Services,Childrens Services,Transport Of Ola Pupils,,07/07/14,"2,226.00 "
5165828,RADIO CABS (ASHTON)LTD,Education Services,Childrens Services,Transport Of Ola Pupils,,07/07/14,821.34 
5165829,RADIO CABS (ASHTON)LTD,Education Services,Childrens Services,Transport Of Post 16 Pupils,,07/07/14,"1,640.00 "
5165830,RADIO CABS (ASHTON)LTD,Education Services,Childrens Services,Transport Of Pupils,,07/07/14,"1,974.00 "
5165831,RADIO CABS (ASHTON)LTD,Education Services,Childrens Services,Transport Of Pupils,,07/07/14,"2,026.00 "
5165832,RADIO CABS (ASHTON)LTD,Education Services,Childrens Services,Transport Of Pupils,,07/07/14,"1,974.00 "
5165833,RADIO CABS (ASHTON)LTD,Education Services,Childrens Services,Transport Of Pupils,,07/07/14,"1,083.60 "
5165834,RADIO CABS (ASHTON)LTD,Education Services,Childrens Services,Transport Of Pupils,,07/07/14,"1,974.00 "
5165835,DAVID CROZIER,Education Services,Childrens Services,Transport Of Post 16 Pupils,Business Payment,09/07/14,"1,920.00 "
5165837,DAVID CROZIER,Education Services,Childrens Services,Transport Of Post 16 Pupils,Business Payment,09/07/14,"1,920.00 "
5165838,DAVID CROZIER,Education Services,Childrens Services,Transport Of Pupils,Business Payment,09/07/14,"1,596.00 "
5165839,DAVID CROZIER,Education Services,Childrens Services,Transport Of Pupils,Business Payment,09/07/14,"1,386.00 "
5165840,MR JOHN DELANEY,Technical,Places,Hired Transport,Business Payment,10/07/14,"1,785.00 "
5165841,MR JOHN DELANEY,Education Services,Childrens Services,Transport Of Pupils,Business Payment,07/07/14,"2,100.00 "
5165843,MR JOHN DELANEY,Education Services,Childrens Services,Transport Of Post 16 Pupils,Business Payment,10/07/14,"1,800.00 "
5165844,MR JOHN DELANEY,Education Services,Childrens Services,Transport Of Ola Pupils,Business Payment,10/07/14,"1,554.00 "
5165845,MR JOHN DELANEY,Education Services,Childrens Services,Transport Of Pupils,Business Payment,10/07/14,"1,890.00 "
5165846,MR JOHN DELANEY,Education Services,Childrens Services,Transport Of Pupils,Business Payment,10/07/14,"2,100.00 "
5165847,B MORRELL,Education Services,Childrens Services,Transport Of Pupils,Business Payment,10/07/14,"2,100.00 "
5165848,LIME TRAVEL,Education Services,Childrens Services,Transport Of Pupils,,07/07/14,"1,456.00 "
5165849,LIME TRAVEL,Education Services,Childrens Services,Transport Of Pupils,,07/07/14,"1,456.00 "
5165852,LIME TRAVEL,Education Services,Childrens Services,Transport Of Ola Pupils,,07/07/14,"2,047.50 "
5165853,LIME TRAVEL,Education Services,Childrens Services,Transport Of Pupils,,07/07/14,848.00 
5165854,LIME TRAVEL,Education Services,Childrens Services,Transport Of Ola Pupils,,07/07/14,"1,384.00 "
5165855,LIME TRAVEL,Education Services,Childrens Services,Transport Of Pupils,,07/07/14,"1,911.00 "
5165856,MOSSLEY PRIVATE HIRE,Education Services,Childrens Services,Transport Of Pupils,,07/07/14,"2,100.00 "
5165859,MICHAEL WILD,Education Services,Childrens Services,Transport Of Pupils,Business Payment,10/07/14,"1,632.00 "
5165860,GLENN CAWTHORN,Education Services,Childrens Services,Transport Of Pupils,Business Payment,10/07/14,965.00 
5165861,G M GREEN,Education Services,Childrens Services,Transport Of Pupils,Business Payment,10/07/14,"1,120.00 "
5165862,P MEADOWCROFT,Education Services,Childrens Services,Transport Of Pupils,Business Payment,10/07/14,945.00 
5165863,ROYALE MINICOACHES,Education Services,Childrens Services,Transport Of Pupils,,10/07/14,"2,100.00 "
5165864,J & R TAXIS LTD,Technical,Places,Hired Transport,,10/07/14,"2,142.00 "
5165865,B MORRELL,Technical,Places,Hired Transport,Business Payment,10/07/14,956.25 
5165866,MICHAEL ADLARD,Education Services,Childrens Services,Transport Of Pupils,Business Payment,07/07/14,"1,280.00 "
5165867,MICHAEL ADLARD,Education Services,Childrens Services,Transport Of Pupils,Business Payment,07/07/14,"1,280.00 "
5165872,INTACT PROJECTS LIMITED,SCYP ,Childrens Services,Living With Formal Support,,07/07/14,949.00 
5165879,SPECIALISED HOMES AND LODGINGS LTD,SCYP ,Childrens Services,Living With Formal Support,,07/07/14,530.40 
5165880,LIFELINE PROJECT LTD (PH),Public Health,Public Health,Professional Services,,17/07/14,"50,750.00 "
5165889,,Children's Services,Childrens Services,Foster Carer Agency Fees,Redacted Supplier,07/07/14,"3,150.00 "
5165890,UNITED UTILITIES WATER PLC,Tameside Investment Partnership,Places,Metered Water Costs,,09/07/14,865.44 
5165899,UNITED UTILITIES WATER PLC,Tameside Investment Partnership,Places,Metered Water Costs,,09/07/14,827.05 
5165900,LIFELINE PROJECT LTD (PH),Public Health,Public Health,Professional Services,,17/07/14,"4,916.75 "
5165909,LIFELINE PROJECT LTD (PH),Public Health,Public Health,Professional Services,,17/07/14,"8,364.00 "
5165927,NEW CHARTER HOUSING TRUST GROUP,Adult Services,"Community, Adult & Adults Early Intervention",Non-Authority Accommodation Rental,,17/07/14,"79,358.49 "
5165930,ROBINSON & JORDAN FUNERAL SERVICES,Environmental Services,Places,Burial Fees,,09/07/14,"1,385.00 "
5165931,BEMROSEBOOTH,Technical,Places,General Materials,,09/07/14,918.00 
5165933,RANDSTAD EDUCATION LIMITED,Education Services,Childrens Services,APT&C Basic Pay,,14/07/14,796.00 
5165934,THE FURNISHING SERVICE LTD,Neighbourhoods & Communities,"Community, Adult & Adults Early Intervention",Fixtures & Fittings Purchase,,28/07/14,812.27 
5165935,WESSEX LIFT CO. LIMITED,Housing,"Economic Growth, Investment and Sustainability",Improvement Grants - Final Mandatory,,09/07/14,"1,650.00 "
5165936,HANDICARE LIMITED,Housing,"Economic Growth, Investment and Sustainability",Improvement Grants - Final Mandatory,,07/07/14,"4,466.00 "
5165961,PRS FOR MUSIC PAYMENTS,Adults Early Intervention,"Community, Adult & Adults Early Intervention",Other Local Authorities Fees,,09/07/14,539.04 
5165963,,Children's Services,Childrens Services,Foster Carer Agency Fees,Redacted Supplier,07/07/14,"4,380.30 "
5165967,BERTRAM LIBRARY SERVICES,Neighbourhoods & Communities,"Community, Adult & Adults Early Intervention",Purchase Books,,09/07/14,"10,557.85 "
5165971,STAMFORD PROPERTIES,Adult Services,"Community, Adult & Adults Early Intervention",Non-Authority Accommodation Rental,,14/07/14,992.62 
5165972,STAMFORD PROPERTIES,Adult Services,"Community, Adult & Adults Early Intervention",Non-Authority Accommodation Rental,,14/07/14,"2,490.47 "
5165976,HAMILTON PROPERTIES,Adult Services,"Community, Adult & Adults Early Intervention",Non-Authority Accommodation Rental,,14/07/14,"1,536.79 "
5165994,JOY LEGAL LTD,Borough Solicitor,Director of Governance,Agency Staff,,09/07/14,"3,600.00 "
5165996,TAMESIDE SPORTS TRUST,Neighbourhoods & Communities,"Community, Adult & Adults Early Intervention",Leisure Services Contract Payment,,09/07/14,"366,250.00 "
5165997,TRANSPORT FOR GREATER MANCHESTER,Engineers Client,"Economic Growth, Investment and Sustainability",Traffic Signals,,10/07/14,"1,600.00 "
5165998,XPRESS SOFTWARESOLUTIONS LTD,Borough Solicitor,Director of Governance,Licences,,07/07/14,"19,784.12 "
5166001,ELECTRICITY NORTH WEST LTD,Technical,Places,Street Lighting,,21/07/14,519.95 
5166001,ELECTRICITY NORTH WEST LTD,Technical,Places,Sub-contractor Services,,21/07/14,494.99 
5166003,PHONICS-4-SUCCESS,Education Services,Childrens Services,Professional Consultancy Services,,07/07/14,"1,200.00 "
5166007,HUGH MASON PROPERTIES LIMITED,Adult Services,"Community, Adult & Adults Early Intervention",Non-Authority Accommodation Rental,,14/07/14,"2,411.13 "
5166008,NORTH WEST REGIONAL YOUTH WORK UNIT,Neighbourhoods & Communities,"Community, Adult & Adults Early Intervention",Subscriptions,,07/07/14,"2,388.48 "
5166009,HUGH MASON PROPERTIES LIMITED,Adult Services,"Community, Adult & Adults Early Intervention",Non-Authority Accommodation Rental,,14/07/14,"2,153.35 "
5166010,CROFT INVESTMENTS LTD,Adult Services,"Community, Adult & Adults Early Intervention",Non-Authority Accommodation Rental,,14/07/14,"1,975.23 "
5166011,NORTHERN PROPERTIES LTD,Adult Services,"Community, Adult & Adults Early Intervention",Non-Authority Accommodation Rental,,14/07/14,"1,802.24 "
5166013,WESLEY PROPERTIES (NORTHERN) LTD,Adult Services,"Community, Adult & Adults Early Intervention",Non-Authority Accommodation Rental,,14/07/14,"1,336.48 "
5166014,HUGH MASON PROPERTIES LIMITED,Adult Services,"Community, Adult & Adults Early Intervention",Non-Authority Accommodation Rental,,14/07/14,"2,153.35 "
5166015,THE UK ASSOCIATION FOR MUSIC EDUCATION- MUSIC MARK,Education Services,Childrens Services,Subscriptions,,24/07/14,575.00 
5166016,TAMESIDE SPORTS TRUST,Adult Services,"Community, Adult & Adults Early Intervention",Professional Services,,07/07/14,"3,540.00 "
5166026,TAMESIDE ARTS LTD,Adult Services,"Community, Adult & Adults Early Intervention",Professional Services,,07/07/14,"1,071.00 "
5166027,FRESH START INDEPENDENCE PROJECT LTD,SCYP ,Childrens Services,Living With Formal Support,,07/07/14,"1,149.96 "
5166031, ,Adult Services,"Community, Adult & Adults Early Intervention",Day Care Fees,Redacted Supplier,07/07/14,772.62 
5166038,TRAFFORD MBC,Other Services,Director of Finance,Other Accomodation Related Costs,,09/07/14,834.00 
5166039,THE ETHEROW CENTRE CHARITABLE TRUST LTD,Neighbourhoods & Communities,"Community, Adult & Adults Early Intervention",General Lease,,24/07/14,"3,750.00 "
5166044,NEW CHARTER HOUSING TRUST GROUP,Children's Services,Childrens Services,Planning Fees,,10/07/14,"3,458.83 "
5166044,NEW CHARTER HOUSING TRUST GROUP,Neighbourhoods & Communities,"Community, Adult & Adults Early Intervention",Supporting People Gross Contract,,10/07/14,"26,433.08 "
5166044,NEW CHARTER HOUSING TRUST GROUP,Public Health,Public Health,Supporting People Gross Contract,,10/07/14,"13,176.25 "
5166049,NEW CHARTER HOUSING TRUST GROUP,Neighbourhoods & Communities,"Community, Adult & Adults Early Intervention",Housing Aid Function,,10/07/14,"37,018.78 "
5166051,NEW CHARTER HOUSING TRUST GROUP,Neighbourhoods & Communities,"Community, Adult & Adults Early Intervention",Contributions,,09/07/14,"4,166.66 "
5166057,NEW CHARTER HOUSING TRUST GROUP,Neighbourhoods & Communities,"Community, Adult & Adults Early Intervention",Supporting People Gross Contract,,10/07/14,"20,022.16 "
5166058,NORCOMM (UK) LTD,"Media, Marketing & Communications",Director of Governance,Computer Hardware Maintenance Costs,,10/07/14,711.05 
5166064,AUTISM INITIATIVES,Education Services,Childrens Services,Voluntary Organisations Fees,,09/07/14,"12,060.42 "
5166078,,Children's Services,Childrens Services,Living Without Formal Support,Redacted Supplier,09/07/14,850.00 
5166083,STEP AHEAD RESOURCE SERVICES,SCYP ,Childrens Services,Living Without Formal Support,,10/07/14,750.00 
5166084,STEP AHEAD RESOURCE SERVICES,SCYP ,Childrens Services,Living Without Formal Support,,14/07/14,850.00 
5166085,INDEPENDENT CHOICES,Neighbourhoods & Communities,"Community, Adult & Adults Early Intervention",General Materials,,10/07/14,500.00 
5166086,STEP AHEAD RESOURCE SERVICES,SCYP ,Childrens Services,Living Without Formal Support,,10/07/14,750.00 
5166089,GREG EGAN,Education Services,Childrens Services,Additional Hire,Business Payment,14/07/14,"4,000.00 "
5166097,PENNINE CARE NHS FOUNDATION TRUST,Public Health,Public Health,Professional Services,,21/07/14,"273,285.00 "
5166098,DOMAIN CARE NORTH WEST LTD,Adult Services,"Community, Adult & Adults Early Intervention",Homecare Fees,,31/07/14,"3,960.00 "
5166099,STALYBRIDGE READYMIX LTD,Environmental Services,Places,Building Works,,10/07/14,"1,275.00 "
5166101,DOMAIN CARE NORTH WEST LTD,Adult Services,"Community, Adult & Adults Early Intervention",Homecare Fees,,31/07/14,639.60 
5166111,PENNINE CARE IN PATIENT SERVS PRIORY,Education Services,Childrens Services,Voluntary Organisations Fees,,09/07/14,"1,925.00 "
5166112,PENNINE CARE IN PATIENT SERVS PRIORY,Education Services,Childrens Services,Voluntary Organisations Fees,,09/07/14,"1,925.00 "
5166113,PENNINE CARE IN PATIENT SERVS PRIORY,Education Services,Childrens Services,Voluntary Organisations Fees,,09/07/14,"1,750.00 "
5166115,TEACHING PERSONNEL LTD,Education Services,Childrens Services,APT&C Basic Pay,,14/07/14,"1,808.00 "
5166116,ROSSENDALE SCHOOL PRIORY,Education Services,Childrens Services,Voluntary Organisations Fees,,09/07/14,525.00 
5166117,PENNINE CARE IN PATIENT SERVS PRIORY,Education Services,Childrens Services,Voluntary Organisations Fees,,09/07/14,"1,400.00 "
5166119,PENNINE CARE IN PATIENT SERVS PRIORY,Education Services,Childrens Services,Voluntary Organisations Fees,,09/07/14,525.00 
5166120,PENNINE CARE IN PATIENT SERVS PRIORY,Education Services,Childrens Services,Voluntary Organisations Fees,,09/07/14,"1,575.00 "
5166121,PENNINE CARE IN PATIENT SERVS PRIORY,Education Services,Childrens Services,Voluntary Organisations Fees,,09/07/14,"1,225.00 "
5166122,PENNINE CARE IN PATIENT SERVS PRIORY,Education Services,Childrens Services,Voluntary Organisations Fees,,09/07/14,"2,800.00 "
5166123,PENNINE CARE IN PATIENT SERVS PRIORY,Education Services,Childrens Services,Voluntary Organisations Fees,,09/07/14,"2,625.00 "
5166124,PENNINE CARE IN PATIENT SERVS PRIORY,Education Services,Childrens Services,Voluntary Organisations Fees,,09/07/14,"1,925.00 "
5166126,,Children's Services,Childrens Services,Childrens Homes Outside Local Authority Fees,Redacted Supplier,10/07/14,"4,854.82 "
5166130,SPECIALISED HOMES AND LODGINGS LTD,SCYP ,Childrens Services,Living With Formal Support,,21/07/14,750.00 
5166134,BIRTENSHAW SCHOOL,Education Services,Childrens Services,Voluntary Organisations Fees,,09/07/14,"5,364.00 "
5166135,DOMAIN CARE NORTH WEST LTD,Adult Services,"Community, Adult & Adults Early Intervention",Homecare Fees,,17/07/14,"1,440.00 "
5166139,DOMAIN CARE NORTH WEST LTD,Adult Services,"Community, Adult & Adults Early Intervention",Homecare Fees,,10/07/14,831.48 
5166146,,Education Services,Childrens Services,Voluntary Organisations Fees,Redacted Supplier,09/07/14,"10,559.33 "
5166147,,Education Services,Childrens Services,Voluntary Organisations Fees,Redacted Supplier,09/07/14,"10,751.51 "
5166150,,Children's Services,Childrens Services,Childrens Homes Outside Local Authority Fees,Redacted Supplier,14/07/14,"11,785.71 "
5166153,NEW IMAGE(PUBLIC RELATIONS) LTD,"Media, Marketing & Communications",Director of Governance,Professional Entertainment Services,,17/07/14,"30,000.00 "
5166154,CHARTERED INSTITUTE OF ENVIRONMENTAL HEALTH,Asset Mgmt & Investment Partnership Mgmt,Places,Training Course Costs,,24/07/14,666.20 
5166156,NEW BRIDGE HORIZONS,Adult Services,"Community, Adult & Adults Early Intervention",Homecare Fees,,14/07/14,508.00 
5166159,KILLGERM CHEMICALS LTD,Environmental Services,Places,Pest Control Equipment,,24/07/14,631.30 
5166168,,Children's Services,Childrens Services,Foster Carer Agency Fees,Redacted Supplier,24/07/14,"7,714.29 "
5166171,TASCA,Children's Services,Childrens Services,Homecare Fees,,09/07/14,"3,200.00 "
5166177,VANGUARD CONSULTING LTD,Neighbourhoods & Communities,"Community, Adult & Adults Early Intervention",Professional Services,,17/07/14,"10,693.88 "
5166184,ARCO LIMITED,Environmental Services,Places,Protective Clothing,,14/07/14,698.25 
5166186,STOCKPORT NHS FOUNDATION TRUST,Strategy & Early Intervention,Childrens Services,Professional Services,,14/07/14,"2,423.80 "
5166188,OPAL ENVELOPES LTD.,Exchequer,Director of Finance,Printing And Stationery,,09/07/14,544.80 
5166199,ATKINS LTD,Engineers Client,"Economic Growth, Investment and Sustainability",Consultancies,,16/07/14,"1,218.70 "
5166201,INSIGHT DIRECT (UK)LTD,Digital Tameside,Places,It Equipment,,30/07/14,666.44 
5166210,THE FURNISHING SERVICE LTD,Neighbourhoods & Communities,"Community, Adult & Adults Early Intervention",Fixtures & Fittings Purchase,,28/07/14,955.54 
5166212,ROSSENDALE SCHOOL PRIORY,Education Services,Childrens Services,Voluntary Organisations Fees,,16/07/14,"25,500.00 "
5166213,ROSSENDALE SCHOOL PRIORY,Education Services,Childrens Services,Voluntary Organisations Fees,,16/07/14,"17,412.00 "
5166214,ROCHDALE MBC,Sustainable Growth,Places,Professional Consultancy Services,,09/07/14,"3,000.00 "
5166215,JULIE MURRAY-SHEPHARD,Public Health,Public Health,Professional Services,Business Payment,24/07/14,"4,000.00 "
5166218,,Children's Services,Childrens Services,Homecare Fees,Redacted Supplier,09/07/14,998.00 
5166221,,Children's Services,Childrens Services,Foster Carer Agency Fees,Redacted Supplier,16/07/14,"3,167.44 "
5166223,NATIONAL GRID plc,Engineers Client,"Economic Growth, Investment and Sustainability",Gas,,24/07/14,"33,765.83 "
5166224,OLDHAM COUNCIL,Other Services,Director of Finance,Project Costs,,24/07/14,"14,250.00 "
5166227,MRL HEALTHCARE LIMITED,Adult Services,"Community, Adult & Adults Early Intervention",Homecare Fees,,21/07/14,"13,372.82 "
5166228,EVOLUTION INTERNET LLP,Education Services,Childrens Services,Labour Costs IT Services,,17/07/14,"4,680.00 "
5166229,BIRTENSHAW SCHOOL,Education Services,Childrens Services,Voluntary Organisations Fees,,09/07/14,"5,364.00 "
5166230,,Children's Services,Childrens Services,Foster Carer Agency Fees,Redacted Supplier,24/07/14,800.00 
5166233,THE CARE TEAM LTD,Neighbourhoods & Communities,"Community, Adult & Adults Early Intervention",Professional Medical Services,,24/07/14,"1,200.00 "
5166236,CBS (NORTH WEST) LTD,Operations,Places,General Materials,,09/07/14,"1,850.00 "
5166237,,Children's Services,Childrens Services,Foster Carer Agency Fees,Redacted Supplier,09/07/14,799.00 
5166239,MEDICO NURSING AND HOMECARE,Adult Services,"Community, Adult & Adults Early Intervention",Homecare Fees,,09/07/14,"10,001.75 "
5166249,PROFILE SECURITY SERVICES LIMITED,Technical,Places,Security Services,,09/07/14,"2,313.90 "
5166253,NHS TAMESIDE AND GLOSSOP CCG,Adult Services,"Community, Adult & Adults Early Intervention",Professional Services,,14/07/14,"36,489.00 "
5166257,STEP AHEAD RESOURCE SERVICES,SCYP ,Childrens Services,Living Without Formal Support,,09/07/14,750.00 
5166258,SPECIALISED HOMES AND LODGINGS LTD,SCYP ,Childrens Services,Living With Formal Support,,21/07/14,750.00 
5166259,,Children's Services,Childrens Services,Foster Carer Agency Fees,Redacted Supplier,14/07/14,"2,825.00 "
5166260,BUREAU VAN DIJK ELECTRONIC PUBLISHING LTD,Neighbourhoods & Communities,"Community, Adult & Adults Early Intervention",Purchase Books,,09/07/14,"4,000.00 "
5166263,DAISY COMMUNICATIONS LTD,Multiple Heads of Service,Multiple Strategic Directorates,Debits,,09/07/14,"5,505.67 "
5166264,NEW BRIDGE HORIZONS,Adult Services,"Community, Adult & Adults Early Intervention",Homecare Fees,,14/07/14,"1,751.25 "
5166267,STEP AHEAD RESOURCE SERVICES,SCYP ,Childrens Services,Living Without Formal Support,,09/07/14,850.00 
5166268,STEP AHEAD RESOURCE SERVICES,SCYP ,Childrens Services,Living Without Formal Support,,09/07/14,850.00 
5166275,LIFELINE PROJECT,Public Health,Public Health,Professional Services,,17/07/14,"8,364.00 "
5166276,LIFELINE PROJECT,Public Health,Public Health,Professional Services,,17/07/14,"15,000.00 "
5166282,,Children's Services,Childrens Services,Childrens Homes Outside Local Authority Fees,Redacted Supplier,28/07/14,"86,666.66 "
5166285,BT PLC,Technical,Places,Utilities,,09/07/14,827.73 
5166291,LIFELINE PROJECT LTD (PH),Public Health,Public Health,Professional Services,,17/07/14,"8,364.00 "
5166292,LIFELINE PROJECT LTD (PH),Public Health,Public Health,Professional Services,,17/07/14,"15,000.00 "
5166303,,Children's Services,Childrens Services,Foster Carer Agency Fees,Redacted Supplier,17/07/14,800.00 
5166304,DR MARGARET SMITH,Education Services,Childrens Services,Professional Services,Business Payment,09/07/14,"2,000.00 "
5166305,S & S MARQUEES,Neighbourhoods & Communities,"Community, Adult & Adults Early Intervention",Professional Entertainment Services,Business Payment,28/07/14,"1,642.00 "
5166309,STOCKPORT NHS FOUNDATION TRUST,Public Health,Public Health,Professional Services,,10/07/14,"289,595.00 "
5166311,CANAL & RIVER TRUST,Engineers Client,"Economic Growth, Investment and Sustainability",Engineers -External,,24/07/14,"2,108.40 "
5166312,F G MARSHALL LTD,Environmental Services,Places,Plaques,,10/07/14,"1,242.38 "
5166317,,Children's Services,Childrens Services,Foster Carer Agency Fees,Redacted Supplier,09/07/14,"3,941.65 "
5166324,WAINWRIGHT TREE AND TIMBER SERVICES,Operations,Places,General Materials,,09/07/14,850.00 
5166336,STOCKPORT NHS FOUNDATION TRUST,Adult Services,"Community, Adult & Adults Early Intervention",Agency Staff,,09/07/14,"2,977.08 "
5166349,ADULLAM HOMES HOUSING ASSOC LTD,Neighbourhoods & Communities,"Community, Adult & Adults Early Intervention",Supporting People Gross Contract,,10/07/14,"37,226.00 "
5166355,BEXAN LIMITED,Adult Services,"Community, Adult & Adults Early Intervention",Firefighting Equipment,,28/07/14,"1,120.00 "
5166358,RANDSTAD EDUCATION LIMITED,Education Services,Childrens Services,APT&C Basic Pay,,14/07/14,995.00 
5166359,RANDSTAD EDUCATION LIMITED,Education Services,Childrens Services,APT&C Basic Pay,,14/07/14,995.00 
5166364,ADDICTION DEPENDENCY SOLUTIONS (ADS),Public Health,Public Health,Professional Services,,31/07/14,"10,000.00 "
5166365,ALLIANCE DISPOSABLES LTD,Adult Services,"Community, Adult & Adults Early Intervention",Cleaning Materials,,24/07/14,659.40 
5166366,NORTH WEST EMPLOYERS,Other Services,Director of Finance,Subscriptions,,09/07/14,"22,280.25 "
5166374,VODAFONE,Multiple Heads of Service,Multiple Strategic Directorates,Debits,,09/07/14,"6,903.09 "
5166377,UNITED UTILITIES WATER PLC,Tameside Investment Partnership,Places,Metered Water Costs,,16/07/14,"1,662.60 "
5166377,UNITED UTILITIES WATER PLC,Technical,Places,Metered Water Costs,,16/07/14,150.96 
5166379,UNITED UTILITIES WATER PLC,Tameside Investment Partnership,Places,Metered Water Costs,,16/07/14,"2,755.58 "
5166391,VISION FOR EDUCATION LIMITED,Education Services,Childrens Services,APT&C Basic Pay,,17/07/14,575.00 
5166404,NPOWER LIMITED,Tameside Investment Partnership,Places,Electricity,,16/07/14,721.54 
5166408,HEALTH MANAGEMENT (UK) LTD,People & Performance,Director of Governance,Professional Consultancy Services,,16/07/14,"8,923.80 "
5166411,PARKLANE,Technical,Places,Hired Transport,,10/07/14,"1,663.20 "
5166413,GLM ACCESSIBLE TRANSPORT,Education Services,Childrens Services,Transport Of Post 16 Pupils,Business Payment,09/07/14,640.00 
5166415,STAMFORD CARS UK LTD,Education Services,Childrens Services,Transport Of Pupils,,10/07/14,"1,008.00 "
5166416,STAMFORD CARS UK LTD,Education Services,Childrens Services,Transport Of Ola Pupils,,10/07/14,"1,323.00 "
5166418,PARKLANE,Technical,Places,Hired Transport,,10/07/14,"2,016.00 "
5166419,STAMFORD CARS UK LTD,Education Services,Childrens Services,Transport Of Pupils,,10/07/14,"1,701.00 "
5166420,MOSSLEY PRIVATE HIRE,Technical,Places,Hired Transport,,09/07/14,680.00 
5166421,STAMFORD CARS UK LTD,Education Services,Childrens Services,Transport Of Pupils,,10/07/14,"1,932.00 "
5166422,MOSSLEY PRIVATE HIRE,Technical,Places,Hired Transport,,09/07/14,"1,325.00 "
5166423,STAMFORD CARS UK LTD,Education Services,Childrens Services,Transport Of Pupils,,10/07/14,"1,701.00 "
5166424,MARK HARLOW,Technical,Places,Hired Transport,Business Payment,09/07/14,600.00 
5166426,MARK HARLOW,Technical,Places,Hired Transport,Business Payment,09/07/14,"1,470.00 "
5166430,GLM ACCESSIBLE TRANSPORT,Education Services,Childrens Services,Transport Of Pupils,Business Payment,09/07/14,"1,120.00 "
5166431,MOSSLEY PRIVATE HIRE,Technical,Places,Hired Transport,,09/07/14,"1,239.00 "
5166432,GLM ACCESSIBLE TRANSPORT,Education Services,Childrens Services,Transport Of Pupils,Business Payment,09/07/14,"1,470.00 "
5166433,STAMFORD CARS UK LTD,Education Services,Childrens Services,Transport Of Pupils,,10/07/14,997.50 
5166434,LIME TRAVEL,Strategy & Early Intervention,Childrens Services,Hired Transport,,09/07/14,"1,945.00 "
5166437,GLM ACCESSIBLE TRANSPORT,Technical,Places,Hired Transport,Business Payment,09/07/14,"1,440.00 "
5166440,GLM ACCESSIBLE TRANSPORT,Technical,Places,Hired Transport,Business Payment,09/07/14,507.00 
5166443,P MEADOWCROFT,Technical,Places,Hired Transport,Business Payment,10/07/14,960.00 
5166444,MOSSLEY PRIVATE HIRE,Strategy & Early Intervention,Childrens Services,Hired Transport,,09/07/14,"1,052.50 "
5166447,LIME TRAVEL,Children's Services,Childrens Services,Hired Transport,,09/07/14,"1,500.00 "
5166448,STAMFORD CARS UK LTD,Education Services,Childrens Services,Transport Of Pupils,,10/07/14,952.00 
5166451,STAMFORD CARS UK LTD,Education Services,Childrens Services,Transport Of Pupils,,10/07/14,"1,016.00 "
5166452,FENTONS TAXIS,Technical,Places,Hired Transport,,10/07/14,"1,743.00 "
5166457,STAMFORD CARS UK LTD,Education Services,Childrens Services,Transport Of Ola Pupils,,10/07/14,"1,323.00 "
5166458,STAMFORD CARS UK LTD,Education Services,Childrens Services,Transport Of Ola Pupils,,10/07/14,"2,520.00 "
5166464,STAMFORD CARS UK LTD,Education Services,Childrens Services,Transport Of Ola Pupils,,10/07/14,990.00 
5166468,STAMFORD CARS UK LTD,Education Services,Childrens Services,Transport Of Ola Pupils,,10/07/14,"1,249.50 "
5166471,STAMFORD CARS UK LTD,Education Services,Childrens Services,Transport Of Ola Pupils,,10/07/14,"1,732.50 "
5166472,STAMFORD CARS UK LTD,Education Services,Childrens Services,Transport Of Ola Pupils,,10/07/14,"3,360.00 "
5166474,STAMFORD CARS UK LTD,Technical,Places,Hired Transport,,10/07/14,765.00 
5166475,STAMFORD CARS UK LTD,Education Services,Childrens Services,Transport Of Post 16 Pupils,,10/07/14,"1,249.50 "
5166476,STAMFORD CARS UK LTD,Technical,Places,Hired Transport,,10/07/14,"1,155.00 "
5166477,STAMFORD CARS UK LTD,Education Services,Childrens Services,Transport Of Post 16 Pupils,,10/07/14,"1,400.00 "
5166481,STAMFORD CARS UK LTD,Education Services,Childrens Services,Transport Of Pupils,,10/07/14,"1,249.50 "
5166482,STAMFORD CARS UK LTD,Education Services,Childrens Services,Transport Of Pupils,,10/07/14,760.00 
5166483,STAMFORD CARS UK LTD,Technical,Places,Hired Transport,,10/07/14,560.00 
5166484,STAMFORD CARS UK LTD,Technical,Places,Hired Transport,,10/07/14,510.00 
5166486,DIRECT CARE (NORTH WEST) LTD,Adult Services,"Community, Adult & Adults Early Intervention",Homecare Fees,,09/07/14,"5,014.33 "
5166487,DIRECT CARE (NORTH WEST) LTD,Adult Services,"Community, Adult & Adults Early Intervention",Homecare Fees,,09/07/14,"5,596.37 "
5166488,DIRECT CARE (NORTH WEST) LTD,Adult Services,"Community, Adult & Adults Early Intervention",Homecare Fees,,09/07/14,"4,798.34 "
5166489,DIRECT CARE (NORTH WEST) LTD,Adult Services,"Community, Adult & Adults Early Intervention",Homecare Fees,,09/07/14,"4,549.96 "
5166490,,Children's Services,Childrens Services,Childrens Homes Outside Local Authority Fees,Redacted Supplier,14/07/14,"9,150.00 "
5166491,DIRECT CARE (NORTH WEST) LTD,Adult Services,"Community, Adult & Adults Early Intervention",Homecare Fees,,09/07/14,"5,464.48 "
5166495,,Children's Services,Childrens Services,Childrens Homes Outside Local Authority Fees,Redacted Supplier,14/07/14,"7,015.00 "
5166496,AGJ SOLICITORS,Environmental Services,"Economic Growth, Investment and Sustainability",Acquisition - Buildings,,10/07/14,"117,000.00 "
5166499,TAMESIDE ARTS LTD,Adult Services,"Community, Adult & Adults Early Intervention",Professional Services,,10/07/14,"1,040.40 "
5166500,BOTTOMLINE TECHNOLOGIES LIMITED,Digital Tameside,Places,Computer Hardware Maintenance Costs,,09/07/14,"3,639.85 "
5166502,,Children's Services,Childrens Services,Childrens Homes Outside Local Authority Fees,Redacted Supplier,14/07/14,"4,270.00 "
5166504,TRISCAN SYSTEMS LIMITED,Technical,Places,Computer Hardware Maintenance Costs,,09/07/14,"1,765.00 "
5166505,CBS (NORTH WEST) LTD,Operations,Places,Engineers Works,,14/07/14,"2,314.00 "
5166507,A & E FURNITURE LTD T.A THE PAVILION,Adult Services,"Community, Adult & Adults Early Intervention",Fixtures & Fittings Purchase,,10/07/14,698.00 
5166511,HOMESTART TAMESIDE & OLDHAM,Public Health,Public Health,Professional Services,,21/07/14,"50,000.00 "
5166516,ADDICTION DEPENDENCY SOLUTIONS (ADS),Public Health,Public Health,Professional Services,,31/07/14,"5,019.19 "
5166519,ARCO LIMITED,Operations,Places,General Materials,,10/07/14,"1,117.20 "
5166524,NATIONAL YOUTH ADVOCACY SERVICE,Children's Services,Childrens Services,Professional Services,,14/07/14,"17,999.03 "
5166530,,Children's Services,Childrens Services,Childrens Homes Outside Local Authority Fees,Redacted Supplier,14/07/14,"3,310.20 "
5166533,,Children's Services,Childrens Services,Childrens Homes Outside Local Authority Fees,Redacted Supplier,14/07/14,"3,214.20 "
5166544,,Children's Services,Childrens Services,Foster Carer Agency Fees,Redacted Supplier,14/07/14,"3,518.50 "
5166548,WIGAN MBC,Children's Services,Childrens Services,Professional Child Services,,21/07/14,"4,000.00 "
5166550,NPOWER LIMITED,Tameside Investment Partnership,Places,Electricity,,16/07/14,514.04 
5166555,LAWYERS SOLICITORS T/A PORTERS SOLICITORS,Multiple Heads of Service,Multiple Strategic Directorates,Claims Settled,,09/07/14,"3,750.00 "
5166556,LAWYERS SOLICITORS T/A PORTERS SOLICITORS,Multiple Heads of Service,Multiple Strategic Directorates,Claims Settled,,09/07/14,"7,500.00 "
5166558,,Children's Services,Childrens Services,Childrens Homes Outside Local Authority Fees,Redacted Supplier,14/07/14,"2,914.20 "
5166559,,Children's Services,Childrens Services,Foster Carer Agency Fees,Redacted Supplier,14/07/14,567.50 
5166560,NWA SOCIAL & MARKET RESEARCH LIMITED,Policy & Scrutiny,Director of Governance,Research Fees,,17/07/14,"3,493.00 "
5166561,CARE UK HOMECARE,Adult Services,"Community, Adult & Adults Early Intervention",Homecare Fees,,14/07/14,"5,309.16 "
5166562,NWA SOCIAL & MARKET RESEARCH LIMITED,Policy & Scrutiny,Director of Governance,Research Fees,,21/07/14,"3,493.00 "
5166563,NWA SOCIAL & MARKET RESEARCH LIMITED,Policy & Scrutiny,Director of Governance,Research Fees,,21/07/14,"3,352.00 "
5166593,MEDICO NURSING AND HOMECARE,Adult Services,"Community, Adult & Adults Early Intervention",Homecare Fees,,14/07/14,"10,053.27 "
5166595,FRESH START INDEPENDENCE PROJECT LTD,SCYP ,Childrens Services,Living With Formal Support,,09/07/14,672.84 
5166599,VIP-SYSTEM LIMITED,Environmental Services,Places,Taxi Lamination Fees,,30/07/14,"1,653.46 "
5166600,ADDICTION DEPENDENCY SOLUTIONS (ADS),Public Health,Public Health,Professional Services,,31/07/14,"26,772.25 "
5166603,THE FURNISHING SERVICE LTD,Neighbourhoods & Communities,"Community, Adult & Adults Early Intervention",Fixtures & Fittings Purchase,,24/07/14,"1,044.95 "
5166604,,Children's Services,Childrens Services,Foster Carer Agency Fees,Redacted Supplier,14/07/14,"3,053.70 "
5166609,ROSS AUTO ENGINEERING LIMITED,Adult Services,"Community, Adult & Adults Early Intervention",Joint Loans Store Fee,,14/07/14,"130,902.53 "
5166615,BRENTWOOD MOSS NURSERIES,Operations,Places,Tree Planting Programme,,14/07/14,572.25 
5166618,BRENTWOOD MOSS NURSERIES,Operations,Places,Tree Planting Programme,,14/07/14,"1,871.63 "
5166624,ROBINSON & JORDAN FUNERAL SERVICES,Environmental Services,Places,Burial Fees,,09/07/14,"1,379.00 "
5166626,TAMESIDE HOSPITAL NHS FOUNDATION TRUST,Public Health,Public Health,Professional Services,,17/07/14,"3,124.32 "
5166627,XEROX (UK) LIMITED,"Media, Marketing & Communications",Director of Governance,Printing And Stationery,,31/07/14,"4,839.46 "
5166638,FRENZY CREATIVE LIMITED,Technical,Places,Professional Entertainment Services,,28/07/14,"1,000.00 "
5166640,TAMESIDE HOSPITAL NHS FOUNDATION TRUST,Public Health,Public Health,Professional Services,,16/07/14,"2,125.00 "
5166648,ROSS AUTO ENGINEERING LIMITED,Adult Services,"Community, Adult & Adults Early Intervention",Joint Loans Store Fee,,14/07/14,"129,629.56 "
5166650,,Children's Services,Childrens Services,Childrens Homes Outside Local Authority Fees,Redacted Supplier,16/07/14,"15,928.89 "
5166652,,Children's Services,Childrens Services,Foster Carer Agency Fees,Redacted Supplier,14/07/14,"3,167.10 "
5166657,UPDATA INFRASTRUCTURE UK LTD,Multiple Heads of Service,Multiple Strategic Directorates,Communications Equipment,,17/07/14,"7,865.00 "
5166658,PAYPOINT COLLECTIONS LTD,Neighbourhoods & Communities,"Community, Adult & Adults Early Intervention",Emergency Grant Payments,,21/07/14,770.00 
5166659,THE FURNISHING SERVICE LTD,Neighbourhoods & Communities,"Community, Adult & Adults Early Intervention",Fixtures & Fittings Purchase,,28/07/14,759.88 
5166661,,Children's Services,Childrens Services,Foster Carer Agency Fees,Redacted Supplier,14/07/14,"4,380.30 "
5166663,NUDGE ASSOCIATES LIMITED,Other Services,Director of Finance,Professional Services,,28/07/14,"6,583.50 "
5166665,FREECLAIM SOLICITORS,Multiple Heads of Service,Multiple Strategic Directorates,Claims Settled,,09/07/14,"8,522.32 "
5166666,FREECLAIM SOLICITORS,Multiple Heads of Service,Multiple Strategic Directorates,Claims Settled,,09/07/14,"1,130.80 "
5166668,,Children's Services,Childrens Services,"Activity (Materials, Trips)",Redacted Supplier,14/07/14,847.00 
5166672,GREENSCAPE,Operations,Places,Agency Staff,,10/07/14,"1,390.84 "
5166673,UPDATA INFRASTRUCTURE UK LTD,Multiple Heads of Service,Multiple Strategic Directorates,Communications Equipment,,24/07/14,660.00 
5166686,MR L BURKITT,Neighbourhoods & Communities,"Community, Adult & Adults Early Intervention",General Materials,Business Payment,10/07/14,"1,350.00 "
5166688,GREENSCAPE,Adult Services,"Community, Adult & Adults Early Intervention",Tree Planting Programme,,14/07/14,"1,237.86 "
5166705,COMMUNITY AND VOLUNTARY ACTION TAMESIDE,Neighbourhoods & Communities,"Community, Adult & Adults Early Intervention",Grants to Organisations,,10/07/14,"27,693.00 "
5166707,2 BOARDS AND A PASSION LTD,Neighbourhoods & Communities,"Community, Adult & Adults Early Intervention",General Materials,,09/07/14,"2,400.00 "
5166725,COMMUNITY AND VOLUNTARY ACTION TAMESIDE,Neighbourhoods & Communities,"Community, Adult & Adults Early Intervention",Professional Services,,10/07/14,"34,000.00 "
5166727,COMMUNITY AND VOLUNTARY ACTION TAMESIDE,Adult Services,"Community, Adult & Adults Early Intervention",Cash Grants,,14/07/14,"17,070.00 "
5166741,,Children's Services,Childrens Services,Foster Carer Agency Fees,Redacted Supplier,14/07/14,"4,380.30 "
5166749,UNITED UTILITIES WATER PLC,Tameside Investment Partnership,Places,Metered Water Costs,,16/07/14,719.68 
5166754,ELECTRICITY NORTH WEST LTD,Technical,Places,Reactive Works Engineers Recharge,,30/07/14,609.99 
5166757,GREENSCAPE,Operations,Places,Agency Staff,,10/07/14,"1,641.72 "
5166759,ROYAL MAIL GROUP PLC,Exchequer,Director of Finance,Postages,,17/07/14,"2,102.36 "
5166761,COMMUNITY INTEGRATED CARE,Adult Services,"Community, Adult & Adults Early Intervention",Homecare Fees,,28/07/14,"18,360.00 "
5166763,,Children's Services,Childrens Services,Foster Carer Agency Fees,Redacted Supplier,14/07/14,"3,518.50 "
5166765,INSTITUTE OF LICENSING (EVENTS) LIMITED,Environmental Services,Places,Training Course Costs,,28/07/14,"1,485.00 "
5166766,HOUSING AND CARE 21,Adult Services,"Community, Adult & Adults Early Intervention",Homecare Fees,,24/07/14,"14,986.68 "
5166770,CLOVERLEAF ADVOCACY 2000 LTD,Adults Early Intervention,"Community, Adult & Adults Early Intervention",Professional Services,,31/07/14,"12,408.34 "
5166786,,Children's Services,Childrens Services,Foster Carer Agency Fees,Redacted Supplier,14/07/14,"5,799.30 "
5166789,,Children's Services,Childrens Services,Foster Carer Agency Fees,Redacted Supplier,14/07/14,"4,380.30 "
5166792,,Children's Services,Childrens Services,Foster Carer Agency Fees,Redacted Supplier,14/07/14,"3,117.98 "
5166795,RICOH UK,Education Services,Childrens Services,Photo Print Charges,,10/07/14,524.41 
5166797,TRINITY COLLEGE LONDON,Neighbourhoods & Communities,"Community, Adult & Adults Early Intervention",Professional Entertainment Services,,21/07/14,"1,311.00 "
5166815,FRESH START INDEPENDENCE PROJECT LTD,SCYP ,Childrens Services,Living With Formal Support,,09/07/14,"1,569.96 "
5166817,SPECIALISED HOMES AND LODGINGS LTD,SCYP ,Childrens Services,Living With Formal Support,,28/07/14,"3,321.42 "
5166823,UNITED UTILITIES WATER PLC,Tameside Investment Partnership,Places,Metered Water Costs,,16/07/14,"4,533.29 "
5166828,ROYAL MAIL GROUP PLC,Exchequer,Director of Finance,Postages,,24/07/14,"1,233.77 "
5166830,BRENTWOOD MOSS NURSERIES,District Assemblies,"Community,Environmental,Adult and Health Services",Landscaping Works,,10/07/14,"4,226.25 "
5166840,TYNETEC,Adult Services,"Community, Adult & Adults Early Intervention",Purchase General Office Equipment,,10/07/14,855.40 
5166842,DAISY COMMUNICATIONS LTD,Multiple Heads of Service,Multiple Strategic Directorates,Debits,,30/07/14,"5,663.15 "
5166849,SPECIALISED HOMES AND LODGINGS LTD,SCYP ,Childrens Services,Living With Formal Support,,28/07/14,"3,321.42 "
5166851,UPDATA INFRASTRUCTURE UK LTD,Multiple Heads of Service,Multiple Strategic Directorates,Telephone Landline Costs,,17/07/14,"3,523.23 "
5166853,WORKS 4U SUPPORT SERVICES LIMITED,Education Services,Childrens Services,Professional Services,,14/07/14,945.00 
5166854,,Children's Services,Childrens Services,Foster Carer Agency Fees,Redacted Supplier,28/07/14,"8,525.00 "
5166855,,Children's Services,Childrens Services,Childrens Homes Outside Local Authority Fees,Redacted Supplier,24/07/14,"1,641.45 "
5166856,WORKS 4U SUPPORT SERVICES LIMITED,Education Services,Childrens Services,Professional Services,,14/07/14,"1,080.00 "
5166858,WORKS 4U SUPPORT SERVICES LIMITED,Education Services,Childrens Services,Professional Services,,14/07/14,"1,440.00 "
5166859,ELECTRICITY NORTH WEST LTD,Technical,Places,Street Lighting Works,,31/07/14,701.33 
5166863,,Children's Services,Childrens Services,Childrens Homes Outside Local Authority Fees,Redacted Supplier,14/07/14,"3,143.61 "
5166864,DOMAIN CARE NORTH WEST LTD,Adult Services,"Community, Adult & Adults Early Intervention",Homecare Fees,,31/07/14,"3,960.00 "
5166874,PHS GROUP PLC,Tameside Investment Partnership,Places,Personal Hygiene Costs,,28/07/14,570.96 
5166877,COMMUNITY AND VOLUNTARY ACTION TAMESIDE,Public Health,Public Health,Professional Services,,14/07/14,"5,080.00 "
5166879,TYNETEC,Adult Services,"Community, Adult & Adults Early Intervention",It Equipment,,30/07/14,"5,805.30 "
5166882,ELECTRICITY NORTH WEST LTD,Engineers Client,"Economic Growth, Investment and Sustainability",Highway Construction,,31/07/14,869.96 
5166885,COOLSPIRIT LTD,Digital Tameside,Places,It Equipment,,24/07/14,"17,080.60 "
5166886,,Children's Services,Childrens Services,Foster Carer Agency Fees,Redacted Supplier,28/07/14,"3,759.99 "
5166887,FRESH START INDEPENDENCE PROJECT LTD,SCYP ,Childrens Services,Living With Formal Support,,10/07/14,"1,149.96 "
5166892,ELECTRICITY NORTH WEST LTD,Engineers Client,"Economic Growth, Investment and Sustainability",Street Lighting,,31/07/14,674.98 
5166895,SPECIALISED HOMES AND LODGINGS LTD,SCYP ,Childrens Services,Living With Formal Support,,28/07/14,"11,131.42 "
5166898,,Children's Services,Childrens Services,Childrens Homes Outside Local Authority Fees,Redacted Supplier,16/07/14,"12,178.57 "
5166899,PAULINE HENDERSON,Adult Services,"Community, Adult & Adults Early Intervention",Professional Consultancy Services,Business Payment,17/07/14,551.50 
5166902,S & M BUILDERS TAMESIDE LTD,Technical,Places,Engineers Works,,31/07/14,640.00 
5166903,ABLE CARE AND SUPPORT SERVICES LTD,Adult Services,"Community, Adult & Adults Early Intervention",Homecare Fees,,10/07/14,"1,732.08 "
5166904,,Children's Services,Childrens Services,Childrens Homes Outside Local Authority Fees,Redacted Supplier,28/07/14,"19,975.16 "
5166905,COMFORT CALL LIMITED,Adult Services,"Community, Adult & Adults Early Intervention",Homecare Fees,,14/07/14,"28,780.47 "
5166906,,Children's Services,Childrens Services,Foster Carer Agency Fees,Redacted Supplier,21/07/14,"3,520.71 "
5166907,FRIENDS OF OXFORD PARK,Neighbourhoods & Communities,"Community, Adult & Adults Early Intervention",Room Hire,,10/07/14,"1,160.00 "
5166908,,Children's Services,Childrens Services,Foster Carer Agency Fees,Redacted Supplier,28/07/14,"3,871.90 "
5166910,,Children's Services,Childrens Services,Childrens Homes Outside Local Authority Fees,Redacted Supplier,28/07/14,"9,145.00 "
5166914,,Children's Services,Childrens Services,Childrens Homes Outside Local Authority Fees,Redacted Supplier,28/07/14,"8,525.00 "
5166918,SPECIALISED HOMES AND LODGINGS LTD,SCYP ,Childrens Services,Living With Formal Support,,28/07/14,"3,321.42 "
5166921,PHS GROUP PLC,Tameside Investment Partnership,Places,Personal Hygiene Costs,,28/07/14,"1,314.90 "
5166926,G4S CASH SOLUTIONS (UK) LIMITED,Borough Solicitor,Director of Governance,Security Services,,10/07/14,54.32 
5166926,G4S CASH SOLUTIONS (UK) LIMITED,Neighbourhoods & Communities,"Community, Adult & Adults Early Intervention",Security Services,,10/07/14,488.84 
5166929,BT PLC,Multiple Heads of Service,Multiple Strategic Directorates,Telephone Landline Costs,,16/07/14,"2,590.88 "
5166932,BT PLC,Multiple Heads of Service,Multiple Strategic Directorates,Telephone Landline Costs,,16/07/14,"1,109.88 "
5166938,FRONTIER MEDICAL PRODUCTS,Public Health,Public Health,Local Enhanced Services,,10/07/14,"3,028.00 "
5166939,FRONTIER MEDICAL PRODUCTS,Public Health,Public Health,Local Enhanced Services,,10/07/14,"3,387.50 "
5166940,STOCKPORT NHS FOUNDATION TRUST,Education Services,Childrens Services,Professional Services,,14/07/14,"3,333.00 "
5166945,PRD PROPERTY SERVICES LTD,Borough Solicitor,Director of Governance,Legal Fees,,16/07/14,"4,320.00 "
5166948,,Children's Services,Childrens Services,Childrens Homes Outside Local Authority Fees,Redacted Supplier,28/07/14,"10,176.99 "
5166951,CATHOLIC BLIND INSTITUTE,Education Services,Childrens Services,Voluntary Organisations Fees,,14/07/14,"10,858.00 "
5166953,BARNARDO SERVICES LTD,Children's Services,Childrens Services,Professional Services,,24/07/14,"6,875.00 "
5166956,MAKING SPACE,Adult Services,"Community, Adult & Adults Early Intervention",Voluntary Organisations Fees,,14/07/14,"20,735.75 "
5166958,,SCYP ,Childrens Services,Living With Formal Support,Redacted Supplier,14/07/14,"8,562.90 "
5166959,TRINITY MIRROR NORTH PUBLISHING LTD,"Media, Marketing & Communications",Director of Governance,Statutory Advertising,,14/07/14,982.94 
5166960,FULL CONTROL NETWORKS DISTRIBUTION LTD,Digital Tameside,Places,Computer Hardware Maintenance Costs,,30/07/14,"1,405.00 "
5166966,H M REVENUE & CUSTOMS,Neighbourhoods & Communities,"Community, Adult & Adults Early Intervention",Authority Accommodation Rental,,16/07/14,"48,520.00 "
5166967,,Children's Services,Childrens Services,Childrens Homes Outside Local Authority Fees,Redacted Supplier,28/07/14,"4,698.21 "
5166969,HEARTLIFT LTD,Education Services,Childrens Services,Voluntary Organisations Fees,,10/07/14,"1,650.00 "
5166979,MUSE DEVELOPMENTS,Engineers Client,"Economic Growth, Investment and Sustainability",Highway Construction,,17/07/14,"131,742.75 "
5166981,CARE IN MIND LTD,Adult Services,"Community, Adult & Adults Early Intervention",Residential Home Short Stay Fees,,30/07/14,"10,698.60 "
5166983,ALTERNATIVE FUTURES GROUP,Adult Services,"Community, Adult & Adults Early Intervention",Homecare Fees,,16/07/14,"116,656.04 "
5166984,MANCHESTER MENTAL HEALTH & SOCIAL CARE TRUST,Other Services,Director of Finance,Professional Services,,16/07/14,"3,602.00 "
5166985,ROPE RACE CLIMBING CENTRE,Neighbourhoods & Communities,"Community, Adult & Adults Early Intervention",Professional Entertainment Services,,14/07/14,500.00 
5166986,,Children's Services,Childrens Services,Foster Carer Agency Fees,Redacted Supplier,30/07/14,"3,190.00 "
5166987,CREATIVE IDEAS IN PRINT LTD,"Media, Marketing & Communications",Director of Governance,Printing And Stationery,,14/07/14,"1,156.66 "
5166994,,Children's Services,Childrens Services,Childrens Homes Outside Local Authority Fees,Redacted Supplier,21/07/14,"11,400.00 "
5167006,NHS GREATER MANCHESTER CSU,Public Health,Public Health,Professional Services,,16/07/14,"9,080.16 "
5167012,CARE UK HOMECARE,Adult Services,"Community, Adult & Adults Early Intervention",Homecare Fees,,14/07/14,"30,170.69 "
5167024,,Children's Services,Childrens Services,Foster Carer Agency Fees,Redacted Supplier,24/07/14,"3,161.00 "
5167028,ROYAL MAIL GROUP PLC,Borough Solicitor,Director of Governance,Postages,,21/07/14,"1,323.18 "
5167035,ACME AIR CONDITIONING,Asset Mgmt & Investment Partnership Mgmt,Places,Purchase Heavy Catering Equipment,,28/07/14,816.00 
5167036,BOLTON MBC,Neighbourhoods & Communities,"Community, Adult & Adults Early Intervention",Contingency Provisions,,14/07/14,"13,301.60 "
5167037,TEACHING PERSONNEL LTD,Education Services,Childrens Services,Voluntary Organisations Fees,,16/07/14,"1,488.00 "
5167038,INTEC FOR BUSINESS LTD,Audit & Risk Management,Director of Finance,Project Expenditure Home Office,,10/07/14,"4,500.00 "
5167039,,Children's Services,Childrens Services,Homecare Fees,Redacted Supplier,28/07/14,"4,375.00 "
5167042,STEWART COOK,Neighbourhoods & Communities,"Community, Adult & Adults Early Intervention",Professional Services,Business Payment,14/07/14,670.00 
5167044,MAMMOTH SIGNS LTD,Environmental Services,Places,Purchase Wheeled Bins,,24/07/14,500.00 
5167047,FRESH START INDEPENDENCE PROJECT LTD,SCYP ,Childrens Services,Living With Formal Support,,24/07/14,"1,149.96 "
5167048,ADVENTURE BASED LEARNING,Neighbourhoods & Communities,"Community, Adult & Adults Early Intervention",Professional Entertainment Services,,31/07/14,"1,100.00 "
5167060,RED SUBMARINE LIMITED,You Choose,Director of Governance,General Materials,,14/07/14,738.99 
5167062,CREATIVE SUPPORT LTD,Adult Services,"Community, Adult & Adults Early Intervention",Age Concern Fees,,14/07/14,"28,726.66 "
5167066,,Children's Services,Childrens Services,Foster Carer Agency Fees,Redacted Supplier,28/07/14,"4,636.67 "
5167069,MARKET TRADE NEWS,Technical,Places,Statutory Advertising,,16/07/14,500.00 
5167082,UNITED UTILITIES WATER LTD,Operations,Places,Refreshments,,14/07/14,500.04 
5167084,UNITED UTILITIES WATER LTD,Operations,Places,Refreshments,,14/07/14,500.04 
5167086,,Children's Services,Childrens Services,Childrens Homes Outside Local Authority Fees,Redacted Supplier,31/07/14,"11,049.29 "
5167088,ADVOCACY EXPERIENCE LTD,Adults Early Intervention,"Community, Adult & Adults Early Intervention",Professional Services,,28/07/14,"7,518.62 "
5167089,,Adult Services,"Community, Adult & Adults Early Intervention",Contribution to Maintenance Fee Income,Redacted Supplier,14/07/14,820.47 
5167103,TRANSPORT FOR GREATER MANCHESTER,Engineers Client,"Economic Growth, Investment and Sustainability",Traffic Signals,,16/07/14,"1,600.00 "
5167104,THE PENNINE ACUTE HOSPITALS NHS TRUST,Public Health,Public Health,Professional Services,,31/07/14,"1,065.00 "
5167115,MARY FODEN,Adult Services,"Community, Adult & Adults Early Intervention",Professional Services,Business Payment,14/07/14,"1,055.40 "
5167118,DOMAIN CARE NORTH WEST LTD,Adult Services,"Community, Adult & Adults Early Intervention",Homecare Fees,,31/07/14,"4,480.00 "
5167119,DOMAIN CARE NORTH WEST LTD,Adult Services,"Community, Adult & Adults Early Intervention",Homecare Fees,,31/07/14,"2,710.00 "
5167120,DOMAIN CARE NORTH WEST LTD,Adult Services,"Community, Adult & Adults Early Intervention",Homecare Fees,,31/07/14,"3,960.00 "
5167132,DOMAIN CARE NORTH WEST LTD,Adult Services,"Community, Adult & Adults Early Intervention",Homecare Fees,,17/07/14,671.58 
5167135,COMMUNITY AND VOLUNTARY ACTION TAMESIDE,Strategy & Early Intervention,Childrens Services,Professional Services,,17/07/14,"4,725.00 "
5167138,DOMAIN CARE NORTH WEST LTD,Adult Services,"Community, Adult & Adults Early Intervention",Homecare Fees,,31/07/14,639.60 
5167140,CREATIVE SUPPORT LTD,Adult Services,"Community, Adult & Adults Early Intervention",Residential Home Long Stay Fees,,14/07/14,"1,661.52 "
5167141,TAMESIDE RADIO,Technical,Places,Statutory Advertising,,14/07/14,720.00 
5167148,CF ASSESMENTS LTD,Children's Services,Childrens Services,Adoption Agency Fees,,14/07/14,"2,002.28 "
5167149,CF ASSESMENTS LTD,Children's Services,Childrens Services,Adoption Agency Fees,,14/07/14,"2,097.96 "
5167164,MARSTON GROUP LTD,Multiple Heads of Service,Multiple Strategic Directorates,Credits,,16/07/14,"1,281.34 "
5167168,TRINITY COLLEGE LONDON,Neighbourhoods & Communities,"Community, Adult & Adults Early Intervention",Professional Entertainment Services,,14/07/14,912.00 
5167169,STAMFORD CARS UK LTD,Education Services,Childrens Services,Transport Of Ola Pupils,,14/07/14,"1,785.00 "
5167170,STAMFORD CARS UK LTD,Education Services,Childrens Services,Transport Of Ola Pupils,,14/07/14,"2,050.00 "
5167172,STAMFORD CARS UK LTD,Education Services,Childrens Services,Transport Of Pupils,,14/07/14,"1,155.00 "
5167174,STAMFORD CARS UK LTD,Education Services,Childrens Services,Transport Of Pupils,,14/07/14,"1,559.25 "
5167175,STAMFORD CARS UK LTD,Education Services,Childrens Services,Transport Of Ola Pupils,,14/07/14,"1,785.00 "
5167176,STAMFORD CARS UK LTD,Education Services,Childrens Services,Transport Of Ola Pupils,,14/07/14,"1,835.00 "
5167178,PERFORMING RIGHT SOCIETY,Adults Early Intervention,"Community, Adult & Adults Early Intervention",Other Local Authorities Fees,,16/07/14,539.04 
5167180,STAMFORD CARS UK LTD,Education Services,Childrens Services,Transport Of Pupils,,14/07/14,"1,701.00 "
5167182,STAMFORD CARS UK LTD,Education Services,Childrens Services,Transport Of Pupils,,14/07/14,"1,249.50 "
5167184,DENTON LINKS,Education Services,Childrens Services,Transport Of Ola Pupils,,14/07/14,"2,415.00 "
5167187,DENTON LINKS,Education Services,Childrens Services,Transport Of Ola Pupils,,14/07/14,"1,575.00 "
5167191,DENTON LINKS,Children's Services,Childrens Services,Hired Transport,,14/07/14,"1,995.00 "
5167197,,Children's Services,Childrens Services,"Activity (Materials, Trips)",Redacted Supplier,14/07/14,792.00 
5167199,GREYSTONES TAMESIDE LTD,Neighbourhoods & Communities,"Community, Adult & Adults Early Intervention",Supporting People Gross Contract,,14/07/14,"8,333.33 "
5167201,GREYSTONES TAMESIDE LTD,Neighbourhoods & Communities,"Community, Adult & Adults Early Intervention",Supporting People Gross Contract,,14/07/14,"14,212.87 "
5167203,GREYSTONES TAMESIDE LTD,Neighbourhoods & Communities,"Community, Adult & Adults Early Intervention",Supporting People Gross Contract,,21/07/14,"14,212.87 "
5167208,GREYSTONES TAMESIDE LTD,Neighbourhoods & Communities,"Community, Adult & Adults Early Intervention",Supporting People Gross Contract,,21/07/14,"14,212.87 "
5167213,GREYSTONES TAMESIDE LTD,Neighbourhoods & Communities,"Community, Adult & Adults Early Intervention",Supporting People Gross Contract,,16/07/14,"8,333.33 "
5167222,GREYSTONES TAMESIDE LTD,Neighbourhoods & Communities,"Community, Adult & Adults Early Intervention",Supporting People Gross Contract,,21/07/14,"14,212.87 "
5167226,TORDAN HEALTHCARE LTD,Children's Services,Childrens Services,Homecare Fees,,14/07/14,710.50 
5167231,ACORN RECOVERY PROJECTS,Public Health,Public Health,Professional Services,,14/07/14,900.00 
5167237,DAC BEACHCROFT,Housing,"Economic Growth, Investment and Sustainability",Legal - External,,16/07/14,"10,035.00 "
5167238,TAMESIDE LINK,Adult Services,"Community, Adult & Adults Early Intervention",Voluntary Organisations Fees,,17/07/14,"15,086.32 "
5167239,ACORN RECOVERY PROJECTS,Public Health,Public Health,Professional Services,,14/07/14,840.00 
5167240,TAMESIDE LINK,Adult Services,"Community, Adult & Adults Early Intervention",Voluntary Organisations Fees,,17/07/14,"15,086.32 "
5167241,GORVINS,Environmental Services,"Economic Growth, Investment and Sustainability",Acquisition - Buildings,,16/07/14,"112,500.00 "
5167242,COURTYARD CONTINUING CARE LTD T/A COURTYARD CARE PLUS,Children's Services,Childrens Services,Homecare Fees,,28/07/14,"1,485.00 "
5167243,RUPERT WOOD & SON,Environmental Services,"Economic Growth, Investment and Sustainability",Acquisition - Buildings,,16/07/14,"67,500.00 "
5167244,INSPIREDSPACES TAMESIDE LTD,Asset Management and Investment Partnership Management,"Economic Growth, Investment and Sustainability",Telecom,,16/07/14,"1,881.16 "
5167244,INSPIREDSPACES TAMESIDE LTD,Asset Mgmt & Investment Partnership Mgmt,Places,Building Works,,16/07/14,828.13 
5167244,INSPIREDSPACES TAMESIDE LTD,Tameside Investment Partnership,Places,Miscellaneous Expenses,,16/07/14,"378,861.70 "
5167246,WORKS 4U SUPPORT SERVICES LIMITED,Education Services,Childrens Services,Professional Services,,14/07/14,"1,440.00 "
5167250,FORBES SOLICITORS,Multiple Heads of Service,Multiple Strategic Directorates,Allocation Of Income,,31/07/14,350.00 
5167250,FORBES SOLICITORS,Multiple Heads of Service,Multiple Strategic Directorates,Payment On Account,,31/07/14,"1,173.00 "
5167252,SALFORD CITY COUNCIL,Adult Services,"Community, Adult & Adults Early Intervention",Subscriptions,,30/07/14,"4,937.00 "
5167255,DOMAIN CARE NORTH WEST LTD,Adult Services,"Community, Adult & Adults Early Intervention",Homecare Fees,,21/07/14,799.50 
5167256,THRESHOLD HOUSING PROJECT,Neighbourhoods & Communities,"Community, Adult & Adults Early Intervention",Supporting People Gross Contract,,17/07/14,"30,833.33 "
5167258,THRESHOLD HOUSING PROJECT,Neighbourhoods & Communities,"Community, Adult & Adults Early Intervention",Supporting People Gross Contract,,17/07/14,"14,666.66 "
5167259,THE STROKE ASSOCIATION,Adult Services,"Community, Adult & Adults Early Intervention",Contributions,,21/07/14,"30,845.70 "
5167261,HEALTH MANAGEMENT (UK) LTD,People & Performance,Director of Governance,Professional Consultancy Services,,30/07/14,"8,149.60 "
5167263,DOMAIN CARE NORTH WEST LTD,Adult Services,"Community, Adult & Adults Early Intervention",Homecare Fees,,21/07/14,720.00 
5167267,POSTAGE BY PHONE PITNEY BOWES LTD,Exchequer,Director of Finance,Postages,,14/07/14,"4,197.13 "
5167273,GREYSTONES TAMESIDE LTD,Neighbourhoods & Communities,"Community, Adult & Adults Early Intervention",Supporting People Gross Contract,,14/07/14,"8,333.33 "
5167277,A & E FURNITURE LTD T.A THE PAVILION,Adult Services,"Community, Adult & Adults Early Intervention",Fixtures & Fittings Purchase,,17/07/14,699.00 
5167278,GREYSTONES TAMESIDE LTD,Neighbourhoods & Communities,"Community, Adult & Adults Early Intervention",Supporting People Gross Contract,,14/07/14,"8,333.33 "
5167280,P J SPENCER LTD,Technical,Places,Building Works,,21/07/14,"2,498.00 "
5167281,GREENSCAPE,Operations,Places,Agency Staff,,16/07/14,"1,347.86 "
5167282,GREENSCAPE,Operations,Places,General Materials,,17/07/14,500.00 
5167283,GREENSCAPE,Operations,Places,Agency Staff,,17/07/14,816.02 
5167288,TORDAN HEALTHCARE LTD,Children's Services,Childrens Services,Homecare Fees,,14/07/14,"1,232.50 "
5167290,TORDAN HEALTHCARE LTD,Children's Services,Childrens Services,Homecare Fees,,14/07/14,"1,442.75 "
5167295,TORDAN HEALTHCARE LTD,Children's Services,Childrens Services,Homecare Fees,,14/07/14,"1,145.50 "
5167296,TORDAN HEALTHCARE LTD,Children's Services,Childrens Services,Homecare Fees,,14/07/14,"1,602.25 "
5167299,TORDAN HEALTHCARE LTD,Children's Services,Childrens Services,Homecare Fees,,14/07/14,696.00 
5167317,CASH BOX CREDIT UNION LTD,Neighbourhoods & Communities,"Community, Adult & Adults Early Intervention",Professional Services,,14/07/14,"5,333.00 "
5167319,CASH BOX CREDIT UNION,Neighbourhoods & Communities,"Community, Adult & Adults Early Intervention",Emergency Grant Payments,,21/07/14,"20,000.00 "
5167320,TORDAN HEALTHCARE LTD,Children's Services,Childrens Services,Homecare Fees,,14/07/14,812.00 
5167324,CREATIVE SUPPORT LTD,Adult Services,"Community, Adult & Adults Early Intervention",Homecare Fees,,21/07/14,"15,291.50 "
5167327,CREATIVE SUPPORT LTD,Adult Services,"Community, Adult & Adults Early Intervention",Homecare Fees,,21/07/14,"15,291.50 "
5167329,CREATIVE SUPPORT LTD,Adult Services,"Community, Adult & Adults Early Intervention",Homecare Fees,,21/07/14,"15,291.50 "
5167330,CREATIVE SUPPORT LTD,Adult Services,"Community, Adult & Adults Early Intervention",Homecare Fees,,21/07/14,"15,291.50 "
5167336,JULIE STIRPE ASSOCIATES LTD,Children's Services,Childrens Services,Professional Consultancy Services,,24/07/14,760.00 
5167338,JULIE STIRPE ASSOCIATES LTD,Children's Services,Childrens Services,Professional Consultancy Services,,30/07/14,760.00 
5167341,HOWARD COOK,Education Services,Childrens Services,Professional Services,Business Payment,16/07/14,680.00 
5167342,HOWARD COOK,Education Services,Childrens Services,Professional Services,Business Payment,16/07/14,680.00 
5167343,NATIONAL YOUTH ADVOCACY SERVICE,Children's Services,Childrens Services,Professional Services,,24/07/14,"17,999.03 "
5167347,SAS DANIELS LLP,Other Services,Director of Finance,Legal Fees,,16/07/14,690.00 
5167348,MRS LEONIE CAPLAN,Children's Services,Childrens Services,Legal Fees,Business Payment,16/07/14,650.00 
5167351,STOCKPORT PSYCHOLOGY SERVICES LTD,Children's Services,Childrens Services,Professional Services,,16/07/14,976.40 
5167352,MISS SARAH DONALDSON,Children's Services,Childrens Services,Legal Fees,Business Payment,16/07/14,"3,700.00 "
5167355,ANDREW MOORE,Children's Services,Childrens Services,Legal Fees,Business Payment,16/07/14,950.00 
5167356,ADULLAM HOMES HOUSING ASSOC LTD,Neighbourhoods & Communities,"Community, Adult & Adults Early Intervention",Supporting People Gross Contract,,16/07/14,"37,226.00 "
5167357,MR ROGER WHALLEY,Sustainable Growth,Places,Professional Consultancy Services,Business Payment,16/07/14,"1,947.00 "
5167361,BT PLC,Adult Services,"Community, Adult & Adults Early Intervention",Telephone Landline Costs,,30/07/14,670.19 
5167362,PAYPOINT COLLECTIONS LTD,Neighbourhoods & Communities,"Community, Adult & Adults Early Intervention",Emergency Grant Payments,,16/07/14,885.00 
5167363,NICK HARRISON,Engineers Client,"Economic Growth, Investment and Sustainability",Professional Services,Business Payment,16/07/14,"1,050.00 "
5167366,JOY LEGAL LTD,Borough Solicitor,Director of Governance,Agency Staff,,24/07/14,"3,240.00 "
5167369,RED SUBMARINE LIMITED,You Choose,Director of Governance,General Materials,,16/07/14,"1,515.09 "
5167371,THYSSENKRUPP ENCASA LTD,Housing,"Economic Growth, Investment and Sustainability",Improvement Grants - Final Mandatory,,16/07/14,"3,969.00 "
5167373,J A FINNERTY LTD,Housing,"Economic Growth, Investment and Sustainability",Improvement Grants - Final Mandatory,,16/07/14,"3,564.00 "
5167374,COMFORT CALL LIMITED,Adult Services,"Community, Adult & Adults Early Intervention",Homecare Fees,,21/07/14,"28,969.81 "
5167377,CYCLESCHEME LTD,Multiple Heads of Service,Multiple Strategic Directorates,Debits,,16/07/14,"2,199.98 "
5167380,GREYSTONES TAMESIDE LTD,Neighbourhoods & Communities,"Community, Adult & Adults Early Intervention",Emergency Grant Payments,,16/07/14,560.00 
5167382,THE FAMILY UNIT LTD,Adult Services,"Community, Adult & Adults Early Intervention",Homecare Fees,,21/07/14,"3,416.00 "
5167391,NEW BRIDGE HORIZONS,Adult Services,"Community, Adult & Adults Early Intervention",Homecare Fees,,17/07/14,508.00 
5167392,TAMESIDE LINK,Adult Services,"Community, Adult & Adults Early Intervention",Voluntary Organisations Fees,,24/07/14,"15,086.32 "
5167393,JULIE CARTER,Adult Services,"Community, Adult & Adults Early Intervention",Professional Interpreter Services,Business Payment,17/07/14,"1,392.00 "
5167397,ROCHDALE MBC,Other Services,Director of Finance,Professional Services,,16/07/14,"4,204.85 "
5167407,,Adult Services,"Community, Adult & Adults Early Intervention",Day Care Fees,Redacted Supplier,16/07/14,801.96 
5167415,,Adult Services,"Community, Adult & Adults Early Intervention",Day Care Fees,Redacted Supplier,16/07/14,543.67 
5167426,CAPITA - COUNCIL TAX PAYMENT,(blank),(blank),Capita Debtors Income,,16/07/14,520.06 
5167436,DR C M GREENHOUGH,Public Health,Public Health,Professional Services,Business Payment,24/07/14,"2,515.50 "
5167444,THE FAMILY UNIT LTD,SCYP ,Childrens Services,Living With Formal Support,,17/07/14,"3,000.00 "
5167445,THE FAMILY UNIT LTD,SCYP ,Childrens Services,Living With Formal Support,,17/07/14,"3,400.00 "
5167446,THE FAMILY UNIT LTD,SCYP ,Childrens Services,Living With Formal Support,,17/07/14,"5,400.00 "
5167447,THE FAMILY UNIT LTD,SCYP ,Childrens Services,Living With Formal Support,,17/07/14,"3,400.00 "
5167450,GREENSCAPE,Operations,Places,General Materials,,30/07/14,595.00 
5167459,CITY LIFT SERVICES (NW) LTD,Adult Services,"Community, Adult & Adults Early Intervention",Adaptations To Buildings,,17/07/14,960.00 
5167463,SITA UK LTD,Operations,Places,Contributions,,17/07/14,"2,750.00 "
5167469,TARMAC LIMITED,Technical,Places,HRA Repairs Engineers Recharge,,16/07/14,"10,449.67 "
5167473,VODAFONE,Audit & Risk Management,Director of Finance,Project Expenditure Home Office,,17/07/14,"4,695.00 "
5167479,JULIE STIRPE ASSOCIATES LTD,Children's Services,Childrens Services,Professional Consultancy Services,,16/07/14,"1,404.41 "
5167488,AZANDER LTD,"Media, Marketing & Communications",Director of Governance,Professional Photography Services,,16/07/14,549.43 
5167501,EQUIFAX LTD,Audit & Risk Management,Director of Finance,Professional Services,,30/07/14,"2,784.35 "
5167516,BT PLC,Technical,Places,Engineers -External,,16/07/14,"39,746.50 "
5167557,YMCA LAKESIDE,Strategy & Early Intervention,Childrens Services,Personal Needs Entertainments & Holidays,,17/07/14,"2,014.80 "
5167565,NSL LIMITED,Technical,Places,NSL Fees,,28/07/14,"52,325.26 "
5167575,HMCTS,Exchequer,Director of Finance,Court Fees,,16/07/14,900.00 
5167600,M G DOMESTIC,Adult Services,"Community, Adult & Adults Early Intervention",Fixtures & Fittings Purchase,,17/07/14,659.97 
5167610,FAIRWAY LANDSCAPES LTD,Operations,Places,General Materials,,17/07/14,"22,256.00 "
5167612,ROYAL MENCAP SOCIETY,Adult Services,"Community, Adult & Adults Early Intervention",Voluntary Organisations Fees,,31/07/14,"9,750.00 "
5167621,JACKSON & TAYLOR LTD,Housing,"Economic Growth, Investment and Sustainability",Improvement Grants - Final Mandatory,,21/07/14,"4,200.00 "
5167628,THRESHOLD HOUSING PROJECT,Neighbourhoods & Communities,"Community, Adult & Adults Early Intervention",Supporting People Gross Contract,,17/07/14,"30,833.33 "
5167630,,Children's Services,Childrens Services,Foster Carer Agency Fees,Redacted Supplier,16/07/14,799.00 
5167632,,Children's Services,Childrens Services,Foster Carer Agency Fees,Redacted Supplier,24/07/14,"2,825.00 "
5167634,GREATER MANCHESTER PROBATION TRUST,Public Health,Public Health,Professional Services,,31/07/14,"2,787.38 "
5167638,CREATIVE SUPPORT LTD,Adult Services,"Community, Adult & Adults Early Intervention",Homecare Fees,,30/07/14,"124,890.83 "
5167639,THYSSENKRUPP ENCASA LTD,Housing,"Economic Growth, Investment and Sustainability",Improvement Grants - Final Mandatory,,16/07/14,"2,260.00 "
5167641,VINCENT OBRIEN (CONSTRUCTION),Housing,"Economic Growth, Investment and Sustainability",Improvement Grants - Final Mandatory,,16/07/14,"1,175.00 "
5167645,,Children's Services,Childrens Services,Foster Carer Agency Fees,Redacted Supplier,16/07/14,"3,507.00 "
5167648,THRESHOLD HOUSING PROJECT,Neighbourhoods & Communities,"Community, Adult & Adults Early Intervention",Supporting People Gross Contract,,17/07/14,"29,332.00 "
5167652,TAMESIDE ARTS LTD,Adult Services,"Community, Adult & Adults Early Intervention",Professional Services,,21/07/14,"1,193.40 "
5167660,,Children's Services,Childrens Services,Foster Carer Agency Fees,Redacted Supplier,16/07/14,"3,507.00 "
5167661,MACK 4 LIMITED,Housing,"Economic Growth, Investment and Sustainability",Improvement Grants - Final Mandatory,,16/07/14,"6,415.00 "
5167663,EON ENERGY,Technical,Places,Electricity,,30/07/14,"2,712.52 "
5167665,COMFORT CALL LIMITED,Adult Services,"Community, Adult & Adults Early Intervention",Homecare Fees,,24/07/14,"29,280.90 "
5167666,D WOODMAN BUILDERS,Housing,"Economic Growth, Investment and Sustainability",Improvement Grants - Final Mandatory,,16/07/14,"4,590.00 "
5167667,GREATER MANCHESTER CENTRE FOR VOLUNTARY ORG.,NWEGG,Places,Room Hire,,17/07/14,720.00 
5167668,K P DODD CONSTRUCTION LTD,Housing,"Economic Growth, Investment and Sustainability",Improvement Grants - Final Mandatory,,21/07/14,"3,746.00 "
5167670,LARK HILL COMMUNITY PRIMARY SCHOOL,Education Services,Childrens Services,Professional Consultancy Services,,16/07/14,"4,884.16 "
5167671,LARK HILL COMMUNITY PRIMARY SCHOOL,Education Services,Childrens Services,Professional Consultancy Services,,16/07/14,"2,136.82 "
5167683,,Children's Services,Childrens Services,Foster Carer Agency Fees,Redacted Supplier,24/07/14,"8,949.39 "
5167701,OSTINATO MUSIC LTD,Education Services,Childrens Services,Professional Services,,21/07/14,"1,655.00 "
5167704,PROFILE SECURITY SERVICES LIMITED,Technical,Places,Security Services,,28/07/14,"2,356.75 "
5167709,THRESHOLD HOUSING PROJECT,Neighbourhoods & Communities,"Community, Adult & Adults Early Intervention",Supporting People Gross Contract,,17/07/14,"61,666.66 "
5167710,,Children's Services,Childrens Services,Foster Carer Agency Fees,Redacted Supplier,30/07/14,800.00 
5167711,CREATIVE SUPPORT LTD,Adult Services,"Community, Adult & Adults Early Intervention",Homecare Fees,,30/07/14,"79,445.25 "
5167714,CREATIVE SUPPORT LTD,Adult Services,"Community, Adult & Adults Early Intervention",Homecare Fees,,30/07/14,"84,992.92 "
5167715,ABLE CARE AND SUPPORT SERVICES LTD,Adult Services,"Community, Adult & Adults Early Intervention",Homecare Fees,,17/07/14,"1,732.08 "
5167717,GREATER MANCHESTER PROBATION TRUST,Neighbourhoods & Communities,"Community, Adult & Adults Early Intervention",Professional Services,,31/07/14,"19,115.65 "
5167718,THRESHOLD HOUSING PROJECT,Neighbourhoods & Communities,"Community, Adult & Adults Early Intervention",Supporting People Gross Contract,,17/07/14,"14,666.66 "
5167720,STANNAH LIFT SERVICES LTD,Housing,"Economic Growth, Investment and Sustainability",Improvement Grants - Final Mandatory,,17/07/14,"4,415.00 "
5167721,CARE UK HOMECARE,Adult Services,"Community, Adult & Adults Early Intervention",Homecare Fees,,17/07/14,"5,309.16 "
5167722,THE FAMILY UNIT LTD,SCYP ,Childrens Services,Living With Formal Support,,17/07/14,"1,500.00 "
5167723,PENNINE CARE IN PATIENT SERVS PRIORY,Education Services,Childrens Services,Voluntary Organisations Fees,,28/07/14,875.00 
5167725,PENNINE CARE IN PATIENT SERVS PRIORY,Education Services,Childrens Services,Voluntary Organisations Fees,,28/07/14,"2,800.00 "
5167727,PENNINE CARE IN PATIENT SERVS PRIORY,Education Services,Childrens Services,Voluntary Organisations Fees,,21/07/14,525.00 
5167728,PENNINE CARE IN PATIENT SERVS PRIORY,Education Services,Childrens Services,Voluntary Organisations Fees,,21/07/14,"2,450.00 "
5167729,PENNINE CARE IN PATIENT SERVS PRIORY,Education Services,Childrens Services,Voluntary Organisations Fees,,21/07/14,"3,325.00 "
5167730,PENNINE CARE IN PATIENT SERVS PRIORY,Education Services,Childrens Services,Voluntary Organisations Fees,,28/07/14,"3,150.00 "
5167731,PENNINE CARE IN PATIENT SERVS PRIORY,Education Services,Childrens Services,Voluntary Organisations Fees,,28/07/14,"2,800.00 "
5167732,PENNINE CARE IN PATIENT SERVS PRIORY,Education Services,Childrens Services,Voluntary Organisations Fees,,28/07/14,"2,975.00 "
5167749,ACORN CARE & EDUCATION LTD (SALES),Education Services,Childrens Services,Voluntary Organisations Fees,,30/07/14,"9,810.51 "
5167759,VILLAGE URBAN RESORTS,Other Services,Director of Finance,Contributions,,17/07/14,"1,369.95 "
5167760,VILLAGE URBAN RESORTS,Other Services,Director of Finance,Contributions,,17/07/14,"1,179.71 "
5167761,VILLAGE URBAN RESORTS,Other Services,Director of Finance,Contributions,,17/07/14,"1,178.92 "
5167771,NORTHENDEN TRAVEL LTD,Adult Services,"Community, Adult & Adults Early Intervention",Staff Travel Costs,,28/07/14,580.80 
5167775,POST OFFICE,Technical,Places,Motor Licence Costs,,21/07/14,"1,055.00 "
5167777,GRO2MOW LIMITED,Operations,Places,Grounds Maintenance,,24/07/14,"1,200.00 "
5167792,HMCTS,Exchequer,Director of Finance,Court Fees,,21/07/14,"4,761.00 "
5167794,HMCTS,Exchequer,Director of Finance,Court Fees,,21/07/14,"4,611.00 "
5167807,SALFORD CITY COUNCIL,Environmental Services,Places,Professional Consultancy Services,,30/07/14,"7,000.00 "
5167809,,Children's Services,Childrens Services,Childrens Homes Outside Local Authority Fees,Redacted Supplier,21/07/14,"11,173.50 "
5167810,,Children's Services,Childrens Services,Childrens Homes Outside Local Authority Fees,Redacted Supplier,21/07/14,"10,067.10 "
5167811,,Children's Services,Childrens Services,Foster Carer Agency Fees,Redacted Supplier,30/07/14,"3,270.00 "
5167817,ACORN CARE & EDUCATION LTD (SALES),Education Services,Childrens Services,Voluntary Organisations Fees,,30/07/14,"10,347.68 "
5167821,,Children's Services,Childrens Services,Foster Carer Agency Fees,Redacted Supplier,21/07/14,"3,077.99 "
5167823,ACORN CARE & EDUCATION LTD (SALES),Education Services,Childrens Services,Voluntary Organisations Fees,,30/07/14,"10,097.64 "
5167827,AGE UK TAMESIDE,Adults Early Intervention,"Community, Adult & Adults Early Intervention",Professional Services,,24/07/14,"24,250.02 "
5167832,ACORN CARE & EDUCATION LTD (SALES),Education Services,Childrens Services,Voluntary Organisations Fees,,30/07/14,"10,347.68 "
5167834,STEP AHEAD RESOURCE SERVICES,SCYP ,Childrens Services,Living With Formal Support,,21/07/14,750.00 
5167840,STEP AHEAD RESOURCE SERVICES,SCYP ,Childrens Services,Living With Formal Support,,21/07/14,850.00 
5167845,ACORN RECOVERY PROJECTS,Public Health,Public Health,Professional Services,,24/07/14,"41,232.00 "
5167854,ROYAL MAIL GROUP PLC,Exchequer,Director of Finance,Postages,,31/07/14,"2,719.41 "
5167855,POSTAGE BY PHONE PITNEY BOWES LTD,Exchequer,Director of Finance,Postages,,21/07/14,"5,009.00 "
5167863,PG FABRICATIONS,Operations,Places,General Materials,,21/07/14,740.00 
5167870,OFSTED,Children's Services,Childrens Services,Inspection Fees,,24/07/14,"1,601.00 "
5167871,M G DOMESTIC,Adult Services,"Community, Adult & Adults Early Intervention",Fixtures & Fittings Purchase,,21/07/14,514.99 
5167887,RANDSTAD EDUCATION LIMITED,Education Services,Childrens Services,APT&C Basic Pay,,28/07/14,995.00 
5167889,RANDSTAD EDUCATION LIMITED,Education Services,Childrens Services,APT&C Basic Pay,,28/07/14,995.00 
5167890,RANDSTAD EDUCATION LIMITED,Education Services,Childrens Services,APT&C Basic Pay,,24/07/14,995.00 
5167891,RANDSTAD EDUCATION LIMITED,Education Services,Childrens Services,APT&C Basic Pay,,24/07/14,995.00 
5167892,RANDSTAD EDUCATION LIMITED,Education Services,Childrens Services,APT&C Basic Pay,,24/07/14,995.00 
5167893,RANDSTAD EDUCATION LIMITED,Education Services,Childrens Services,APT&C Basic Pay,,24/07/14,550.00 
5167897,RANDSTAD EDUCATION LIMITED,Education Services,Childrens Services,APT&C Basic Pay,,24/07/14,575.00 
5167899,RANDSTAD EDUCATION LIMITED,Education Services,Childrens Services,APT&C Basic Pay,,24/07/14,995.00 
5167900,RANDSTAD EDUCATION LIMITED,Education Services,Childrens Services,APT&C Basic Pay,,28/07/14,550.00 
5167902,RANDSTAD EDUCATION LIMITED,Education Services,Childrens Services,APT&C Basic Pay,,28/07/14,575.00 
5167903,RANDSTAD EDUCATION LIMITED,Education Services,Childrens Services,APT&C Basic Pay,,28/07/14,555.00 
5167905,RANDSTAD EDUCATION LIMITED,Education Services,Childrens Services,APT&C Basic Pay,,28/07/14,995.00 
5167906,RANDSTAD EDUCATION LIMITED,Education Services,Childrens Services,APT&C Basic Pay,,28/07/14,995.00 
5167907,RANDSTAD EDUCATION LIMITED,Education Services,Childrens Services,APT&C Basic Pay,,28/07/14,575.00 
5167908,RANDSTAD EDUCATION LIMITED,Education Services,Childrens Services,APT&C Basic Pay,,28/07/14,575.00 
5167911,ACCCOUNTING OFFICER HOME OFFICE,Audit & Risk Management,Director of Finance,Professional Services,,21/07/14,"1,909.74 "
5167923,,Sustainable Growth,Places,Planning Fee Income,Redacted Supplier,21/07/14,770.00 
5167925,ROBERT GORDON UNIVERSITY,Children's Services,Childrens Services,Professional Services,,30/07/14,"3,950.00 "
5167926,JOHN R.CROSSLAND CONSTRUCTION LTD,Neighbourhoods & Communities,"Community, Adult & Adults Early Intervention",Other Accomodation Related Costs,,29/07/14,"6,482.12 "
5167944,PLACEFIRST LTD,Engineers Client,"Economic Growth, Investment and Sustainability",Consultancies,,24/07/14,"85,672.05 "
5167947,FRESH START INDEPENDENCE PROJECT LTD,SCYP ,Childrens Services,Living With Formal Support,,21/07/14,672.84 
5167952,THE FAMILY UNIT LTD,SCYP ,Childrens Services,Living With Formal Support,,21/07/14,"1,500.00 "
5167954,NHS TAMESIDE AND GLOSSOP CCG,Chief Executive,Director of Finance,Indirect Employee Pay Expenditure,,24/07/14,"5,986.40 "
5167955,E PETCH PRINTERS LTD,"Media, Marketing & Communications",Director of Governance,Printing And Stationery,,24/07/14,"1,455.00 "
5167956,PG FABRICATIONS,Technical,Places,Engineers Works,,24/07/14,820.00 
5167962,DIRECT CARE (NORTH WEST) LTD,Adult Services,"Community, Adult & Adults Early Intervention",Homecare Fees,,21/07/14,"5,329.37 "
5167965,PAYPOINT COLLECTIONS LTD,Neighbourhoods & Communities,"Community, Adult & Adults Early Intervention",Emergency Grant Payments,,21/07/14,771.00 
5167966,ABLE CARE AND SUPPORT SERVICES LTD,Adult Services,"Community, Adult & Adults Early Intervention",Homecare Fees,,24/07/14,"1,732.08 "
5167967,FUSION CARE,SCYP ,Childrens Services,Living With Formal Support,,24/07/14,"11,049.28 "
5167968,FUSION CARE,SCYP ,Childrens Services,Living With Formal Support,,21/07/14,"2,192.14 "
5167972,FUSION CARE,SCYP ,Childrens Services,Living With Formal Support,,21/07/14,"2,635.00 "
5167973,,Children's Services,Childrens Services,Childrens Homes Outside Local Authority Fees,Redacted Supplier,31/07/14,"9,600.00 "
5167974,,Children's Services,Childrens Services,Childrens Homes Outside Local Authority Fees,Redacted Supplier,31/07/14,"9,600.00 "
5167975,,Children's Services,Childrens Services,Foster Carer Agency Fees,Redacted Supplier,21/07/14,"3,360.24 "
5167981,,Children's Services,Childrens Services,Childrens Homes Outside Local Authority Fees,Redacted Supplier,28/07/14,"8,142.00 "
5167986,AGE UK TAMESIDE,Adults Early Intervention,"Community, Adult & Adults Early Intervention",Professional Services,,30/07/14,"57,500.01 "
5167994,MEDICO NURSING AND HOMECARE,Adult Services,"Community, Adult & Adults Early Intervention",Homecare Fees,,28/07/14,"9,798.32 "
5168001,NORTHWEST TELECOM,Education Services,Childrens Services,Telephone Landline Costs,,24/07/14,"1,015.00 "
5168005,SHAHEEN NAZ,Neighbourhoods & Communities,"Community, Adult & Adults Early Intervention",Other Accomodation Related Costs,Business Payment,24/07/14,500.00 
5168006,IAN BOYS,Neighbourhoods & Communities,"Community, Adult & Adults Early Intervention",Other Accomodation Related Costs,Business Payment,24/07/14,500.00 
5168010,DENTON & AUDENSHAW CARNIVAL ASSOCIATION,Neighbourhoods & Communities,"Community, Adult & Adults Early Intervention",Impairment,,24/07/14,500.00 
5168023,TAMESIDE SPORTS TRUST,Education Services,Childrens Services,Professional Services,,28/07/14,"1,435.00 "
5168025,G & A TAYLOR HOTELS LTD,Adult Services,"Community, Adult & Adults Early Intervention",Residential Home Short Stay Fees,,24/07/14,798.00 
5168035,TAMESIDE SPORTS TRUST,Education Services,Childrens Services,Professional Services,,28/07/14,"4,387.00 "
5168043,ACORN CARE & EDUCATION LTD (SALES),Education Services,Childrens Services,Voluntary Organisations Fees,,30/07/14,"10,658.00 "
5168048,,Children's Services,Childrens Services,Foster Carer Agency Fees,Redacted Supplier,24/07/14,"3,289.50 "
5168052,RANDSTAD EDUCATION LIMITED,Education Services,Childrens Services,APT&C Basic Pay,,28/07/14,995.00 
5168055,RANDSTAD EDUCATION LIMITED,Education Services,Childrens Services,APT&C Basic Pay,,28/07/14,995.00 
5168139,VODAFONE,Asset Mgmt & Investment Partnership Mgmt,Places,Telephone Landline Costs,,28/07/14,846.51 
5168145,VISION FOR EDUCATION LIMITED,Education Services,Childrens Services,APT&C Basic Pay,,28/07/14,575.00 
5168147,TEACHING PERSONNEL LTD,Education Services,Childrens Services,APT&C Basic Pay,,28/07/14,968.00 
5168149,BRIGHT BOOK SUPPLIES,Neighbourhoods & Communities,"Community, Adult & Adults Early Intervention",Purchase Books,,24/07/14,716.80 
5168151,ULVERSCROFT LARGE PRINT  BOOKS LTD,Neighbourhoods & Communities,"Community, Adult & Adults Early Intervention",Purchase Books,,30/07/14,"1,185.37 "
5168157,STOCKPORT MBC,Education Services,Childrens Services,Professional Interpreter Services,,28/07/14,545.00 
5168169,HMCTS - NORTHAMPTON COUNTY COURT,Exchequer,Director of Finance,Court Fees,,24/07/14,"6,275.00 "
